Workbook

Sheet Overview (hidden)
A1: 2016 Data | B1: Total no. of Primary schools | C1: # of Primary schools that have a Reception Class | D1: # Primary schools with 1) No Reception Class, and 2) No spare classroom | E1: # Primary schools with 1) No Reception Class, but 2) With spare classroom
A2: Berea | B2: 139 | C2: 27 | D2: 94 | E2: 18
A3: Buthabothe | B3: 83 | C3: 21 | D3: 12 | E3: 50
A4: Leribe | B4: 27 | C4: 0 | D4: 20 | E4: 7
A5: Mafeteng | B5: 158 | C5: 27 | D5: 43 | E5: 88
A6: Maseru | B6: 56 | C6: 6 | D6: 0 | E6: 50
A7: Mohale's Hok | B7: 41 | C7: 0 | D7: 0 | E7: 41
A8: Mokhotlong | B8: 105 | C8: 13 | D8: 50 | E8: 42 | F8: In Mokhotlong, there might be an inaccuracy of +/-15 schools where information was missing and I completed with No Reception Class and No Classroom available
A9: Qacha's Nek | B9: 104 | C9: 0 | D9: 98 | E9: 6
A10: Quthing | B10: 126 | C10: 19 | D10: 97 | E10: 10
A11: Thaba Tseka | B11: 143 | C11: 24 | D11: 98 | E11: 21
B12: =SUM(B2:B11) -> 982 | C12: =SUM(C2:C11) -> 137
A14: Building Infrastructure + Installing ECE | D14: =SUM(D2:D11) -> 512 | G14: =D14/E16 -> 0.6059171598 | H14: need infrastructure build
A15: Only Installing ECE (Software component) | E15: =SUM(E2:E11) -> 333 | G15: =E15/E16 -> 0.3940828402 | H15: have a spare classroom
E16: =E15+D14 -> 845
B18: Enrolment | E18: No of Schools w Reception Class | H18: No of Primary Schools
A19: ESB 2017 | B19: 2015 | C19: 2016 | D19: 2017 | E19: 2015 | F19: 2016 | G19: 2017 | H19: 2017
A20: Berea | B20: 723 | C20: 712 | D20: 649 | E20: 28 | F20: 27 | G20: 26 | H20: 139
A21: Botha-Bothe | B21: 532 | C21: 542 | D21: 483 | E21: 19 | F21: 19 | G21: 19 | H21: 83
A22: Leribe | B22: 633 | C22: 688 | D22: 621 | E22: 28 | F22: 28 | G22: 28 | H22: 203
A23: Mafeteng | B23: 623 | C23: 677 | D23: 665 | E23: 30 | F23: 30 | G23: 30 | H23: 158
A24: Maseru | B24: 923 | C24: 939 | D24: 911 | E24: 35 | F24: 34 | G24: 34 | H24: 254
A25: Mohale’s Hoek | B25: 560 | C25: 508 | D25: 508 | E25: 27 | F25: 27 | G25: 27 | H25: 172
A26: Mokhotlong | B26: 391 | C26: 427 | D26: 387 | E26: 15 | F26: 15 | G26: 15 | H26: 106
A27: Qacha's Nek | B27: 361 | C27: 365 | D27: 337 | E27: 18 | F27: 18 | G27: 18 | H27: 102
A28: Quthing | B28: 376 | C28: 346 | D28: 317 | E28: 19 | F28: 19 | G28: 19 | H28: 125
A29: Thaba-Tseka | B29: 650 | C29: 628 | D29: 664 | E29: 24 | F29: 24 | G29: 24 | H29: 141
A30: Total | B30: 5772 | C30: 5832 | D30: 5542 | E30: 243 | F30: 241 | G30: 240 | H30: 1483
A32: Discrepancy:
D33: ESB 2017 | E33: Doc w need for Rec
C34: No of primary schools | D34: =H30 -> 1483 | E34: =B12 -> 982
C35: No of "Reception schools" | D35: =G30 -> 240 | E35: =C12 -> 137
C36: No of primary schools w/o Reception Class | D36: =D34-D35 -> 1243 | E36: =E34-E35 -> 845
D38: 1242 | E38: Total
D39: =D38*G14 -> 752.5491124 | E39: Reception classes to be constructed/prefab
D40: =G15*D38 -> 489.4508876 | E40: Schools have a spare classroom
D42: How many Reception classes to be established in 3 years
D43: Year 1 | E43: Year 2 | F43: Year 3
D44: =$D$39/3 -> 250.8497041 | E44: =$D$39/3 -> 250.8497041 | F44: =$D$39/3 -> 250.8497041 | G44: Reception classes to be constructed/prefab
D45: =$D$40/3 -> 163.1502959 | E45: =$D$40/3 -> 163.1502959 | F45: =$D$40/3 -> 163.1502959 | G45: Schools have a spare classroom
D46: How many Reception classes to be established in 5 years
D47: Year 1 | E47: Year 2 | F47: Year 3 | G47: Year 4 | H47: Year 5
D48: =$D$39/5 -> 150.5098225 | E48: =$D$39/5 -> 150.5098225 | F48: =$D$39/5 -> 150.5098225 | G48: =$D$39/5 -> 150.5098225 | H48: =$D$39/5 -> 150.5098225 | I48: Reception classes to be constructed/prefab
D49: =$D$40/5 -> 97.89017751 | E49: =$D$40/5 -> 97.89017751 | F49: =$D$40/5 -> 97.89017751 | G49: =$D$40/5 -> 97.89017751 | H49: =$D$40/5 -> 97.89017751 | I49: Schools have a spare classroom
D51: * Data on Primary schools that have a spare classroom available for ECE, is outdated/not fully accurate. Distribution is based on 2016 data.

Sheet Sugerencias
A1: 0 | B1: Esta guía lo acompañará en una visita guiada por el ejemplo de modelo de simulación de Lesotho. | C1: Aquí termina la visita guiada. Puede volver a empezar, reexaminar las sugerencias o cerrar este archivo. Hacer clic para cerrar.
A2: 1:1 | B2: Este modelo no se ha elaborado como parte de un Programa de Apoyo al Sector Educativo, sino para evaluar la viabilidad y la repercusión que puede tener la aplicación de una nueva política de EPI. Dicha nueva política proyecta ampliar la prestación pública de servicios de EPI mediante la inclusión en todas las escuelas primarias de un “curso de recepción”; es decir, un curso de preescolar. Las principales dificultades al respecto son la construcción de aulas adicionales y la contratación de docentes de EPI (capacitados). Cabe destacar que, a diferencia de la mayoría de los modelos de simulación, que se basan en las necesidades (como el ejemplo de Santo Tomé, en el cual el objetivo se expresa en términos de tasas de matriculación, y el número de docentes, aulas y otras necesidades se calculan en consecuencia), este modelo se basa en la oferta: las previsiones se hacen en función de la ampliación de la prestación de servicios y el aumento del número de alumnos matriculados se calcula como resultado de esta ampliación. Las celdas aparecerán resaltadas, y se explicarán los diferentes pasos en un recuadro de texto. Haga clic en el recuadro de texto para pasar a la sugerencia siguiente. Puede usar en cualquier momento los botones de la esquina superior derecha para navegar por las sugerencias, hacer una pausa o reiniciar la demostración. Para esta nueva política, se generaron diversas situaciones hipotéticas (pueden encontrarse en este mismo archivo, cada una en una hoja de cálculo). Es un paso habitual e importante al diseñar políticas, ya que da cabida a que se estudien varias opciones. También se añadió una última hoja de cálculo en la que se comparan los resultados de las tres situaciones hipotéticas con el propósito de facilitar la toma de decisiones. Le recomendamos que consulte esas hojas de cálculo DESPUÉS de que termine la visita guiada de esta.
A3: 3:55 | B3: La primera sección del presente modelo es un resumen de los supuestos y opciones normativas más destacados; también ofrece algunos gráficos para comprobar rápidamente los efectos que se producen al introducir cambios en ellos. Volveremos sobre este asunto más adelante.
A4: 56:58 | B4: El modelo se creó a partir del borrador de un marco de resultados o teoría del cambio para la nueva política en materia de educación de la primera infancia. Se basa en dicho marco inicial, al que se han añadido algunas líneas para hacer los cálculos. | D4: below
A5: A:b | B5: Las dos primeras columnas muestran los objetivos estratégicos y las actividades que se han establecido en la teoría del cambio. | C5: FALSE | D5: below
A6: C:c, e:f | B6: Se definieron los insumos necesarios para realizar cada una de las actividades; entonces, se calculó el costo por unidad de estos insumos, | C6: FALSE | D6: below
A7: 59:62 | B7: que se recoge en las filas sombreadas en colores oscuros. Sobre dichas celdas, se agregaron filas (en colores más claros) en las que se estima la cantidad de unidades necesarias. | C7: FALSE | D7: below
A8: 59:61 | B8: Aquí, por ejemplo, la cifra de aulas prefabricadas que van a construirse se calcula partiendo del número de años durante los que se recurrirá a este tipo de construcciones y la capacidad de construcción máxima por año. | D8: below
A9: 59:66 | B9: Como ya se ha explicado, uno de los factores más importantes que determinan los costos (es decir, los elementos que representan la parte más sustanciosa de los gastos y cuyas variaciones determinarán la escala de los costos totales) de esta nueva política es la construcción de un aula suplementaria para albergar al alumnado del curso de recepción. En una situación hipotética en la que se tardara poco en implantar esta política, estaría previsto colocar varias aulas prefabricadas (aulas temporales “prefabricadas” de montaje rápido y, por lo común, con escasos cimientos o ninguno) mientras que se completa el proceso de adquisición y construcción de las edificaciones permanentes. | D9: below
A10: 62:62 | B10: Para calcular el costo total de las aulas prefabricadas, se multiplica el número de aulas prefabricadas necesarias por su costo unitario (que podría incluir el precio del transporte y la instalación). | D10: below
A11: 63:68 | B11: Para las edificaciones permanentes, se parte del supuesto de que, en un principio, la capacidad del ministerio para construir edificios es limitada (en este caso, 100 aulas durante el primer año) y puede desarrollarse de forma paulatina hasta alcanzar su máximo potencial (en este caso, 150). La capacidad de ejecución del Ministerio de Educación (o del organismo que se ocupa de la infraestructura escolar) se basa en su trayectoria. La cantidad de obras de construcción que se han llevado a cabo en los últimos años suele ser un indicio de la capacidad, sobre todo si los presupuestos de infraestructura no se gastaron en su totalidad. También es importante tener presentes las necesidades de otros subsectores en materia de construcción (por ejemplo, si el Ministerio de Educación únicamente puede levantar 100 aulas al año, pero se requieren 60 para la educación básica, la capacidad restante es de solo 40). Por último, a la hora de planificar los programas de creación de infraestructura, es fundamental analizar varios modelos de adquisición y construcción (centralizado, descentralizado, comunitario...). | D11: below
A12: 66:68 | B12: Se calcula el número de aulas nuevas; una vez se haya alcanzado la cifra total de aulas, cabe la posibilidad de presupuestar la sustitución de aulas prefabricadas por permanentes (no es el caso en esta situación hipotética).
A13: 69:73 | B13: Una auditoría de las escuelas indicó que algunas ya contaban con un curso de recepción —si bien es posible que la clase necesitara ciertas reformas— o tenían aulas que no estaban en uso y podían emplearse para impartir enseñanza preescolar si se remodelaban. Llegados a este momento, se calcula cuántas aulas hay que reformar y los costos que esto conlleva.
A14: 75:79 | B14: Se calcula el costo de las instalaciones de agua, saneamiento e higiene (WASH, por sus siglas en inglés: letrinas, lavabos, etc.). Partimos del supuesto de que, en las escuelas, las instalaciones actuales pueden destinarse en parte a estos fines.
A15: 81:83 | B15: El siguiente punto es equipar las nuevas aulas (prefabricadas, de reciente construcción y remodeladas) con mobiliario.
A16: 84:91 | B16: A continuación se calcula el costo de dotar a las clases de materiales de aprendizaje y equipo para jugar al aire libre.
A17: 92:94 | B17: En esta nueva política, el segundo factor más importante que determina los costos es la contratación de docentes para los nuevos cursos de recepción y su remuneración.
A18: 92:95 | B18: El primer paso es calcular cuántos docentes extra se requieren para trabajar en EPI (que coincide con el número de aulas de recepción que se hayan creado) y cuántas nuevas contrataciones hay que llevar a cabo en vista de la tasa de abandono de docentes (el porcentaje anual de profesorado que deja la fuerza de trabajo por fallecimiento, jubilación, cambio de carrera...). Las acciones que siguen van orientadas muy concretamente al contexto de Lesotho. Los recuadros que aparecerán a continuación ofrecen información más detallada, pero es probable que no resulte pertinente en otros países. En la mayoría de los casos, el número de docentes que precisan capacitación se calcularía directamente como la cifra de nuevos docentes que se requieren, ya sea a partir de la cantidad de aulas o clases de reciente construcción o del número de alumnos (mediante los supuestos u objetivos en cuanto a la proporción de alumnos por docente). Si no le interesan los pormenores o le resultan demasiado confusos, puede saltarse los dos recuadros siguientes (aparecen entre corchetes).
A19: 95:101 | B19: [En este caso, se parte del supuesto de que existe una “reserva” de docentes titulados en EPI en situación de desempleo a los que se puede convocar rápidamente. Asimismo, sería posible movilizar a varios docentes de enseñanza primaria sin empleo. Se calcula que el centro de formación de docentes tiene capacidad como para formar a 60 personas al año y que obtengan una acreditación que les permita enseñar en el ámbito del desarrollo en la primera infancia. A la larga, se crearía una nueva titulación universitaria a fin de que estos docentes alcancen el mismo nivel de estudios que el cuerpo de profesores de primaria (y perciban el mismo sueldo)].
A20: 102:104 | B20: [Contando con estas reservas y nuevas cohortes de docentes, se prevé que todo el contingente de educadores de desarrollo en la primera infancia y la etapa de primaria se incorporará a un puesto de trabajo en los dos primeros años, lo que redundará en un “déficit” de docentes a partir del segundo año, ya que el sistema no puede contratar docentes a la misma velocidad con la que se planifica la construcción de nuevas aulas. Es importante recalcar esta falta de personal, puesto que es un impedimento para ejecutar el plan: incluso si se edifican las instalaciones necesarias, no servirán de nada si no hay suficientes docentes. Será un indicador clave a la hora de ajustar las metas de la nueva política].
A21: 105:110 | B21: La siguiente fase del cálculo de la remuneración del cuerpo docente es hacer una previsión del sueldo promedio de uno de estos profesionales. Esto exige dividirlos en función de la situación contractual y del salario. Aquí tenemos dos grandes grupos de trabajadores que reciben una retribución distinta: docentes con certificados en desarrollo en la primera infancia (tanto nuevos como existentes) por un lado y profesorado de primaria y personas que obtendrán un diploma una vez concluida su formación. Los docentes que poseen una acreditación tienen la opción de mejorar su capacitación y pasar a estar en el grupo de los titulados.
A22: 111:115 | B22: Llegados a este punto, se calcula el salario promedio de ambos tipos de docente, que nos dará el costo estimado total de la remuneración del personal en cada una de estas categorías.
A23: 116:116 | B23: Se calcula el costo de capacitar a la dirección de las escuelas que ahora cuentan con un aula de preescolar.
A24: 116:122 | B24: Se calcula el costo de contratar nuevos inspectores y formarlos.
A25: 123:133 | B25: Entonces se hace una estimación del gasto que supondría la formación en el empleo. En este caso, se contemplan tres tipos de formación en el empleo: - Un taller de larga duración para los docentes de primaria a los que se ha destinado a cursos de recepción. - La formación habitual en el empleo para las personas que acaban de obtener su diploma; además, todos los años participa también en ella un porcentaje (aquí, el 20%) del cuerpo docente. - Una actividad formativa de corta duración en el empleo para todo el profesorado sobre el nuevo plan de estudios que va a elaborarse e implantarse.
A26: 134:136 | B26: Las últimas filas de las cuestiones que tienen que ver con recursos humanos se centran en el refuerzo de las oficinas centrales y descentralizadas.
A27: 137:138 | B27: Para acabar, se calcula el costo del programa de alimentación escolar a partir de la cifra de alumnos que van a matricularse en un curso de recepción (una estimación del número de estudiantes por aula multiplicado por la cantidad de aulas de preescolar que se han construido y tienen un docente asignado).
A28: 140:170 | B28: Las últimas filas contienen un resumen de los gastos previstos en total y por categoría, y con respecto al presupuesto educativo. También se ofrecen algunas de las tasas de matriculación a fin de evaluar el efecto de la nueva política en lo que se refiere a la cobertura de la población destinataria.
A29: 3:55 | B29: Si volvemos a la parte superior de la hoja de Excel, ahora podemos ver cómo se articulan los parámetros principales de la política para introducir ajustes y lograr que sea una situación viable con la mejor repercusión posible. Le invitamos a que modifique las cifras de algunas de las características de la situación hipotética y compruebe cómo cambian los gráficos, sobre todo en lo tocante a la magnitud de la inversión inicial y la falta de docentes, por ejemplo. Un mensaje que se desprende del primer gráfico y que conviene recordar es que, si bien la inversión en infraestructura puede ser considerable durante los primeros años, el costo de la política a largo plazo vendrá dado por los gastos recurrentes (en su mayor parte, la retribución de los docentes).
A30: 3:55 | B30: Finalmente, podrá ver que, para esta nueva política, se generaron diversas situaciones hipotéticas (pueden encontrarse en este mismo archivo, cada una en una hoja de cálculo). Es un paso habitual e importante al diseñar políticas, ya que da cabida a que se estudien varias opciones. La diferencia más notable entre estas situaciones hipotéticas es a lo largo de cuántos años se van a ampliar los cursos de recepción; en el primer caso, tres años. En las otras dos hojas de trabajo se modificaron algunos parámetros para ceñirse a los planes de ampliación a 5 y 7 años vista. También se añadió una última hoja de cálculo en la que se comparan los resultados de las tres situaciones hipotéticas con el propósito de facilitar la toma de decisiones. Puede echar un vistazo a todas las hojas de cálculo.

Sheet Amp. cursos recepción (3 años)
H1: Reiniciar | I1: Anterior | J1: Siguiente | K1: Iniciar/Continuar | L1: Detener/Pausa
B3: Características de la situación hipotética | G3: Supuestos
B5: Años que durará la ampliación | D5: 3 | F5: Número de escuelas que disponen de un curso de recepción | I5: =Overview!D35 -> 240
F6: Número de escuelas sin un curso de recepción | I6: =Overview!D38 -> 1242
B7: Años que se tardará en lograr que los cursos de recepción existentes se adecúen a las normas | D7: 2 | F7: Número de escuelas con aulas disponibles para transformarse en clases de recepción | I7: =Overview!D40 -> 489.4508876
B8: Años que se tardará en acondicionar las aulas disponibles para que puedan usarse | D8: 2 | F8: Número de aulas que hay que construir | I8: =I6-I7 -> 752.5491124
B10: Años durante los que se instalarán aulas prefabricadas | D10: 2 | F10: Número de aulas prefabricadas que se pueden instalar cada año | I10: 150
B11: Años que transcurrirán hasta que empiecen las construcciones definitivas | D11: 0 | F11: Número de aulas que se pueden construir durante el primer año | I11: 100
F12: Máximo de aulas que se pueden construir en un año | I12: 150
B13: Número de niños por curso de recepción | D13: 23 | F13: Número de aulas que se pueden reformar en un año | I13: 50
F14: Proporción de aulas disponibles que han de reformarse | I14: 0.33
B15: Sustitución de las aulas prefabricadas iniciales por aulas permanentes | D15: No | F15: Porcentaje de aulas de recepción existentes que necesitan: | H15: una reforma | I15: 0.25
F16: Proportion of existing RCs needing: | H16: WASH facilities | I16: 0
F17: Proportion of existing RCs needing: | H17: furniture | I17: 0
F18: Proportion of existing RCs needing: | H18: TLM | I18: 0
F19: Proportion of existing RCs needing: | H19: outdoor play materials | I19: 0
F20: Porcentaje de aulas disponibles que necesitan instalaciones de WASH | I20: 0.75
F21: Porcentaje de aulas nuevas que necesitan instalaciones de WASH | I21: 0.9
F22: Porcentaje de aulas nuevas que necesitan mobiliario | I22: 0.9
B24: Año en el que los docentes de desarrollo en la primera infancia pueden mejorar su categoría | D24: 2024 | F24: Tasa de abandono de los docentes de desarrollo en la primera infancia | I24: 0.02
F25: Número de docentes extra de desarrollo en la primera infancia con los que puede contarse | I25: 300
F26: Número de docentes de primaria con los que puede contarse y a los que puede impartirse capacitación en EPI | I26: 300
F27: Tamaño de la cohorte de docentes de desarrollo en la primera infancia que poseen una acreditación | I27: 60
F28: Tamaño de la cohorte de docentes de desarrollo en la primera infancia que poseen una diplomatura (a partir de 2023) | I28: 50
F29: Año en el que empezarán a graduarse los docentes de desarrollo en la primera infancia que cursan una diplomatura | I29: 2023
B30: Año en el que se contrata a más inspectores | D30: 2021 | F30: Proporción de docentes de desarrollo en la primera infancia en activo que querrán avanzar de categoría | I30: 0.5
F31: Máximo de docentes al año que pueden mejorar su capacitación y obtener una licenciatura | I31: 30
B32: Porcentaje anual de docentes que recibe formación en el empleo | D32: 0.2 | F32: Aumento anual de los salarios del cuerpo docente | I32: 0.02
B33: Duración en días de la actividad formativa breve en el empleo | D33: 5 | F33: Aumento anual de los salarios de los inspectores | I33: 0.02
B34: Duración en días de la actividad formativa larga en el empleo | D34: 20 | F34: Porcentaje de docentes en activo que necesitan participar en la actividad formativa larga en el empleo | I34: 0.35
D36: ="Costo total a lo largo de "&D5&" años:" -> Costo total a lo largo de 3 años: | F36: =""&TEXT(SUM(H140:OFFSET(G140,0,D5))/1000000,"#,##0") & " millones de ZAR" -> 467 millones de ZAR
D54: ="Year when there are enough teachers for all classrooms opened : "& CEILING(IF(Q104=0,IF(P104=0,IF(O104=0,IF(N104=0,IF(M104=0,IF(L104=0,IF(K104=0,IF(J104=0, IF(I104=0,IF(H104=0,H56,I56),J56),K56),L56),M56),N56),O56),P56),Q56),Q56+Q104/(Q101+Q98)),1) -> Year when there are enough teachers for all classrooms opened : 2028
H55: 1 | I55: 2 | J55: 3 | K55: 4 | L55: 5 | M55: 6 | N55: 7 | O55: 8 | P55: 9 | Q55: 10
A56: Ampliación de los cursos de recepción para lograr que todos los centros de primaria tengan uno (a lo largo de tres años) | H56: 2020 | I56: =H56+1 -> 2021 | J56: =I56+1 -> 2022 | K56: =J56+1 -> 2023 | L56: 2024 | M56: 2025 | N56: 2026 | O56: 2027 | P56: 2028 | Q56: 2029
A57: Objetivo estratégico | B57: Actividades | C57: Unidad de producto | E57: Costo por unidad (ZAR) | F57: Costo por unidad (USD) | H57: Costo anual (en miles de ZAR) | R57: Costo total de los primeros 5 años (ZAR) | S57: Supuestos
G58: Situaciones hipotéticas de ampliación | H58: ="Año "& H55 & " " & 2019+H55 & " - " & 2020+H55 -> Año 1 2020 - 2021 | I58: Año 2 2021 - 2022 | J58: Año 3 2022 - 2023 | K58: Año 4 2023 - 2024 | L58: Año 5 2024 - 2025 | M58: Año 6 2025 - 2026 | N58: Año 7 2026 - 2027 | O58: Año 8 2027 - 2028 | P58: Año 9 2028 - 2029 | Q58: Año 10 2029 - 2030
A59: 1.1 Garantizar que la infraestructura de las aulas de recepción es segura y está adaptada a los niños | B59: 1.1.1 Construcción de nuevas aulas de recepción | C59: ê | D59: Máximo de aulas prefabricadas que se pueden instalar al año | G59: =I10 -> 150 | R59: =SUM(G59:L59) -> 150
C60: ê | D60: Años durante los que se instalarán aulas prefabricadas | G60: =D10 -> 2 | R60: =SUM(G60:L60) -> 2
C61: ê | G61: Número de aulas prefabricadas que van a instalarse | H61: =IF(H$55<=$G$60,$G$59,0) -> 150 | I61: =IF(I$55<=$G$60,$G$59,0) -> 150 | J61: 0 | K61: 0 | L61: 0 | M61: 0 | N61: 0 | O61: 0 | P61: 0 | Q61: 0
C62: N.º de aulas de recepción prefabricadas (con IVA, costos de transporte o emplazamiento) que van a establecerse | E62: 300000 | F62: =E62*0.065371 -> 19611.3 | G62: Podemos presupuestar solo aulas prefabricadas durante los años 1 y 2 y pasar a construir en los años 3-5. Otra opción es presupuestar cinco años con aulas prefabricadas, pero teniendo en cuenta los costos, sinceramente no veo ninguna razón para optar por eso. | H62: =$E62*H61 -> 45000000 | I62: =$E62*I61 -> 45000000 | J62: =$E62*J61/1000000 -> 0 | K62: 0 | L62: 0 | M62: 0 | N62: 0 | O62: 0 | P62: 0 | Q62: 0 | R62: =SUM(H62:L62) -> 90000000 | S62: Es justo lo que cuesta un aula prefabricada de 7 x 7 metros con espacio para un máximo de 50 alumnos de las que elabora Kwikspace, una empresa sudafricana. El precio incluye una estimación de los impuestos (IVA), el transporte y el posible emplazamiento.
C63: ê | D63: Número de edificaciones en el primer año | G63: =I11 -> 100 | R63: =SUM(G63:L63) -> 100
C64: ê | D64: Máximo de edificaciones al año | G64: =I12 -> 150 | R64: =SUM(G64:L64) -> 150
C65: ê | D65: Tasa de crecimiento del número de edificaciones al año | G65: =IF(incr_rate(G63,($D$5-$D$11),I8-SUM(H61:Q61))<0,0, incr_rate(G63,($D$5-$D$11),I8-SUM(H61:Q61))) -> 0.4430633548 | R65: =SUM(G65:L65) -> 0.4430633548
C66: ê | G66: Número de edificaciones nuevas | H66: =IF(H$55<=$D$11,0, IF($G$63*(1+$G$65)^(G$55-$D$11)<=$G$64, IF(H$55>$D$5,0,$G$63*(1+$G$65)^(G$55-$D$11)), MIN($G$64,MAX(0,$I$8-SUM($H$61:$Q$61)-SUM($G66:G$66))))) -> 100 | I66: =IF(I$55<=$D$11,0, IF($G$63*(1+$G$65)^(H$55-$D$11)<=$G$64, IF(I$55>$D$5,0,$G$63*(1+$G$65)^(H$55-$D$11)), MIN($G$64,MAX(0,$I$8-SUM($H$61:$Q$61)-SUM($G66:H$66))))) -> 144.3063355 | J66: =IF(J$55<=$D$11,0, IF($G$63*(1+$G$65)^(I$55-$D$11)<=$G$64, IF(J$55>$D$5,0,$G$63*(1+$G$65)^(I$55-$D$11)), MIN($G$64,MAX(0,$I$8-SUM($H$61:$Q$61)-SUM($G66:I$66))))) -> 150 | K66: =IF(K$55<=$D$11,0, IF($G$63*(1+$G$65)^(J$55-$D$11)<=$G$64, IF(K$55>$D$5,0,$G$63*(1+$G$65)^(J$55-$D$11)), MIN($G$64,MAX(0,$I$8-SUM($H$61:$Q$61)-SUM($G66:J$66))))) -> 58.24277695 | L66: =IF(L$55<=$D$11,0, IF($G$63*(1+$G$65)^(K$55-$D$11)<=$G$64, IF(L$55>$D$5,0,$G$63*(1+$G$65)^(K$55-$D$11)), MIN($G$64,MAX(0,$I$8-SUM($H$61:$Q$61)-SUM($G66:K$66))))) -> 0 | M66: =IF(M$55<=$D$11,0, IF($G$63*(1+$G$65)^(L$55-$D$11)<=$G$64, IF(M$55>$D$5,0,$G$63*(1+$G$65)^(L$55-$D$11)), MIN($G$64,MAX(0,$I$8-SUM($H$61:$Q$61)-SUM($G66:L$66))))) -> 0 | N66: =IF(N$55<=$D$11,0, IF($G$63*(1+$G$65)^(M$55-$D$11)<=$G$64, IF(N$55>$D$5,0,$G$63*(1+$G$65)^(M$55-$D$11)), MIN($G$64,MAX(0,$I$8-SUM($H$61:$Q$61)-SUM($G66:M$66))))) -> 0 | O66: =IF(O$55<=$D$11,0, IF($G$63*(1+$G$65)^(N$55-$D$11)<=$G$64, IF(O$55>$D$5,0,$G$63*(1+$G$65)^(N$55-$D$11)), MIN($G$64,MAX(0,$I$8-SUM($H$61:$Q$61)-SUM($G66:N$66))))) -> 0 | P66: =IF(P$55<=$D$11,0, IF($G$63*(1+$G$65)^(O$55-$D$11)<=$G$64, IF(P$55>$D$5,0,$G$63*(1+$G$65)^(O$55-$D$11)), MIN($G$64,MAX(0,$I$8-SUM($H$61:$Q$61)-SUM($G66:O$66))))) -> 0 | Q66: =IF(Q$55<=$D$11,0, IF($G$63*(1+$G$65)^(P$55-$D$11)<=$G$64, IF(Q$55>$D$5,0,$G$63*(1+$G$65)^(P$55-$D$11)), MIN($G$64,MAX(0,$I$8-SUM($H$61:$Q$61)-SUM($G66:P$66))))) -> 0
C67: ê | G67: Número de edificaciones que sustituyen a aulas prefabricadas | H67: =IF($D$15="Yes",IF(H66=0,MIN(MAX($H$66:$Q$66),SUM($H$61:$Q$61)-SUM(G67:$G$67)),0),0) -> 0 | I67: =IF($D$15="Yes",IF(I66=0,MIN(MAX($H$66:$Q$66),SUM($H$61:$Q$61)-SUM($G67:H$67)),0),0) -> 0 | J67: =IF($D$15="Yes",IF(J66=0,MIN(MAX($H$66:$Q$66),SUM($H$61:$Q$61)-SUM($G67:I$67)),0),0) -> 0 | K67: =IF($D$15="Yes",IF(K66=0,MIN(MAX($H$66:$Q$66),SUM($H$61:$Q$61)-SUM($G67:J$67)),0),0) -> 0 | L67: =IF($D$15="Yes",IF(L66=0,MIN(MAX($H$66:$Q$66),SUM($H$61:$Q$61)-SUM($G67:K$67)),0),0) -> 0 | M67: =IF($D$15="Yes",IF(M66=0,MIN(MAX($H$66:$Q$66),SUM($H$61:$Q$61)-SUM($G67:L$67)),0),0) -> 0 | N67: =IF($D$15="Yes",IF(N66=0,MIN(MAX($H$66:$Q$66),SUM($H$61:$Q$61)-SUM($G67:M$67)),0),0) -> 0 | O67: =IF($D$15="Yes",IF(O66=0,MIN(MAX($H$66:$Q$66),SUM($H$61:$Q$61)-SUM($G67:N$67)),0),0) -> 0 | P67: =IF($D$15="Yes",IF(P66=0,MIN(MAX($H$66:$Q$66),SUM($H$61:$Q$61)-SUM($G67:O$67)),0),0) -> 0 | Q67: =IF($D$15="Yes",IF(Q66=0,MIN(MAX($H$66:$Q$66),SUM($H$61:$Q$61)-SUM($G67:P$67)),0),0) -> 0
C68: N.º de aulas de recepción permanentes (sin IVA, costos de transporte o emplazamiento) que van a construirse | E68: 400000 | F68: =E68*0.065371 -> 26148.4 | G68: Aquí se muestra una opción; en las notas hay otras. | H68: =(H66+H67)*$E$68 -> 40000000 | I68: 57722534.19 | J68: 60000000 | K68: 23297110.78 | L68: 0 | M68: 0 | N68: 0 | O68: 0 | P68: 0 | Q68: 0 | R68: =SUM(H68:L68) -> 181019645 | S68: Es un cálculo basado en la información financiera que la Unidad de Cuidado y Desarrollo de la Primera Infancia ha enviado: edificar un bloque con dos aulas costaba 700.000 ZAR. Por eso, el costo estimado de un aula de recepción asciende a 400.000 ZAR.
B69: 1.1.2 Reforma de las aulas disponibles en primaria para convertirlas en cursos de recepción | C69: ê | D69: Capacidad de remodelación de aulas al año | G69: =I13 -> 50 | R69: =SUM(G69:L69) -> 50
C70: ê | D70: Porcentaje de aulas de recepción existentes que necesitan reformas | G70: =I15 -> 0.25 | R70: =SUM(G70:L70) -> 0.25
C71: ê | G71: Número de aulas de recepción existentes que hay que reformar | H71: =MIN($G$69,MAX($I$5*$G70-SUM(G71:$G$71),0)) -> 50 | I71: =MIN($G$69,MAX($I$5*$G70-SUM($G71:H$71),0)) -> 10 | J71: =MIN($G$69,MAX($I$5*$G70-SUM($G71:I$71),0)) -> 0 | K71: =MIN($G$69,MAX($I$5*$G70-SUM($G71:J$71),0)) -> 0 | L71: =MIN($G$69,MAX($I$5*$G70-SUM($G71:K$71),0)) -> 0 | M71: =MIN($G$69,MAX($I$5*$G70-SUM($G71:L$71),0)) -> 0 | N71: =MIN($G$69,MAX($I$5*$G70-SUM($G71:M$71),0)) -> 0 | O71: =MIN($G$69,MAX($I$5*$G70-SUM($G71:N$71),0)) -> 0 | P71: =MIN($G$69,MAX($I$5*$G70-SUM($G71:O$71),0)) -> 0 | Q71: =MIN($G$69,MAX($I$5*$G70-SUM($G71:P$71),0)) -> 0 | R71: =MIN($I$13,MAX($I$5*$G70-SUM($G71:Q$71),0)) -> 0
C72: ê | D72: Porcentaje de aulas disponibles que han de reformarse | G72: =I14 -> 0.33 | R72: =SUM(G72:L72) -> 0.33
C73: ê | G73: Número de aulas disponibles que han de reformarse | H73: =MIN($G$69-H71,MAX($I$7*$G72-SUM(G$73:$G73),0)) -> 0 | I73: =MIN($G$69-I71,MAX($I$7*$G72-SUM($G$73:H73),0)) -> 40 | J73: =MIN($G$69-J71,MAX($I$7*$G72-SUM($G$73:I73),0)) -> 50 | K73: =MIN($G$69-K71,MAX($I$7*$G72-SUM($G$73:J73),0)) -> 50 | L73: =MIN($G$69-L71,MAX($I$7*$G72-SUM($G$73:K73),0)) -> 21.5187929 | M73: =MIN($G$69-M71,MAX($I$7*$G72-SUM($G$73:L73),0)) -> 0 | N73: =MIN($G$69-N71,MAX($I$7*$G72-SUM($G$73:M73),0)) -> 0 | O73: =MIN($G$69-O71,MAX($I$7*$G72-SUM($G$73:N73),0)) -> 0 | P73: =MIN($G$69-P71,MAX($I$7*$G72-SUM($G$73:O73),0)) -> 0 | Q73: =MIN($G$69-Q71,MAX($I$7*$G72-SUM($G$73:P73),0)) -> 0 | R73: =MIN($I$13-R71,MAX($I$7*$G72-SUM($G$73:Q73),0)) -> 0
C74: N.º de aulas de primaria que han podido transformarse en cursos de recepción | E74: 10000 | F74: =E74*0.065371 -> 653.71 | G74: Tenemos que dar por sentado que al menos un tercio de lo que pensamos que son aulas listas para su uso resultarán no ser lugares aptos, así que propongo que presupuestemos aulas prefabricadas para esos casos. | H74: =(H71+H73)*$E74 -> 500000 | I74: 500000 | J74: 500000 | K74: 500000 | L74: 215187.929 | M74: 0 | N74: 0 | O74: 0 | P74: 0 | Q74: 0 | R74: =SUM(H74:L74) -> 2215187.929 | S74: El Ministerio de Educación y Formación contempla una tasa de subvención de 5 maloti por alumno para reformar o rehabilitar la infraestructura. Al haber 23 alumnos en un aula = 115 maloti por curso de recepción.
B75: 1.1.3 Suministro de instalaciones de WASH adaptadas a los niños | C75: ê | D75: Porcentaje de aulas disponibles que necesitan instalaciones de WASH | G75: =I20 -> 0.75 | R75: =SUM(G75:L75) -> 0.75
C76: ê | D76: Porcentaje de aulas nuevas que necesitan instalaciones de WASH | G76: =I21 -> 0.9 | R76: =SUM(G76:L76) -> 0.9
C77: ê | D77: Percentage of existing RCs needing WASH facilities | G77: =I16 -> 0 | R77: =SUM(G77:L77) -> 0
C78: ê | G78: Número de instalaciones de WASH que hay que construir | H78: =$G$76*(H$61+H$66)+IF(H$55<=$D$7,$G77*IFERROR($I$5/$D$7,0),0)+IF(H$55<=$D$8,$G$75*IFERROR($I$7/$D$8,0),0) -> 408.5440828 | I78: 448.4197848 | J78: 135 | K78: 52.41849925 | L78: 0 | M78: 0 | N78: 0 | O78: 0 | P78: 0 | Q78: 0
C79: N.º de instalaciones de WASH (retrete + lavabo) que se han construido | D79: 0 | E79: 20000 | F79: =E79*0.065371 -> 1307.42 | G79: Para cada aula nueva o remodelada | H79: =H78*$E79 -> 8170881.657 | I79: 8968395.695 | J79: 2700000 | K79: 1048369.985 | L79: 0 | M79: 0 | N79: 0 | O79: 0 | P79: 0 | Q79: 0 | R79: =SUM(H79:L79) -> 20887647.34 | S79: Parece que la mayor parte de las escuelas de primaria cuenta con instalaciones de WASH que también son apropiadas para niños de 5 años. Por eso, podríamos obviar esta parte.
C80: ê | D80: % of existing RCs needing furniture sets | G80: =I17 -> 0 | R80: =SUM(G80:L80) -> 0
A81: 1.2 Proporcionar a todas las aulas de recepción el mobiliario adecuado | B81: 1.2.1 Paquete de mobiliario mínimo imprescindible para las aulas de recepción | C81: ê | D81: Porcentaje de aulas disponibles que necesitan lotes de mobiliario | G81: =I22 -> 0.9 | R81: =SUM(G81:L81) -> 0.9
C82: ê | G82: Número de lotes de mobiliario que se deben adquirir | H82: =H$61+H$66+IF(H$55<=$D$7,$G80*IFERROR($I$5/$D$7,0),0)+IF(H$55<=$D$8,$G$81*IFERROR($I$7/$D$8,0),0) -> 470.2528994 | I82: 514.5592349 | J82: 150 | K82: 58.24277695 | L82: 0 | M82: 0 | N82: 0 | O82: 0 | P82: 0 | Q82: 0
C83: N.º de aulas de recepción a las que se enviará mobiliario | E83: 3500 | F83: =E83*0.065371 -> 228.7985 | H83: =H82*$E83 -> 1645885.148 | I83: 1800957.322 | J83: 525000 | K83: 203849.7193 | L83: 0 | M83: 0 | N83: 0 | O83: 0 | P83: 0 | Q83: 0 | R83: =SUM(H83:L83) -> 4175692.189 | S83: El Ministerio de Educación y Formación está estudiando las estimaciones del costo. Las estimaciones se basan en el precio del mobiliario de primaria.
A84: 1.3 Dotación de materiales de enseñanza y aprendizaje de calidad | B84: 1.3.1 Provisión de paquetes completos de materiales de enseñanza, aprendizaje y juego | C84: ê | D84: Porcentaje de aulas de recepción existentes que necesitan materiales de enseñanza y aprendizaje | G84: =I18 -> 0 | R84: =SUM(G84:L84) -> 0
C85: ê | G85: Número de lotes de materiales nuevos de enseñanza y aprendizaje que se deben adquirir | H85: =H$61+H$66+IF(H$55<=$D$7,$G84*IFERROR($I$5/$D$7,0),0)+IF(H$55<=$D$8,IFERROR($I$7/$D$8,0),0) -> 494.7254438 | I85: 539.0317793 | J85: 150 | K85: 58.24277695 | L85: 0 | M85: 0 | N85: 0 | O85: 0 | P85: 0 | Q85: 0
C86: ê | D86: Tasa anual de sustitución | G86: 0.05 | R86: =SUM(G86:L86) -> 0.05
C87: ê | G87: Número de lotes de materiales de enseñanza y aprendizaje que hay que sustituir | H87: =$G86*SUM(G85:$G85) -> 0 | I87: =$G86*SUM($G85:H85) -> 24.73627219 | J87: =$G86*SUM($G85:I85) -> 51.68786115 | K87: =$G86*SUM($G85:J85) -> 59.18786115 | L87: =$G86*SUM($G85:K85) -> 62.1 | M87: =$G86*SUM($G85:L85) -> 62.1 | N87: =$G86*SUM($G85:M85) -> 62.1 | O87: =$G86*SUM($G85:N85) -> 62.1 | P87: =$G86*SUM($G85:O85) -> 62.1 | Q87: =$G86*SUM($G85:P85) -> 62.1
C88: N.º de aulas de recepción a las que se enviarán materiales de enseñanza y aprendizaje | E88: 4500 | F88: =E88*0.065371 -> 294.1695 | G88: Luc, en este apartado damos por hecho que todos los años hay que sustituir parte de los materiales. | H88: =(H85+H87)*$E88 -> 2226264.497 | I88: 2536956.232 | J88: 907595.3752 | K88: 528437.8714 | L88: 279450 | M88: 279450 | N88: 279450 | O88: 279450 | P88: 279450 | Q88: 279450 | R88: =SUM(H88:L88) -> 6478703.975 | S88: El Ministerio de Educación y Formación ofrecerá información detallada (como su costo) sobre los paquetes completos de materiales de enseñanza y aprendizaje para los cursos de recepción.
B89: 1.3.2 Abastecimiento de equipamientos para jugar al aire libre | C89: ê | D89: Porcentaje de aulas de recepción existentes que necesitan equipamientos para jugar al aire libre | G89: =I19 -> 0 | R89: =SUM(G89:L89) -> 0
C90: ê | G90: Número de equipamientos para jugar al aire libre que se deben adquirir | H90: =H$61+H$66+IF(H$55<=$D$7,$G89*IFERROR($I$5/$D$7,0),0)+IF(H$55<=$D$8,IFERROR($I$7/$D$8,0),0) -> 494.7254438 | I90: 539.0317793 | J90: 150 | K90: 58.24277695 | L90: 0 | M90: 0 | N90: 0 | O90: 0 | P90: 0 | Q90: 0
C91: N.º de equipamientos para jugar al aire libre | E91: 1500 | F91: =E91*0.065371 -> 98.0565 | H91: =H90*$E91 -> 742088.1657 | I91: 808547.6689 | J91: 225000 | K91: 87364.16542 | L91: 0 | M91: 0 | N91: 0 | O91: 0 | P91: 0 | Q91: 0 | R91: =SUM(H91:L91) -> 1863000 | S91: El Ministerio de Educación y Formación ofrecerá información detallada (como su costo) sobre los paquetes completos de materiales de enseñanza y aprendizaje para los cursos de recepción.
A92: 1.4 Reforzar la capacidad de la fuerza de trabajo del campo de la EPI | B92: 1.4.2 Salario anual de un docente (auxiliar) que se dedique al cuidado y desarrollo en la primera infancia por cada curso de recepción (basado en el salario actual de los docentes de desarrollo en la primera infancia) | C92: ê | G92: Número de nuevas aulas de recepción funcionales | H92: =H$61+H$66+IF(H$55<=$D$8,IFERROR($I$7/$D$8,0),0) -> 494.7254438 | I92: 539.0317793 | J92: 150 | K92: 58.24277695 | L92: 0 | M92: 0 | N92: 0 | O92: 0 | P92: 0 | Q92: 0
C93: ê | G93: Total de aulas de recepción funcionales | H93: =H92+$I$5 -> 734.7254438 | I93: =I92+H93 -> 1273.757223 | J93: =J92+I93 -> 1423.757223 | K93: =K92+J93 -> 1482 | L93: =L92+K93 -> 1482 | M93: 1482 | N93: 1482 | O93: 1482 | P93: 1482 | Q93: 1482
C94: ê | D94: Tasa de abandono de los docentes de desarrollo en la primera infancia | G94: =I24 -> 0.02
C95: ê | G95: Número de docentes nuevos que se requieren | H95: =H92+$G$94*H96 -> 499.5254438 | I95: =I92+$G$94*H103 -> 553.7262881 | J95: 168.8101098 | K95: 77.87668457 | L95: 21.44122947 | M95: 22.61240488 | N95: 24.36015679 | O95: 26.07295365 | P95: 27.75149458 | Q95: 29.04
C96: ê | G96: Docentes de desarrollo en la primera infancia en activo | H96: =$I$5 -> 240 | I96: 240 | J96: 240 | K96: 240 | L96: 240 | M96: 240 | N96: 240 | O96: 240 | P96: 240 | Q96: 240
C97: ê | D97: Contrataciones | E97: Cantidad | F97: =I25 -> 300 | G97: Docentes de desarrollo en la primera infancia con los que se puede contar | H97: =MAX(0,MIN(H95-H98,MAX(0,$F97-SUM($G97:G97)))) -> 300 | I97: =MAX(0,MIN(I95-I98,MAX(0,$F97-SUM($G97:H97)))) -> 0 | J97: =MAX(0,MIN(J95-J98,MAX(0,$F97-SUM($G97:I97)))) -> 0 | K97: =MAX(0,MIN(K95-K98,MAX(0,$F97-SUM($G97:J97)))) -> 0 | L97: =MAX(0,MIN(L95-L98,MAX(0,$F97-SUM($G97:K97)))) -> 0 | M97: =MAX(0,MIN(M95-M98,MAX(0,$F97-SUM($G97:L97)))) -> 0 | N97: =MAX(0,MIN(N95-N98,MAX(0,$F97-SUM($G97:M97)))) -> 0 | O97: =MAX(0,MIN(O95-O98,MAX(0,$F97-SUM($G97:N97)))) -> 0 | P97: =MAX(0,MIN(P95-P98,MAX(0,$F97-SUM($G97:O97)))) -> 0 | Q97: =MAX(0,MIN(Q95-Q98,MAX(0,$F97-SUM($G97:P97)))) -> 0
C98: ê | E98: Tamaño de la cohorte | F98: =I27 -> 60 | G98: Docentes acreditados que acaban de graduarse | H98: =MIN($F$98,H95) -> 60 | I98: =MIN($F$98,I95+H104) -> 60 | J98: 60 | K98: 60 | L98: 60 | M98: 60 | N98: 60 | O98: 60 | P98: 60 | Q98: 29.04
C99: ê | E99: Cantidad | F99: =I26 -> 300 | G99: Docentes de primaria con los que se puede contar | H99: =MAX(0,MIN(H95-H98-H97,MAX(0,$F99-SUM($G99:G99)))) -> 139.5254438 | I99: =MAX(0,MIN(I95-I98-I97,MAX(0,$F99-SUM($G99:H99)))) -> 160.4745562 | J99: =MAX(0,MIN(J95-J98-J97,MAX(0,$F99-SUM($G99:I99)))) -> 0 | K99: =MAX(0,MIN(K95-K98-K97,MAX(0,$F99-SUM($G99:J99)))) -> 0 | L99: =MAX(0,MIN(L95-L98-L97,MAX(0,$F99-SUM($G99:K99)))) -> 0 | M99: =MAX(0,MIN(M95-M98-M97,MAX(0,$F99-SUM($G99:L99)))) -> 0 | N99: =MAX(0,MIN(N95-N98-N97,MAX(0,$F99-SUM($G99:M99)))) -> 0 | O99: =MAX(0,MIN(O95-O98-O97,MAX(0,$F99-SUM($G99:N99)))) -> 0 | P99: =MAX(0,MIN(P95-P98-P97,MAX(0,$F99-SUM($G99:O99)))) -> 0 | Q99: =MAX(0,MIN(Q95-Q98-Q97,MAX(0,$F99-SUM($G99:P99)))) -> 0
C100: ê | E100: Año en el que empezarán a graduarse los docentes que cursan un grado universitario | G100: =I29 -> 2023
C101: ê | E101: Tamaño de la cohorte | F101: =I28 -> 50 | G101: Docentes con diplomatura que acaban de graduarse | H101: =IF(H$56>=$G$100,MIN($F101,MAX(H95+G104-H98,0)),0) -> 0 | I101: 0 | J101: 0 | K101: 50 | L101: 50 | M101: 50 | N101: 50 | O101: 50 | P101: 32.1767657 | Q101: 0
C102: ê | G102: Total de docentes contratados | H102: =SUM(H97:H101) -> 499.5254438 | I102: =SUM(I97:I101) -> 220.4745562 | J102: 60 | K102: 110 | L102: 110 | M102: 110 | N102: 110 | O102: 110 | P102: 92.1767657 | Q102: 29.04
C103: ê | G103: Número total de docentes | H103: =H102+H96*(1-$G$94)-H110 -> 734.7254438 | I103: =H103*(1-$G$94)+I102-I110+H110 -> 940.5054911 | J103: 981.6953813 | K103: 1072.061474 | L103: 1130.620244 | M103: 1218.007839 | N103: 1303.647683 | O103: 1387.574729 | P103: 1452 | Q103: 1452
C104: ê | G104: Falta de docentes | H104: =H95-H102 -> 0 | I104: =MAX(I95-I102+H104,0) -> 333.2517319 | J104: 442.0618418 | K104: 409.9385263 | L104: 321.3797558 | M104: 233.9921607 | N104: 148.3523175 | O104: 64.42527112 | P104: 0 | Q104: 0
C105: ê | G105: Número total de docentes que reciben el salario correspondiente al trabajo en desarrollo en la primera infancia | H105: =H96*(1-$G$94)+H97+H98 -> 595.2 | I105: =I97+I98+H105*(1-$G$94)-I110 -> 643.296 | J105: 690.43008 | K105: 736.6214784 | L105: 751.8890488 | M105: 766.8512679 | N105: 781.5142425 | O105: 795.8839576 | P105: 809.9662785 | Q105: 792.8069529
C106: ê | G106: Número total de docentes que reciben el salario correspondiente al trabajo en educación primaria | H106: =H101+H99 -> 139.5254438 | I106: =I101+I99+H106*(1-$G$94)+H110 -> 297.2094911 | J106: 291.2653013 | K106: 335.4399953 | L106: 378.7311954 | M106: 451.1565715 | N106: 522.13344 | O106: 591.6907712 | P106: 642.0337215 | Q106: 659.1930471
C107: ê | D107: Año en el que los docentes de desarrollo en la primera infancia pueden mejorar su categoría | G107: =D24 -> 2024
C108: ê | D108: Proporción de docentes que querrán avanzar de categoría | G108: 0.75
C109: ê | D109: Máximo de docentes al año que pueden mejorar su capacitación y obtener un grado universitario | G109: 30
C110: ê | G110: Número de docentes que participan en capacitación para mejorar su categoría | H110: =IF(H56<$G$107,0,MIN($G$109,MAX(0,$G$108*($H$96+$F$97)-SUM(G110:$G$110)))) -> 0 | I110: =IF(I56<$G$107,0,MIN($G$109,MAX(0,$G$108*($H$96+$F$97)-SUM($G110:H$110)))) -> 0 | J110: =IF(J56<$G$107,0,MIN($G$109,MAX(0,$G$108*($H$96+$F$97)-SUM($G110:I$110)))) -> 0 | K110: =IF(K56<$G$107,0,MIN($G$109,MAX(0,$G$108*($H$96+$F$97)-SUM($G110:J$110)))) -> 0 | L110: =IF(L56<$G$107,0,MIN($G$109,MAX(0,$G$108*($H$96+$F$97)-SUM($G110:K$110)))) -> 30 | M110: =IF(M56<$G$107,0,MIN($G$109,MAX(0,$G$108*($H$96+$F$97)-SUM($G110:L$110)))) -> 30 | N110: =IF(N56<$G$107,0,MIN($G$109,MAX(0,$G$108*($H$96+$F$97)-SUM($G110:M$110)))) -> 30 | O110: =IF(O56<$G$107,0,MIN($G$109,MAX(0,$G$108*($H$96+$F$97)-SUM($G110:N$110)))) -> 30 | P110: =IF(P56<$G$107,0,MIN($G$109,MAX(0,$G$108*($H$96+$F$97)-SUM($G110:O$110)))) -> 30 | Q110: =IF(Q56<$G$107,0,MIN($G$109,MAX(0,$G$108*($H$96+$F$97)-SUM($G110:P$110)))) -> 30
C111: ê | D111: Aumento anual de los salarios del cuerpo docente | G111: =I32 -> 0.02
C112: ê | E112: Punto de partida | F112: =E114 -> 23000 | G112: Salario de los docentes de desarrollo en la primera infancia con los que se puede contar | H112: =E114 -> 23000 | I112: =H112*(1+$G$111) -> 23460 | J112: 23929.2 | K112: 24407.784 | L112: 24895.93968 | M112: 25393.85847 | N112: 25901.73564 | O112: 26419.77036 | P112: 26948.16576 | Q112: 27487.12908
C113: ê | E113: Punto de partida | F113: =E115 -> 98072 | G113: Salario de los docentes de primaria con los que se puede contar | H113: =E115 -> 98072 | I113: =H113*(1+$G$111) -> 100033.44 | J113: 102034.1088 | K113: 104074.791 | L113: 106156.2868 | M113: 108279.4125 | N113: 110445.0008 | O113: 112653.9008 | P113: 114906.9788 | Q113: 117205.1184
C114: N.º de docentes del ámbito del cuidado y desarrollo de la primera infancia que percibirán un salario anual | E114: 23000 | F114: =E114*0.065371 -> 1503.533 | G114: Véase la nota cuando llegue el momento de trabajar en estas opciones. La estimación de costos se guiará por las opciones en materia de construcción que se han expuesto anteriormente en relación con el verdadero número de docentes que forman parte del sistema. | H114: =H112*H105 -> 13689600 | I114: =I112*I105 -> 15091724.16 | J114: 16521439.47 | K114: 17979297.93 | L114: 18718984.41 | M114: 19473312.57 | N114: 20242575.31 | O114: 21027071.39 | P114: 21827105.54 | Q114: 21791987.05 | R114: =SUM(H114:L114) -> 82001045.97 | S114: Es el sueldo ACTUAL de los docentes del ámbito del cuidado y desarrollo de la primera infancia. El personal de la Unidad de Cuidado y Desarrollo de la Primera Infancia del Ministerio de Educación y Formación ha discutido y propuesto un salario anual de 23.000 ZAR (también se percibe un extra equivalente a un decimotercer mes de sueldo, etc.). También es conveniente pensar en qué otros complementos o dietas podrían ofrecerse a los docentes que trabajan en zonas rurales en las que las condiciones son difíciles. De momento, la mitad de los salarios de los docentes del ámbito del cuidado y desarrollo de la primera infancia = el salario actual.
B115: 1.4.2 Salario anual de un docente (auxiliar) que se dedique al cuidado y desarrollo en la primera infancia por cada curso de recepción (basado en el salario de los docentes de primaria) | C115: N.º de docentes del ámbito del cuidado y desarrollo de la primera infancia que percibirán un salario anual | E115: 98072 | F115: =E115*0.065371 -> 6411.064712 | H115: =H113*H106 -> 13683539.32 | I115: =I113*I106 -> 29730887.8 | J115: 29718995.44 | K115: 34910847.39 | L115: 40204697.39 | M115: 48850968.52 | N115: 57667028.19 | O115: 66656273.45 | P115: 73774155.23 | Q115: 77260799.12 | R115: =SUM(H115:L115) -> 148248967.4 | S115: Según el análisis del sector educativo, el sueldo promedio de los docentes de primaria ascendía a 98.072 ZAR en 2018. De momento, la mitad de los salarios de los docentes del ámbito del cuidado y desarrollo de la primera infancia = el salario mejorado.
B116: 1.4.2 Curso de orientación sobre las aulas de recepción para la dirección de las escuelas | C116: N.º de directores de escuela que participarán en un curso de orientación de cinco días (en el momento de presentar o inaugurar el curso de recepción) | E116: 2500 | F116: =E116*0.065371 -> 163.4275 | G116: Hay que seguir las situaciones hipotéticas de ampliación en cuanto al número anual de administradores que reciben formación. | H116: =$E116*(H92+H97) -> 1986813.609 | I116: =$E116*I92 -> 1347579.448 | J116: 375000 | K116: 145606.9424 | L116: 0 | M116: 0 | N116: 0 | O116: 0 | P116: 0 | Q116: 0 | R116: =SUM(H116:L116) -> 3855000 | S116: Hay que confirmar con el Ministerio de Educación y Formación el formato (y el costo por unidad) de los cursos de orientación para las directivas de las escuelas. ¿Cinco días? ¿Tres días? ¿En el plano nacional o del distrito? ¿Estimación del costo?
B117: 1.4.3 Contratación de otro inspector más de cuidado y desarrollo de la primera infancia por distrito | C117: ê | D117: Año en el que se contrata a más inspectores | G117: =D30 -> 2021
C118: ê | G118: Número de inspectores extra | H118: =IF(H$56>=$G117,$D$121,0) -> 0 | I118: 1 | J118: 1 | K118: 1 | L118: 1 | M118: 1 | N118: 1 | O118: 1 | P118: 1 | Q118: 1
C119: ê | D119: Aumento anual de los salarios de los inspectores | G119: 0.02
C120: ê | G120: Salario anual de los inspectores | H120: =E121 -> 100000 | I120: =H120*(1+$G$119) -> 102000 | J120: 104040 | K120: 106120.8 | L120: 108243.216 | M120: 110408.0803 | N120: 112616.2419 | O120: 114868.5668 | P120: 117165.9381 | Q120: 119509.2569
C121: N.º de inspectores que es necesario contratar y que recibirán un sueldo anual | D121: 1 | E121: 100000 | F121: =E121*0.065371 -> 6537.1 | G121: Gasto recurrente a lo largo de cinco años. Lo ideal es que los contratemos durante el año 1. | H121: =(H118+10)*H120 -> 1000000 | I121: =(I118+10)*I120 -> 1122000 | J121: 1144440 | K121: 1167328.8 | L121: 1190675.376 | M121: 1214488.884 | N121: 1238778.661 | O121: 1263554.234 | P121: 1288825.319 | Q121: 1314601.825 | R121: =SUM(G121:L121) -> 5624444.176 | S121: ¿Basta con contratar a dos inspectores más por distrito para que se encarguen de los cursos de recepción? ¿Cuál es su salario anual? Hay que comprobarlo.
B122: 1.4.3 Capacitación de los inspectores de cuidado y desarrollo de la primera infancia (empleados con antigüedad e incorporaciones recientes) | C122: N.º de inspectores que hay que capacitar | E122: 2500 | F122: =E122*0.065371 -> 163.4275 | G122: ¿Se trata de un gasto puntual? | H122: =(IF(H55=1,10,0)+(H118-SUM(G118)))*$E$122 -> 25000 | I122: 2500 | J122: 0 | K122: 0 | L122: 0 | M122: 0 | N122: 0 | O122: 0 | P122: 0 | Q122: 0 | R122: =SUM(G122:L122) -> 27500
B123: 1.4.4 Formación en el empleo para desarrollar la capacidad de todos los docentes que empiezan a trabajan en cursos de recepción | C123: ê | D123: Duración en días de la actividad formativa LARGA en el empleo | G123: =D34 -> 20
C124: ê | G124: Número de docentes que participan en la actividad formativa LARGA en el empleo | H124: =H99 -> 139.5254438 | I124: =I99 -> 160.4745562 | J124: 0 | K124: 0 | L124: 0 | M124: 0 | N124: 0 | O124: 0 | P124: 0 | Q124: 0
C125: N.º de docentes que participarán en un taller de 20 días sobre EPI | E125: =G123*500 -> 10000 | F125: =E125*0.065371 -> 653.71 | G125: Hay que seguir las situaciones hipotéticas de ampliación en cuanto al número anual de administradores que reciben formación. | H125: =H124*$E125 -> 1395254.438 | I125: 1604745.562 | J125: 0 | K125: 0 | L125: 0 | M125: 0 | N125: 0 | O125: 0 | P125: 0 | Q125: 0 | R125: =SUM(H125:L125) -> 3000000
B126: 1.4.4 Formación en el empleo para desarrollar la capacidad de todos los docentes de cursos de recepción que ya formaban parte del sistema o se acaban de incorporar | C126: ê | D126: Porcentaje anual de docentes que recibe formación en el empleo | G126: =D32 -> 0.2
C127: ê | D127: Duración en días de la actividad formativa habitual en el empleo | G127: =D33 -> 5
C128: ê | G128: Número de docentes que participan en la actividad formativa breve en el empleo | H128: =H97 -> 300 | I128: =H98+$G$126*H103 -> 206.9450888 | J128: =I98+$G$126*I103 -> 248.1010982 | K128: 256.3390763 | L128: 274.4122947 | M128: 286.1240488 | N128: 303.6015679 | O128: 320.7295365 | P128: 337.5149458 | Q128: 350.4
C129: N.º de docentes que participarán en un taller de cinco días sobre EPI | E129: =G127*500 -> 2500 | F129: =E129*0.065371 -> 163.4275 | G129: Hay que seguir las situaciones hipotéticas de ampliación en cuanto al número anual de administradores que reciben formación. | H129: =H128*$E129 -> 750000 | I129: 517362.7219 | J129: 620252.7456 | K129: 640847.6907 | L129: 686030.7368 | M129: 715310.1221 | N129: 759003.9197 | O129: 801823.8413 | P129: 843787.3644 | Q129: 876000 | R129: =SUM(H129:L129) -> 3214493.895 | S129: Supuesto: el 50% de los docentes reorienta su práctica y necesita una actividad formativa en el empleo de un mes de duración. Supuesto: el 50% de los docentes necesita un curso de actualización de una semana de duración.
B130: 1.4.4 Formación en el empleo para desarrollar la capacidad de todos los docentes que empiezan a trabajan en cursos de recepción | C130: ê | D130: Duración en días de la actividad formativa breve en el empleo | G130: 2
C131: ê | D131: Año en el que entrará en vigor el nuevo plan de estudios | G131: 2021
C132: ê | G132: Número de docentes que participan en la actividad formativa breve en el empleo | H132: =IF(H56<$G$131,0,IF(H56=$G$131,H103,H102)) -> 0 | I132: =IF(I56<$G$131,0,IF(I56=$G$131,I103,I102)) -> 940.5054911 | J132: 60 | K132: 110 | L132: 110 | M132: 110 | N132: 110 | O132: 110 | P132: 92.1767657 | Q132: 29.04
C133: N.º de docentes que participarán en un taller de dos días sobre EPI | E133: =G130*500 -> 1000 | F133: =E133*0.065371 -> 65.371 | G133: Hay que seguir las situaciones hipotéticas de ampliación en cuanto al número anual de administradores que reciben formación. | H133: =H132*$E133 -> 0 | I133: 940505.4911 | J133: 60000 | K133: 110000 | L133: 110000 | M133: 110000 | N133: 110000 | O133: 110000 | P133: 92176.7657 | Q133: 29040 | R133: =SUM(H133:L133) -> 1220505.491
B134: 1.4.5 Curso de orientación sobre las aulas de recepción y la EPI para los funcionarios encargados de la planificación y las normas en los distritos | C134: ê | D134: Año en el que se capacitará al personal de los distritos | G134: 2020
C135: N.º de trabajadores del sector educativo en los distritos que participarán en un curso de orientación sobre EPI (¿dos días?) | E135: 1000 | F135: =E135*0.065371 -> 65.371 | G135: Gasto puntual en el año 1 o 2. | H135: =IF(H56=$G$134,$E$135*20,0) -> 20000 | I135: 0 | J135: 0 | K135: 0 | L135: 0 | M135: 0 | N135: 0 | O135: 0 | P135: 0 | Q135: 0 | R135: =SUM(H135:L135) -> 20000 | S135: Hay que confirmar con el Ministerio de Educación y Formación el formato (y el costo por unidad) de los cursos de orientación para trabajadores del sector educativo en los distritos. ¿Cinco días? ¿Tres días? ¿En el plano nacional o del distrito? ¿Estimación del costo?
B136: 1.4.6 Dotación de personal para la dirección de enseñanza preescolar (salario anual) | C136: N.º de directores de EPI | E136: 150000 | F136: =E136*0.065371 -> 9805.65 | G136: Gasto recurrente (salario de los directores de EPI) | H136: =$E$136 -> 150000 | I136: 150000 | J136: 150000 | K136: 150000 | L136: 150000 | M136: 150000 | N136: 150000 | O136: 150000 | P136: 150000 | Q136: 150000 | R136: =SUM(H136:L136) -> 750000
A137: 1.5 Ampliar el programa de alimentación escolar | B137: 1.5.1. Ampliar el programa de alimentación escolar al curso de recepción | C137: ê | D137: Número de niños por curso de recepción | G137: =D13 -> 23
C138: ê | G138: Número de niños que acuden a cursos de recepción | H138: =H103*$G$137 -> 16898.68521 | I138: =I103*$G$137 -> 21631.6263 | J138: 22578.99377 | K138: 24657.41389 | L138: 26004.26562 | M138: 28014.1803 | N138: 29983.8967 | O138: 31914.21876 | P138: 33396 | Q138: 33396
C139: N.º de niños que participan en el programa de alimentación escolar (23 por curso de recepción) cada año | E139: 900 | F139: =E139*0.065371 -> 58.8339 | G139: Gasto recurrente a lo largo de cinco años. | H139: =H138*$E$139 -> 15208816.69 | I139: 19468463.67 | J139: 20321094.39 | K139: 22191672.51 | L139: 23403839.05 | M139: 25212762.27 | N139: 26985507.03 | O139: 28722796.89 | P139: 30056400 | Q139: 30056400 | R139: =SUM(H139:L139) -> 100593886.3 | S139: 5 ZAR por alumno y día (el costo actual del programa de alimentación escolar) y 180 días lectivos al año = 5 × 180 = 900 ZAR por alumno y año. Lo ideal es que aumente hasta los 7 ZAR por alumno y día. | V139: 40 | W139: =T139*U139*V139 -> 0
A140: COSTO TOTAL = | H140: =SUMIF($C61:$C139,"<>ê",H61:H139) -> 146194143.5 | I140: 187313160 | J140: 133768817.4 | K140: 102960733.8 | L140: 84958864.9 | M140: 96006292.36 | N140: 107432343.1 | O140: 119010969.8 | P140: 128311900.2 | Q140: 131758278 | R140: 655195719.6
F141: en USD | H141: =H140*0.065371 -> 9556857.356 | I141: =I140*0.065371 -> 12244848.58 | J141: =J140*0.065371 -> 8744601.364 | K141: =K140*0.065371 -> 6730646.128 | L141: =L140*0.065371 -> 5553845.957 | R141: =SUM(H141:L141) -> 42830799.39
H142: Año 1 2020-2021 | I142: Año 2 2021-2022 | J142: Año 3 2022-2023 | K142: Año 4 2023-2024 | L142: Año 5 2024-2025 | R142: Costo total (ZAR)
F144: Inversión | G144: Infraestructura | H144: =H62+H68+H74+H79 -> 93670881.66 | I144: 112190929.9 | J144: 63200000 | K144: 24845480.76 | L144: 215187.929 | M144: 0 | N144: 0 | O144: 0 | P144: 0 | Q144: 0 | R144: 294122480.2
G145: Equipo | H145: =H83+H88+H91 -> 4614237.811 | I145: 5146461.223 | J145: 1657595.375 | K145: 819651.7562 | L145: 279450 | M145: 279450 | N145: 279450 | O145: 279450 | P145: 279450 | Q145: 279450 | R145: 12517396.16
G146: Inversión total | H146: =SUM(H144:H145) -> 98285119.47 | I146: =SUM(I144:I145) -> 117337391.1 | J146: 64857595.38 | K146: 25665132.52 | L146: 494637.929 | M146: 279450 | N146: 279450 | O146: 279450 | P146: 279450 | Q146: 279450 | R146: 306639876.4
F147: Gastos recurrentes | G147: Salarios | H147: =H114+H115+H136+H121 -> 28523139.32 | I147: 46094611.96 | J147: 47534874.91 | K147: 54207474.13 | L147: 60264357.18 | M147: 69688769.97 | N147: 79298382.16 | O147: 89096899.07 | P147: 97040086.09 | Q147: 100517388 | R147: 236624457.5
G148: Capacitación | H148: =H135+H133+H129+H122+H116 -> 2781813.609 | I148: 2807947.661 | J148: 1055252.746 | K148: 896454.633 | L148: 796030.7368 | M148: 825310.1221 | N148: 869003.9197 | O148: 911823.8413 | P148: 935964.1301 | Q148: 905040 | R148: 8337499.386
G149: Programa de alimentación escolar | H149: =H139 -> 15208816.69 | I149: =I139 -> 19468463.67 | J149: 20321094.39 | K149: 22191672.51 | L149: 23403839.05 | M149: 25212762.27 | N149: 26985507.03 | O149: 28722796.89 | P149: 30056400 | Q149: 30056400 | R149: 100593886.3
G150: Gastos recurrentes totales | H150: =SUM(H147:H149) -> 46513769.62 | I150: 68371023.29 | J150: 68911222.05 | K150: 77295601.27 | L150: 84464226.97 | M150: 95726842.36 | N150: 107152893.1 | O150: 118731519.8 | P150: 128032450.2 | Q150: 131478828 | R150: 345555843.2
G151: Total general | H151: =H150+H146 -> 144798889.1 | I151: =I150+I146 -> 185708414.4 | J151: 133768817.4 | K151: 102960733.8 | L151: 84958864.9 | M151: 96006292.36 | N151: 107432343.1 | O151: 119010969.8 | P151: 128311900.2 | Q151: 131758278 | R151: 652195719.6
G153: Total como porcentaje del presupuesto educativo de 2018-2019 | H153: =H151/1000000/3128 -> 0.04629120495 | I153: 0.0593696977 | J153: 0.04276496721 | K153: 0.03291583561 | L153: 0.02716076244 | M153: 0.03069254871 | N153: 0.03434537823 | O153: 0.03804698523 | P153: 0.04102042846 | Q153: 0.04212221164 | R153: 0.2085024679
G154: Presupuesto actual del desarrollo en la primera infancia como porcentaje del presupuesto educativo | H154: =240*$E$114/3128/1000000 -> 0.001764705882 | I154: 0.001764705882 | J154: 0.001764705882 | K154: 0.001764705882 | L154: 0.001764705882 | M154: 0.001764705882 | N154: 0.001764705882 | O154: 0.001764705882 | P154: 0.001764705882 | Q154: 0.001764705882 | R154: 0.001764705882
G156: 9080
G157: 20192020 | H157: 20202021 | I157: 20212022 | J157: 20222023 | K157: 20232024 | L157: 20242025 | M157: 20252026 | N157: 20262027 | O157: 20272028 | P157: 20282029 | Q157: 20292030
G158: 2019 | H158: 2020 | I158: 2021 | J158: 2022 | K158: 2023 | L158: 2024 | M158: 2025 | N158: 2026 | O158: 2027 | P158: 2028 | Q158: 2029
F159: Población en miles (Fuente: variante media poblacional establecida por las Naciones Unidas y actualizada en 2017) | G159: 56.647 | H159: 57.107 | I159: 57.567 | J159: 57.726 | K159: 57.681 | L159: 57.584 | M159: 57.623 | N159: 57.609 | O159: 57.528 | P159: 57.393 | Q159: 57.213
G160: 20192020 | H160: 20202021 | I160: 20212022 | J160: 20222023 | K160: 20232024 | L160: 20242025 | M160: 20252026 | N160: 20262027 | O160: 20272028 | P160: 20282029 | Q160: 20292030
F161: Matriculación en los cursos de recepción | G161: =23*240 -> 5520 | H161: =H138 -> 16898.68521 | I161: =I138 -> 21631.6263 | J161: =J138 -> 22578.99377 | K161: 24657.41389 | L161: 26004.26562 | M161: 28014.1803 | N161: 29983.8967 | O161: 31914.21876 | P161: 33396 | Q161: =Q138 -> 33396
C162: Crecimiento anual de las matriculaciones en el sector privado | D162: 0.05 | F162: Matriculación en el sector privado | G162: =G156 -> 9080 | H162: =G162*(1+$D$162) -> 9534 | I162: =H162*(1+$D$162) -> 10010.7 | J162: 10511.235 | K162: 11036.79675 | L162: 11588.63659 | M162: 12168.06842 | N162: 12776.47184 | O162: 13415.29543 | P162: 14086.0602 | Q162: 14790.36321
F163: Matriculación total | G163: =23*240+G156 -> 14600 | H163: =H138+H162 -> 26432.68521 | I163: 31642.3263 | J163: 33090.22877 | K163: 35694.21064 | L163: 37592.9022 | M163: 40182.24872 | N163: 42760.36854 | O163: 45329.51419 | P163: 47482.0602 | Q163: 48186.36321
F164: Matriculación en cursos de recepción como % de la población de 5 años | G164: =G161/G$159/1000 -> 0.09744558406 | H164: =H161/H$159/1000 -> 0.2959126763 | I164: =I161/I$159/1000 -> 0.3757643493 | J164: =J161/J$159/1000 -> 0.3911407991 | K164: 0.42747896 | L164: 0.451588386 | M164: 0.4861631693 | N164: 0.5204724383 | O164: 0.5547597477 | P164: 0.581882808 | Q164: 0.5837134917
F165: Tasa bruta de matriculación | G165: =G163/G$159/1000 -> 0.2577365086 | H165: =H163/H$159/1000 -> 0.4628624373 | I165: =I163/I$159/1000 -> 0.5496608525 | J165: =J163/J$159/1000 -> 0.5732291995 | K165: 0.6188209401 | L165: 0.6528358955 | M165: 0.697330037 | N165: 0.7422515325 | O165: 0.7879556771 | P165: 0.8273144844 | Q165: 0.8422275219
G167: 20192020 | H167: 20202021 | I167: 20212022 | J167: 20222023 | K167: 20232024 | L167: 20242025 | M167: 20252026 | N167: 20262027 | O167: 20272028 | P167: 20282029 | Q167: 20292030
D168: Porcentaje de niños de 5 años que se benefician de: | F168: Cursos de recepción | G168: =G164 -> 0.09744558406 | H168: 0.2959126763 | I168: 0.3757643493 | J168: 0.3911407991 | K168: 0.42747896 | L168: 0.451588386 | M168: 0.4861631693 | N168: 0.5204724383 | O168: 0.5547597477 | P168: 0.581882808 | Q168: 0.5837134917
F169: Matriculación en el sector privado | G169: =G162/G159/1000 -> 0.1602909245 | H169: =H162/H159/1000 -> 0.166949761 | I169: 0.1738965032 | J169: 0.1820884004 | K169: 0.19134198 | L169: 0.2012475095 | M169: 0.2111668677 | N169: 0.2217790942 | O169: 0.2331959295 | P169: 0.2454316764 | Q169: 0.2585140302
F170: No están matriculados | G170: =1-G168-G169 -> 0.7422634914 | H170: 0.5371375627 | I170: 0.4503391475 | J170: 0.4267708005 | K170: 0.3811790599 | L170: 0.3471641045 | M170: 0.302669963 | N170: 0.2577484675 | O170: 0.2120443229 | P170: 0.1726855156 | Q170: 0.1577724781

Sheet Amp. cursos recepción (5 años)
B3: Características de la situación hipotética | G3: Supuestos
B5: Años que durará la ampliación | D5: 5 | F5: Número de escuelas que disponen de un curso de recepción | I5: =Overview!D35 -> 240
F6: Número de escuelas sin un curso de recepción | I6: =Overview!D38 -> 1242
B7: Años que se tardará en lograr que los cursos de recepción existentes se adecúen a las normas | D7: 2 | F7: Número de escuelas con aulas disponibles para transformarse en clases de recepción | I7: =Overview!D40 -> 489.4508876
B8: Años que se tardará en acondicionar las aulas disponibles para que puedan usarse | D8: 2 | F8: Número de aulas que hay que construir | I8: =I6-I7 -> 752.5491124
B10: Años durante los que se instalarán aulas prefabricadas | D10: 3 | F10: Número de aulas prefabricadas que se pueden instalar cada año | I10: 75
B11: Años que transcurrirán hasta que empiecen las construcciones definitivas | D11: 0 | F11: Número de aulas que se pueden construir durante el primer año | I11: 100
F12: Máximo de aulas que se pueden construir en un año | I12: 150
B13: Número de niños por curso de recepción | D13: 23 | F13: Número de aulas que se pueden reformar en un año | I13: 50
F14: Proporción de aulas disponibles que han de reformarse | I14: 0.33
B15: Sustitución de las aulas prefabricadas iniciales por aulas permanentes | D15: No | F15: Porcentaje de aulas de recepción existentes que necesitan: | H15: una reforma | I15: 0.25
F16: Proportion of existing RCs needing: | H16: WASH facilities | I16: 0
F17: Proportion of existing RCs needing: | H17: furniture | I17: 0
F18: Proportion of existing RCs needing: | H18: TLM | I18: 0
F19: Proportion of existing RCs needing: | H19: outdoor play materials | I19: 0
F20: Porcentaje de aulas disponibles que necesitan instalaciones de WASH | I20: 0.75
F21: Porcentaje de aulas nuevas que necesitan instalaciones de WASH | I21: 0.9
F22: Porcentaje de aulas nuevas que necesitan mobiliario | I22: 0.9
B24: Año en el que los docentes de desarrollo en la primera infancia pueden mejorar su categoría | D24: 2024 | F24: Tasa de abandono de los docentes de desarrollo en la primera infancia | I24: 0.02
F25: Número de docentes extra de desarrollo en la primera infancia con los que puede contarse | I25: 300
F26: Número de docentes de primaria con los que puede contarse y a los que puede impartirse capacitación en EPI | I26: 300
F27: Tamaño de la cohorte de docentes de desarrollo en la primera infancia que poseen una acreditación | I27: 60
F28: Tamaño de la cohorte de docentes de desarrollo en la primera infancia que poseen una diplomatura (a partir de 2023) | I28: 50
F29: Año en el que empezarán a graduarse los docentes de desarrollo en la primera infancia que cursan una diplomatura | I29: 2023
B30: Año en el que se contrata a más inspectores | D30: 2021 | F30: Proporción de docentes de desarrollo en la primera infancia en activo que querrán avanzar de categoría | I30: 0.5
F31: Máximo de docentes al año que pueden mejorar su capacitación y obtener una licenciatura | I31: 30
B32: Porcentaje anual de docentes que recibe formación en el empleo | D32: 0.2 | F32: Aumento anual de los salarios del cuerpo docente | I32: 0.02
B33: Duración en días de la actividad formativa breve en el empleo | D33: 5 | F33: Aumento anual de los salarios de los inspectores | I33: 0.02
B34: Duración en días de la actividad formativa larga en el empleo | D34: 20 | F34: Porcentaje de docentes en activo que necesitan participar en la actividad formativa larga en el empleo | I34: 0.35
A36: ="Resultados - Costo total a lo largo de "&D5&" años: "&TEXT(SUM(H140:OFFSET(G140,0,D5))/1000000,"#,##0") & " millones de ZAR" -> Resultados - Costo total a lo largo de 5 años: 636 millones de ZAR
A37: Costos totales | D37: Aulas, docentes y falta de docentes | H37: Matriculación y tasa de matriculación
D54: ="Year when there are enough teachers for all classrooms opened : "& CEILING(IF(Q104=0,IF(P104=0,IF(O104=0,IF(N104=0,IF(M104=0,IF(L104=0,IF(K104=0,IF(J104=0, IF(I104=0,IF(H104=0,H56,I56),J56),K56),L56),M56),N56),O56),P56),Q56),Q56+Q104/(Q101+Q98)),1) -> Year when there are enough teachers for all classrooms opened : 2028
H55: 1 | I55: 2 | J55: 3 | K55: 4 | L55: 5 | M55: 6 | N55: 7 | O55: 8 | P55: 9 | Q55: 10
A56: Ampliación de los cursos de recepción para lograr que todos los centros de primaria tengan uno (a lo largo de cinco años) | H56: 2020 | I56: =H56+1 -> 2021 | J56: =I56+1 -> 2022 | K56: =J56+1 -> 2023 | L56: 2024 | M56: 2025 | N56: 2026 | O56: 2027 | P56: 2028 | Q56: 2029
A57: Objetivo estratégico | B57: Actividades | C57: Unidad de producto | D57: Número de unidades | E57: Costo por unidad (ZAR) | F57: Costo por unidad (USD) | H57: Costo anual (en miles de ZAR) | R57: Costo total de los primeros 5 años (ZAR) | S57: Supuestos
G58: Situaciones hipotéticas de ampliación | H58: ="Año "& H55 & " " & 2019+H55 & " - " & 2020+H55 -> Año 1 2020 - 2021 | I58: Año 2 2021 - 2022 | J58: Año 3 2022 - 2023 | K58: Año 4 2023 - 2024 | L58: Año 5 2024 - 2025 | M58: Año 6 2025 - 2026 | N58: Año 7 2026 - 2027 | O58: Año 8 2027 - 2028 | P58: Año 9 2028 - 2029 | Q58: Año 10 2029 - 2030
A59: 1.1 Garantizar que la infraestructura de las aulas de recepción es segura y está adaptada a los niños | B59: 1.1.1 Construcción de nuevas aulas de recepción | C59: ê | D59: Máximo de aulas prefabricadas que se pueden instalar al año | G59: =I10 -> 75 | R59: =SUM(G59:L59) -> 75
C60: ê | D60: Años durante los que se instalarán aulas prefabricadas | G60: =D10 -> 3 | R60: =SUM(G60:L60) -> 3
C61: ê | G61: Número de aulas prefabricadas que van a instalarse | H61: =IF(H$55<=$G$60,$G$59,0) -> 75 | I61: 75 | J61: 75 | K61: 0 | L61: 0 | M61: 0 | N61: 0 | O61: 0 | P61: 0 | Q61: 0
C62: N.º de aulas de recepción prefabricadas (sin IVA, costos de transporte o emplazamiento) que van a establecerse N.º de aulas de recepción prefabricadas (con IVA, costos de transporte o emplazamiento) que van a establecerse | D62: 758 | E62: 300000 | F62: =E62*0.065371 -> 19611.3 | G62: Podemos presupuestar solo aulas prefabricadas durante los años 1 y 2 y pasar a construir en los años 3-5. Otra opción es presupuestar cinco años con aulas prefabricadas, pero teniendo en cuenta los costos, sinceramente no veo ninguna razón para optar por eso. | H62: =$E62*H61 -> 22500000 | I62: =$E62*I61 -> 22500000 | J62: =$E62*J61/1000000 -> 22.5 | K62: 0 | L62: 0 | M62: 0 | N62: 0 | O62: 0 | P62: 0 | Q62: 0 | R62: =SUM(H62:L62) -> 45000022.5 | S62: Es justo lo que cuesta un aula prefabricada de 7 x 7 metros con espacio para un máximo de 50 alumnos de las que elabora Kwikspace, una empresa sudafricana. El precio incluye una estimación de los impuestos (IVA), el transporte y el posible emplazamiento.
C63: ê | D63: Número de edificaciones en el primer año | G63: =I11 -> 100 | R63: =SUM(G63:L63) -> 100
C64: ê | D64: Máximo de edificaciones al año | G64: =I12 -> 150 | R64: =SUM(G64:L64) -> 150
C65: ê | D65: Tasa de crecimiento del número de edificaciones al año | G65: =IF(incr_rate(G63,($D$5-$D$11),I8-SUM(H61:Q61))<0,0, incr_rate(G63,($D$5-$D$11),I8-SUM(H61:Q61))) -> 0.02682036408 | R65: =SUM(G65:L65) -> 0.02682036408
C66: ê | G66: Número de edificaciones nuevas | H66: =IF(H$55<=$D$11,0, IF($G$63*(1+$G$65)^(G$55-$D$11)<=$G$64, IF(H$55>$D$5,0,$G$63*(1+$G$65)^(G$55-$D$11)), MIN($G$64,MAX(0,$I$8-SUM($H$61:$Q$61)-SUM($G66:G$66))))) -> 100 | I66: =IF(I$55<=$D$11,0, IF($G$63*(1+$G$65)^(H$55-$D$11)<=$G$64, IF(I$55>$D$5,0,$G$63*(1+$G$65)^(H$55-$D$11)), MIN($G$64,MAX(0,$I$8-SUM($H$61:$Q$61)-SUM($G66:H$66))))) -> 102.6820364 | J66: =IF(J$55<=$D$11,0, IF($G$63*(1+$G$65)^(I$55-$D$11)<=$G$64, IF(J$55>$D$5,0,$G$63*(1+$G$65)^(I$55-$D$11)), MIN($G$64,MAX(0,$I$8-SUM($H$61:$Q$61)-SUM($G66:I$66))))) -> 105.436006 | K66: =IF(K$55<=$D$11,0, IF($G$63*(1+$G$65)^(J$55-$D$11)<=$G$64, IF(K$55>$D$5,0,$G$63*(1+$G$65)^(J$55-$D$11)), MIN($G$64,MAX(0,$I$8-SUM($H$61:$Q$61)-SUM($G66:J$66))))) -> 108.2638381 | L66: =IF(L$55<=$D$11,0, IF($G$63*(1+$G$65)^(K$55-$D$11)<=$G$64, IF(L$55>$D$5,0,$G$63*(1+$G$65)^(K$55-$D$11)), MIN($G$64,MAX(0,$I$8-SUM($H$61:$Q$61)-SUM($G66:K$66))))) -> 111.1675136 | M66: =IF(M$55<=$D$11,0, IF($G$63*(1+$G$65)^(L$55-$D$11)<=$G$64, IF(M$55>$D$5,0,$G$63*(1+$G$65)^(L$55-$D$11)), MIN($G$64,MAX(0,$I$8-SUM($H$61:$Q$61)-SUM($G66:L$66))))) -> 0 | N66: =IF(N$55<=$D$11,0, IF($G$63*(1+$G$65)^(M$55-$D$11)<=$G$64, IF(N$55>$D$5,0,$G$63*(1+$G$65)^(M$55-$D$11)), MIN($G$64,MAX(0,$I$8-SUM($H$61:$Q$61)-SUM($G66:M$66))))) -> 0 | O66: =IF(O$55<=$D$11,0, IF($G$63*(1+$G$65)^(N$55-$D$11)<=$G$64, IF(O$55>$D$5,0,$G$63*(1+$G$65)^(N$55-$D$11)), MIN($G$64,MAX(0,$I$8-SUM($H$61:$Q$61)-SUM($G66:N$66))))) -> 0 | P66: =IF(P$55<=$D$11,0, IF($G$63*(1+$G$65)^(O$55-$D$11)<=$G$64, IF(P$55>$D$5,0,$G$63*(1+$G$65)^(O$55-$D$11)), MIN($G$64,MAX(0,$I$8-SUM($H$61:$Q$61)-SUM($G66:O$66))))) -> 0 | Q66: =IF(Q$55<=$D$11,0, IF($G$63*(1+$G$65)^(P$55-$D$11)<=$G$64, IF(Q$55>$D$5,0,$G$63*(1+$G$65)^(P$55-$D$11)), MIN($G$64,MAX(0,$I$8-SUM($H$61:$Q$61)-SUM($G66:P$66))))) -> 0
C67: ê | G67: Número de edificaciones que sustituyen a aulas prefabricadas | H67: =IF($D$15="Yes",IF(H66=0,MIN(MAX($H$66:$Q$66),SUM($H$61:$Q$61)-SUM(G67:$G$67)),0),0) -> 0 | I67: =IF($D$15="Yes",IF(I66=0,MIN(MAX($H$66:$Q$66),SUM($H$61:$Q$61)-SUM($G67:H$67)),0),0) -> 0 | J67: =IF($D$15="Yes",IF(J66=0,MIN(MAX($H$66:$Q$66),SUM($H$61:$Q$61)-SUM($G67:I$67)),0),0) -> 0 | K67: =IF($D$15="Yes",IF(K66=0,MIN(MAX($H$66:$Q$66),SUM($H$61:$Q$61)-SUM($G67:J$67)),0),0) -> 0 | L67: =IF($D$15="Yes",IF(L66=0,MIN(MAX($H$66:$Q$66),SUM($H$61:$Q$61)-SUM($G67:K$67)),0),0) -> 0 | M67: =IF($D$15="Yes",IF(M66=0,MIN(MAX($H$66:$Q$66),SUM($H$61:$Q$61)-SUM($G67:L$67)),0),0) -> 0 | N67: =IF($D$15="Yes",IF(N66=0,MIN(MAX($H$66:$Q$66),SUM($H$61:$Q$61)-SUM($G67:M$67)),0),0) -> 0 | O67: =IF($D$15="Yes",IF(O66=0,MIN(MAX($H$66:$Q$66),SUM($H$61:$Q$61)-SUM($G67:N$67)),0),0) -> 0 | P67: =IF($D$15="Yes",IF(P66=0,MIN(MAX($H$66:$Q$66),SUM($H$61:$Q$61)-SUM($G67:O$67)),0),0) -> 0 | Q67: =IF($D$15="Yes",IF(Q66=0,MIN(MAX($H$66:$Q$66),SUM($H$61:$Q$61)-SUM($G67:P$67)),0),0) -> 0
C68: N.º de aulas de recepción permanentes (sin IVA, costos de transporte o emplazamiento) que van a construirse | D68: 0 | E68: 400000 | F68: =E68*0.065371 -> 26148.4 | G68: Aquí se muestra una opción; en las notas hay otras. | H68: =(H66+H67)*$E$68 -> 40000000 | I68: 41072814.56 | J68: 42174402.4 | K68: 43305535.23 | L68: 44467005.45 | M68: 0 | N68: 0 | O68: 0 | P68: 0 | Q68: 0 | R68: =SUM(H68:L68) -> 211019757.7 | S68: Es un cálculo basado en la información financiera que la Unidad de Cuidado y Desarrollo de la Primera Infancia ha enviado: edificar un bloque con dos aulas costaba 700.000 ZAR. Por eso, el costo estimado de un aula de recepción asciende a 400.000 ZAR.
B69: 1.1.2 Reforma de las aulas disponibles en primaria para convertirlas en cursos de recepción | C69: ê | D69: Capacidad de remodelación de aulas al año | G69: =I13 -> 50 | R69: =SUM(G69:L69) -> 50
C70: ê | D70: Porcentaje de aulas de recepción existentes que necesitan reformas | G70: =I15 -> 0.25 | R70: =SUM(G70:L70) -> 0.25
C71: ê | G71: Número de aulas de recepción existentes que hay que reformar | H71: =MIN($G$69,MAX($I$5*$G70-SUM(G71:$G$71),0)) -> 50 | I71: =MIN($G$69,MAX($I$5*$G70-SUM($G71:H$71),0)) -> 10 | J71: =MIN($G$69,MAX($I$5*$G70-SUM($G71:I$71),0)) -> 0 | K71: =MIN($G$69,MAX($I$5*$G70-SUM($G71:J$71),0)) -> 0 | L71: =MIN($G$69,MAX($I$5*$G70-SUM($G71:K$71),0)) -> 0 | M71: =MIN($G$69,MAX($I$5*$G70-SUM($G71:L$71),0)) -> 0 | N71: =MIN($G$69,MAX($I$5*$G70-SUM($G71:M$71),0)) -> 0 | O71: =MIN($G$69,MAX($I$5*$G70-SUM($G71:N$71),0)) -> 0 | P71: =MIN($G$69,MAX($I$5*$G70-SUM($G71:O$71),0)) -> 0 | Q71: =MIN($G$69,MAX($I$5*$G70-SUM($G71:P$71),0)) -> 0
C72: ê | D72: Porcentaje de aulas disponibles que han de reformarse | G72: =I14 -> 0.33 | R72: =SUM(G72:L72) -> 0.33
C73: ê | G73: Número de aulas disponibles que han de reformarse | H73: =MIN($G$69-H71,MAX($I$7*$G72-SUM(G$73:$G73),0)) -> 0 | I73: =MIN($G$69-I71,MAX($I$7*$G72-SUM($G$73:H73),0)) -> 40 | J73: =MIN($G$69-J71,MAX($I$7*$G72-SUM($G$73:I73),0)) -> 50 | K73: =MIN($G$69-K71,MAX($I$7*$G72-SUM($G$73:J73),0)) -> 50 | L73: =MIN($G$69-L71,MAX($I$7*$G72-SUM($G$73:K73),0)) -> 21.5187929 | M73: =MIN($G$69-M71,MAX($I$7*$G72-SUM($G$73:L73),0)) -> 0 | N73: =MIN($G$69-N71,MAX($I$7*$G72-SUM($G$73:M73),0)) -> 0 | O73: =MIN($G$69-O71,MAX($I$7*$G72-SUM($G$73:N73),0)) -> 0 | P73: =MIN($G$69-P71,MAX($I$7*$G72-SUM($G$73:O73),0)) -> 0 | Q73: =MIN($G$69-Q71,MAX($I$7*$G72-SUM($G$73:P73),0)) -> 0
C74: N.º de aulas de primaria que han podido transformarse en cursos de recepción | D74: 485 | E74: 10000 | F74: =E74*0.065371 -> 653.71 | G74: Tenemos que dar por sentado que al menos un tercio de lo que pensamos que son aulas listas para su uso resultarán no ser lugares aptos, así que propongo que presupuestemos aulas prefabricadas para esos casos. | H74: =(H71+H73)*$E74 -> 500000 | I74: 500000 | J74: 500000 | K74: 500000 | L74: 215187.929 | M74: 0 | N74: 0 | O74: 0 | P74: 0 | Q74: 0 | R74: =SUM(H74:L74) -> 2215187.929 | S74: El Ministerio de Educación y Formación contempla una tasa de subvención de 5 maloti por alumno para reformar o rehabilitar la infraestructura. Al haber 23 alumnos en un aula = 115 maloti por curso de recepción.
B75: 1.1.3 Suministro de instalaciones de WASH adaptadas a los niños | C75: ê | D75: Porcentaje de aulas disponibles que necesitan instalaciones de WASH | G75: =I20 -> 0.75 | R75: =SUM(G75:L75) -> 0.75
C76: ê | D76: Porcentaje de aulas nuevas que necesitan instalaciones de WASH | G76: =I21 -> 0.9 | R76: =SUM(G76:L76) -> 0.9
C77: ê | D77: Percentage of existing RCs needing WASH facilities | G77: =I16 -> 0 | R77: =SUM(G77:L77) -> 0
C78: ê | G78: Número de instalaciones de WASH que hay que construir | H78: =$G$76*(H$61+H$66)+IF(H$55<=$D$7,$G77*IFERROR($I$5/$D$7,0),0)+IF(H$55<=$D$8,$G$75*IFERROR($I$7/$D$8,0),0) -> 341.0440828 | I78: 343.4579156 | J78: 162.3924054 | K78: 97.43745427 | L78: 100.0507623 | M78: 0 | N78: 0 | O78: 0 | P78: 0 | Q78: 0
C79: N.º de instalaciones de WASH (retrete + lavabo) que se han construido | D79: 0 | E79: 20000 | F79: =E79*0.065371 -> 1307.42 | G79: Para cada aula nueva o remodelada | H79: =H78*$E79 -> 6820881.657 | I79: 6869158.312 | J79: 3247848.108 | K79: 1948749.085 | L79: 2001015.245 | M79: 0 | N79: 0 | O79: 0 | P79: 0 | Q79: 0 | R79: =SUM(H79:L79) -> 20887652.41 | S79: Parece que la mayor parte de las escuelas de primaria cuenta con instalaciones de WASH que también son apropiadas para niños de 5 años. Por eso, podríamos obviar esta parte.
C80: ê | D80: % of existing RCs needing furniture sets | G80: =I17 -> 0 | R80: =SUM(G80:L80) -> 0
A81: 1.2 Proporcionar a todas las aulas de recepción el mobiliario adecuado | B81: 1.2.1 Paquete de mobiliario mínimo imprescindible para las aulas de recepción | C81: ê | D81: Porcentaje de aulas disponibles que necesitan lotes de mobiliario | G81: =I22 -> 0.9 | R81: =SUM(G81:L81) -> 0.9
C82: ê | G82: Número de lotes de mobiliario que se deben adquirir | H82: =H$61+H$66+IF(H$55<=$D$7,$G80*IFERROR($I$5/$D$7,0),0)+IF(H$55<=$D$8,$G$81*IFERROR($I$7/$D$8,0),0) -> 395.2528994 | I82: 397.9349358 | J82: 180.436006 | K82: 108.2638381 | L82: 111.1675136 | M82: 0 | N82: 0 | O82: 0 | P82: 0 | Q82: 0
C83: N.º de aulas de recepción a las que se enviará mobiliario | D83: 1243 | E83: 3500 | F83: =E83*0.065371 -> 228.7985 | H83: =H82*$E83 -> 1383385.148 | I83: 1392772.275 | J83: 631526.021 | K83: 378923.4333 | L83: 389086.2977 | M83: 0 | N83: 0 | O83: 0 | P83: 0 | Q83: 0 | R83: =SUM(H83:L83) -> 4175693.175 | S83: El Ministerio de Educación y Formación está estudiando las estimaciones del costo. Las estimaciones se basan en el precio del mobiliario de primaria.
A84: 1.3 Dotación de materiales de enseñanza y aprendizaje de calidad | B84: 1.3.1 Provisión de paquetes completos de materiales de enseñanza, aprendizaje y juego | C84: ê | D84: Porcentaje de aulas de recepción existentes que necesitan materiales de enseñanza y aprendizaje | G84: =I18 -> 0 | R84: =SUM(G84:L84) -> 0
C85: ê | G85: Número de lotes de materiales nuevos de enseñanza y aprendizaje que se deben adquirir | H85: =H$61+H$66+IF(H$55<=$D$7,$G84*IFERROR($I$5/$D$7,0),0)+IF(H$55<=$D$8,IFERROR($I$7/$D$8,0),0) -> 419.7254438 | I85: 422.4074802 | J85: 180.436006 | K85: 108.2638381 | L85: 111.1675136 | M85: 0 | N85: 0 | O85: 0 | P85: 0 | Q85: 0
C86: ê | D86: Tasa anual de sustitución | G86: 0.05 | R86: =SUM(G86:L86) -> 0.05
C87: ê | G87: Número de lotes de materiales de enseñanza y aprendizaje que hay que sustituir | H87: =$G86*SUM(G85:$G85) -> 0 | I87: =$G86*SUM($G85:H85) -> 20.98627219 | J87: =$G86*SUM($G85:I85) -> 42.1066462 | K87: =$G86*SUM($G85:J85) -> 51.1284465 | L87: =$G86*SUM($G85:K85) -> 56.5416384 | M87: =$G86*SUM($G85:L85) -> 62.10001408 | N87: =$G86*SUM($G85:M85) -> 62.10001408 | O87: =$G86*SUM($G85:N85) -> 62.10001408 | P87: =$G86*SUM($G85:O85) -> 62.10001408 | Q87: =$G86*SUM($G85:P85) -> 62.10001408
C88: N.º de aulas de recepción a las que se enviarán materiales de enseñanza y aprendizaje | D88: 1243 | E88: 4500 | F88: =E88*0.065371 -> 294.1695 | G88: Luc, en este apartado damos por hecho que todos los años hay que sustituir parte de los materiales. | H88: =(H85+H87)*$E88 -> 1888764.497 | I88: 1995271.886 | J88: 1001441.935 | K88: 717265.2806 | L88: 754691.1842 | M88: 279450.0634 | N88: 279450.0634 | O88: 279450.0634 | P88: 279450.0634 | Q88: 279450.0634 | R88: =SUM(H88:L88) -> 6357434.782 | S88: El Ministerio de Educación y Formación ofrecerá información detallada (como su costo) sobre los paquetes completos de materiales de enseñanza y aprendizaje para los cursos de recepción.
B89: 1.3.2 Abastecimiento de equipamientos para jugar al aire libre | C89: ê | D89: Porcentaje de aulas de recepción existentes que necesitan equipamientos para jugar al aire libre | G89: =I19 -> 0 | R89: =SUM(G89:L89) -> 0
C90: ê | G90: Número de equipamientos para jugar al aire libre que se deben adquirir | H90: =H$61+H$66+IF(H$55<=$D$7,$G89*IFERROR($I$5/$D$7,0),0)+IF(H$55<=$D$8,IFERROR($I$7/$D$8,0),0) -> 419.7254438 | I90: 422.4074802 | J90: 180.436006 | K90: 108.2638381 | L90: 111.1675136 | M90: 0 | N90: 0 | O90: 0 | P90: 0 | Q90: 0
C91: N.º de equipamientos para jugar al aire libre | D91: 1243 | E91: 1500 | F91: =E91*0.065371 -> 98.0565 | H91: =H90*$E91 -> 629588.1657 | I91: 633611.2203 | J91: 270654.009 | K91: 162395.7571 | L91: 166751.2704 | M91: 0 | N91: 0 | O91: 0 | P91: 0 | Q91: 0 | R91: =SUM(H91:L91) -> 1863000.423 | S91: El Ministerio de Educación y Formación ofrecerá información detallada (como su costo) sobre los paquetes completos de materiales de enseñanza y aprendizaje para los cursos de recepción.
A92: 1.4 Reforzar la capacidad de la fuerza de trabajo del campo de la EPI | B92: 1.4.2 Salario anual de un docente (auxiliar) que se dedique al cuidado y desarrollo en la primera infancia por cada curso de recepción (basado en el salario actual de los docentes de desarrollo en la primera infancia) | C92: ê | G92: Número de nuevas aulas de recepción funcionales | H92: =H$61+H$66+IF(H$55<=$D$8,IFERROR($I$7/$D$8,0),0) -> 419.7254438 | I92: 422.4074802 | J92: 180.436006 | K92: 108.2638381 | L92: 111.1675136 | M92: 0 | N92: 0 | O92: 0 | P92: 0 | Q92: 0
C93: ê | G93: Total de aulas de recepción funcionales | H93: =H92+$I$5 -> 659.7254438 | I93: =I92+H93 -> 1082.132924 | J93: =J92+I93 -> 1262.56893 | K93: =K92+J93 -> 1370.832768 | L93: =L92+K93 -> 1482.000282 | M93: 1482.000282 | N93: 1482.000282 | O93: 1482.000282 | P93: 1482.000282 | Q93: 1482.000282
C94: ê | D94: Tasa de abandono de los docentes de desarrollo en la primera infancia | G94: =I24 -> 0.02
C95: ê | G95: Número de docentes nuevos que se requieren | H95: =H92+$G$94*H96 -> 424.5254438 | I95: =I92+$G$94*H103 -> 435.6019891 | J95: 199.2761158 | K95: 127.9271457 | L95: 132.6375551 | M95: 22.64064064 | N95: 24.38782783 | O95: 26.10007127 | P95: 27.77806985 | Q95: 29.04000563
C96: ê | G96: Docentes de desarrollo en la primera infancia en activo | H96: =$I$5 -> 240 | I96: 240 | J96: 240 | K96: 240 | L96: 240 | M96: 240 | N96: 240 | O96: 240 | P96: 240 | Q96: 240
C97: ê | D97: Contrataciones | E97: Cantidad | F97: =I25 -> 300 | G97: Docentes de desarrollo en la primera infancia con los que se puede contar | H97: =MAX(0,MIN(H95-H98,MAX(0,$F97-SUM($G97:G97)))) -> 300 | I97: =MAX(0,MIN(I95-I98,MAX(0,$F97-SUM($G97:H97)))) -> 0 | J97: =MAX(0,MIN(J95-J98,MAX(0,$F97-SUM($G97:I97)))) -> 0 | K97: =MAX(0,MIN(K95-K98,MAX(0,$F97-SUM($G97:J97)))) -> 0 | L97: =MAX(0,MIN(L95-L98,MAX(0,$F97-SUM($G97:K97)))) -> 0 | M97: =MAX(0,MIN(M95-M98,MAX(0,$F97-SUM($G97:L97)))) -> 0 | N97: =MAX(0,MIN(N95-N98,MAX(0,$F97-SUM($G97:M97)))) -> 0 | O97: =MAX(0,MIN(O95-O98,MAX(0,$F97-SUM($G97:N97)))) -> 0 | P97: =MAX(0,MIN(P95-P98,MAX(0,$F97-SUM($G97:O97)))) -> 0 | Q97: =MAX(0,MIN(Q95-Q98,MAX(0,$F97-SUM($G97:P97)))) -> 0
C98: ê | E98: Tamaño de la cohorte | F98: =I27 -> 60 | G98: Docentes acreditados que acaban de graduarse | H98: =MIN($F$98,H95) -> 60 | I98: =MIN($F$98,I95+H104) -> 60 | J98: 60 | K98: 60 | L98: 60 | M98: 60 | N98: 60 | O98: 60 | P98: 60 | Q98: 29.04000563
C99: ê | E99: Cantidad | F99: =I26 -> 300 | G99: Docentes de primaria con los que se puede contar | H99: =MAX(0,MIN(H95-H98-H97,MAX(0,$F99-SUM($G99:G99)))) -> 64.52544379 | I99: =MAX(0,MIN(I95-I98-I97,MAX(0,$F99-SUM($G99:H99)))) -> 235.4745562 | J99: =MAX(0,MIN(J95-J98-J97,MAX(0,$F99-SUM($G99:I99)))) -> 0 | K99: =MAX(0,MIN(K95-K98-K97,MAX(0,$F99-SUM($G99:J99)))) -> 0 | L99: =MAX(0,MIN(L95-L98-L97,MAX(0,$F99-SUM($G99:K99)))) -> 0 | M99: =MAX(0,MIN(M95-M98-M97,MAX(0,$F99-SUM($G99:L99)))) -> 0 | N99: =MAX(0,MIN(N95-N98-N97,MAX(0,$F99-SUM($G99:M99)))) -> 0 | O99: =MAX(0,MIN(O95-O98-O97,MAX(0,$F99-SUM($G99:N99)))) -> 0 | P99: =MAX(0,MIN(P95-P98-P97,MAX(0,$F99-SUM($G99:O99)))) -> 0 | Q99: =MAX(0,MIN(Q95-Q98-Q97,MAX(0,$F99-SUM($G99:P99)))) -> 0
C100: ê | E100: Año en el que empezarán a graduarse los docentes que cursan un grado universitario | G100: =I29 -> 2023
C101: ê | E101: Tamaño de la cohorte | F101: =I28 -> 50 | G101: Docentes con diplomatura que acaban de graduarse | H101: =IF(H$56>=$G$100,MIN($F101,MAX(H95+G104-H98,0)),0) -> 0 | I101: 0 | J101: 0 | K101: 50 | L101: 50 | M101: 50 | N101: 50 | O101: 50 | P101: 30.8748591 | Q101: 0
C102: ê | G102: Total de docentes contratados | H102: =SUM(H97:H101) -> 424.5254438 | I102: =SUM(I97:I101) -> 295.4745562 | J102: 60 | K102: 110 | L102: 110 | M102: 110 | N102: 110 | O102: 110 | P102: 90.8748591 | Q102: 29.04000563
C103: ê | G103: Número total de docentes | H103: =H102+H96*(1-$G$94)-H110 -> 659.7254438 | I103: =H103*(1-$G$94)+I102-I110+H110 -> 942.0054911 | J103: 983.1653813 | K103: 1073.502074 | L103: 1132.032032 | M103: 1219.391392 | N103: 1305.003564 | O103: 1388.903492 | P103: 1452.000282 | Q103: 1452.000282
C104: ê | G104: Falta de docentes | H104: =H95-H102 -> 0 | I104: =MAX(I95-I102+H104,0) -> 140.1274329 | J104: =MAX(J95-J102+I104,0) -> 279.4035487 | K104: 297.3306944 | L104: 319.9682495 | M104: 232.6088901 | N104: 146.996718 | O104: 63.09678925 | P104: 0 | Q104: 0
C105: ê | G105: Número total de docentes que reciben el salario correspondiente al trabajo en desarrollo en la primera infancia | H105: =H96*(1-$G$94)+H97+H98 -> 595.2 | I105: =I97+I98+H105*(1-$G$94)-I110 -> 643.296 | J105: 690.43008 | K105: 736.6214784 | L105: 751.8890488 | M105: 766.8512679 | N105: 781.5142425 | O105: 795.8839576 | P105: 809.9662785 | Q105: 792.8069586
C106: ê | G106: Número total de docentes que reciben el salario correspondiente al trabajo en educación primaria | H106: =H101+H99 -> 64.52544379 | I106: =I101+I99+H106*(1-$G$94)+H110 -> 298.7094911 | J106: 292.7353013 | K106: 336.8805953 | L106: 380.1429834 | M106: 452.5401237 | N106: 523.4893212 | O106: 593.0195348 | P106: 642.0340032 | Q106: 659.1933231
C107: ê | D107: Año en el que los docentes de desarrollo en la primera infancia pueden mejorar su categoría | G107: =D24 -> 2024
C108: ê | D108: Proporción de docentes que querrán avanzar de categoría | G108: 0.75
C109: ê | D109: Máximo de docentes al año que pueden mejorar su capacitación y obtener un grado universitario | G109: 30
C110: ê | G110: Número de docentes que participan en capacitación para mejorar su categoría | H110: =IF(H56<$G$107,0,MIN($G$109,MAX(0,$G$108*($H$96+$F$97)-SUM(G110:$G$110)))) -> 0 | I110: =IF(I56<$G$107,0,MIN($G$109,MAX(0,$G$108*($H$96+$F$97)-SUM($G110:H$110)))) -> 0 | J110: =IF(J56<$G$107,0,MIN($G$109,MAX(0,$G$108*($H$96+$F$97)-SUM($G110:I$110)))) -> 0 | K110: =IF(K56<$G$107,0,MIN($G$109,MAX(0,$G$108*($H$96+$F$97)-SUM($G110:J$110)))) -> 0 | L110: =IF(L56<$G$107,0,MIN($G$109,MAX(0,$G$108*($H$96+$F$97)-SUM($G110:K$110)))) -> 30 | M110: =IF(M56<$G$107,0,MIN($G$109,MAX(0,$G$108*($H$96+$F$97)-SUM($G110:L$110)))) -> 30 | N110: =IF(N56<$G$107,0,MIN($G$109,MAX(0,$G$108*($H$96+$F$97)-SUM($G110:M$110)))) -> 30 | O110: =IF(O56<$G$107,0,MIN($G$109,MAX(0,$G$108*($H$96+$F$97)-SUM($G110:N$110)))) -> 30 | P110: =IF(P56<$G$107,0,MIN($G$109,MAX(0,$G$108*($H$96+$F$97)-SUM($G110:O$110)))) -> 30 | Q110: =IF(Q56<$G$107,0,MIN($G$109,MAX(0,$G$108*($H$96+$F$97)-SUM($G110:P$110)))) -> 30
C111: ê | D111: Aumento anual de los salarios del cuerpo docente | G111: =I32 -> 0.02
C112: ê | E112: Punto de partida | F112: =E114 -> 23000 | G112: Salario de los docentes de desarrollo en la primera infancia con los que se puede contar | H112: =E114 -> 23000 | I112: =H112*(1+$G$111) -> 23460 | J112: 23929.2 | K112: 24407.784 | L112: 24895.93968 | M112: 25393.85847 | N112: 25901.73564 | O112: 26419.77036 | P112: 26948.16576 | Q112: 27487.12908
C113: ê | E113: Punto de partida | F113: =E115 -> 98072 | G113: Salario de los docentes de primaria con los que se puede contar | H113: =E115 -> 98072 | I113: 100033.44 | J113: 102034.1088 | K113: 104074.791 | L113: 106156.2868 | M113: 108279.4125 | N113: 110445.0008 | O113: 112653.9008 | P113: 114906.9788 | Q113: 117205.1184
C114: N.º de docentes del ámbito del cuidado y desarrollo de la primera infancia que percibirán un salario anual | D114: 622 (en este momento, contamos con al menos 240 docentes del ámbito del cuidado y desarrollo en la primera infancia que trabajan en cursos de recepción) | E114: 23000 | F114: =E114*0.065371 -> 1503.533 | G114: Véase la nota cuando llegue el momento de trabajar en estas opciones. La estimación de costos se guiará por las opciones en materia de construcción que se han expuesto anteriormente en relación con el verdadero número de docentes que forman parte del sistema. | H114: =H112*H105 -> 13689600 | I114: =I112*I105 -> 15091724.16 | J114: 16521439.47 | K114: 17979297.93 | L114: 18718984.41 | M114: 19473312.57 | N114: 20242575.31 | O114: 21027071.39 | P114: 21827105.54 | Q114: 21791987.2 | R114: =SUM(H114:L114) -> 82001045.97 | S114: Es el sueldo ACTUAL de los docentes del ámbito del cuidado y desarrollo de la primera infancia. El personal de la Unidad de Cuidado y Desarrollo de la Primera Infancia del Ministerio de Educación y Formación ha discutido y propuesto un salario anual de 23.000 ZAR (también se percibe un extra equivalente a un decimotercer mes de sueldo, etc.). También es conveniente pensar en qué otros complementos o dietas podrían ofrecerse a los docentes que trabajan en zonas rurales en las que las condiciones son difíciles. De momento, la mitad de los salarios de los docentes del ámbito del cuidado y desarrollo de la primera infancia = el salario actual.
B115: 1.4.2 Salario anual de un docente (auxiliar) que se dedique al cuidado y desarrollo en la primera infancia por cada curso de recepción (basado en el salario de los docentes de primaria) | C115: N.º de docentes del ámbito del cuidado y desarrollo de la primera infancia que percibirán un salario anual | D115: =1243/2 -> 621.5 | E115: 98072 | F115: =E115*0.065371 -> 6411.064712 | H115: =H113*H106 -> 6328139.323 | I115: 29880937.96 | J115: 29868985.58 | K115: 35060777.54 | L115: 40354567.57 | M115: 49000778.74 | N115: 57816778.49 | O115: 66805963.84 | P115: 73774187.6 | Q115: 77260831.48 | R115: =SUM(H115:L115) -> 141493408 | S115: Según el análisis del sector educativo, el sueldo promedio de los docentes de primaria ascendía a 98.072 ZAR en 2018. De momento, la mitad de los salarios de los docentes del ámbito del cuidado y desarrollo de la primera infancia = el salario mejorado.
B116: 1.4.2 Curso de orientación sobre las aulas de recepción para la dirección de las escuelas | C116: N.º de directores de escuela que participarán en un curso de orientación de cinco días (en el momento de presentar o inaugurar el curso de recepción) | D116: 1243 | E116: 2500 | F116: =E116*0.065371 -> 163.4275 | G116: Hay que seguir las situaciones hipotéticas de ampliación en cuanto al número anual de administradores que reciben formación. | H116: =$E116*(H92+H97) -> 1799313.609 | I116: =$E116*I92 -> 1056018.7 | J116: 451090.015 | K116: 270659.5952 | L116: 277918.7841 | M116: 0 | N116: 0 | O116: 0 | P116: 0 | Q116: 0 | R116: =SUM(H116:L116) -> 3855000.704 | S116: Hay que confirmar con el Ministerio de Educación y Formación el formato (y el costo por unidad) de los cursos de orientación para las directivas de las escuelas. ¿Cinco días? ¿Tres días? ¿En el plano nacional o del distrito? ¿Estimación del costo?
B117: 1.4.3 Contratación de otro inspector más de cuidado y desarrollo de la primera infancia por distrito | C117: ê | D117: Año en el que se contrata a más inspectores | G117: =D30 -> 2021
C118: ê | G118: Número de inspectores extra | H118: =IF(H$56>=$G117,$D$121,0) -> 0 | I118: 10 | J118: 10 | K118: 10 | L118: 10 | M118: 10 | N118: 10 | O118: 10 | P118: 10 | Q118: 10
C119: ê | D119: Aumento anual de los salarios de los inspectores | G119: 0.02
C120: ê | G120: Salario anual de los inspectores | H120: =E121 -> 100000 | I120: =H120*(1+$G$119) -> 102000 | J120: 104040 | K120: 106120.8 | L120: 108243.216 | M120: 110408.0803 | N120: 112616.2419 | O120: 114868.5668 | P120: 117165.9381 | Q120: 119509.2569
C121: N.º de inspectores que es necesario contratar y que recibirán un sueldo anual | D121: 10 | E121: 100000 | F121: =E121*0.065371 -> 6537.1 | G121: Gasto recurrente a lo largo de cinco años. Lo ideal es que los contratemos durante el año 1. | H121: =(H118+10)*H120 -> 1000000 | I121: =(I118+10)*I120 -> 2040000 | J121: 2080800 | K121: 2122416 | L121: 2164864.32 | M121: 2208161.606 | N121: 2252324.839 | O121: 2297371.335 | P121: 2343318.762 | Q121: 2390185.137 | R121: =SUM(G121:L121) -> 9408080.32 | S121: ¿Basta con contratar a dos inspectores más por distrito para que se encarguen de los cursos de recepción? ¿Cuál es su salario anual? Hay que comprobarlo.
B122: 1.4.3 Capacitación de los inspectores de cuidado y desarrollo de la primera infancia (empleados con antigüedad e incorporaciones recientes) | C122: N.º de inspectores que hay que capacitar | D122: 20 | E122: 2500 | F122: =E122*0.065371 -> 163.4275 | G122: ¿Se trata de un gasto puntual? | H122: =(IF(H55=1,10,0)+(H118-SUM(G118)))*$E$122 -> 25000 | I122: 25000 | J122: 0 | K122: 0 | L122: 0 | M122: 0 | N122: 0 | O122: 0 | P122: 0 | Q122: 0 | R122: =SUM(G122:L122) -> 50000
B123: 1.4.4 Formación en el empleo para desarrollar la capacidad de todos los docentes que empiezan a trabajan en cursos de recepción | C123: ê | D123: Duración en días de la actividad formativa LARGA en el empleo | G123: =D34 -> 20
C124: ê | G124: Número de docentes que participan en la actividad formativa LARGA en el empleo | H124: =H99 -> 64.52544379 | I124: =I99 -> 235.4745562 | J124: 0 | K124: 0 | L124: 0 | M124: 0 | N124: 0 | O124: 0 | P124: 0 | Q124: 0
C125: N.º de docentes que participarán en un taller de 20 días sobre EPI | D125: 622 | E125: =G123*500 -> 10000 | F125: =E125*0.065371 -> 653.71 | G125: Hay que seguir las situaciones hipotéticas de ampliación en cuanto al número anual de administradores que reciben formación. | H125: =H124*$E125 -> 645254.4379 | I125: 2354745.562 | J125: 0 | K125: 0 | L125: 0 | M125: 0 | N125: 0 | O125: 0 | P125: 0 | Q125: 0 | R125: =SUM(H125:L125) -> 3000000
B126: 1.4.4 Formación en el empleo para desarrollar la capacidad de todos los docentes de cursos de recepción que ya formaban parte del sistema o se acaban de incorporar | C126: ê | D126: Porcentaje anual de docentes que recibe formación en el empleo | G126: =D32 -> 0.2
C127: ê | D127: Duración en días de la actividad formativa habitual en el empleo | G127: =D33 -> 5
C128: ê | G128: Número de docentes que participan en la actividad formativa breve en el empleo | H128: =H97 -> 300 | I128: =H98+$G$126*H103 -> 191.9450888 | J128: =I98+$G$126*I103 -> 248.4010982 | K128: 256.6330763 | L128: 274.7004147 | M128: 286.4064064 | N128: 303.8782783 | O128: 321.0007127 | P128: 337.7806985 | Q128: 350.4000563
C129: N.º de docentes que participarán en un taller de cinco días sobre EPI | D129: 621.5 | E129: =G127*500 -> 2500 | F129: =E129*0.065371 -> 163.4275 | G129: Hay que seguir las situaciones hipotéticas de ampliación en cuanto al número anual de administradores que reciben formación. | H129: =H128*$E129 -> 750000 | I129: 479862.7219 | J129: 621002.7456 | K129: 641582.6907 | L129: 686751.0368 | M129: 716016.0161 | N129: 759695.6958 | O129: 802501.7819 | P129: 844451.7462 | Q129: 876000.1408 | R129: =SUM(H129:L129) -> 3179199.195 | S129: Supuesto: el 50% de los docentes reorienta su práctica y necesita una actividad formativa en el empleo de un mes de duración. Supuesto: el 50% de los docentes necesita un curso de actualización de una semana de duración.
B130: 1.4.4 Formación en el empleo para desarrollar la capacidad de todos los docentes que empiezan a trabajan en cursos de recepción | C130: ê | D130: Duración en días de la actividad formativa breve en el empleo | G130: 2
C131: ê | D131: Año en el que entrará en vigor el nuevo plan de estudios | G131: 2021
C132: ê | G132: Número de docentes que participan en la actividad formativa breve en el empleo | H132: =IF(H56<$G$131,0,IF(H56=$G$131,H103,H102)) -> 0 | I132: 942.0054911 | J132: 60 | K132: 110 | L132: 110 | M132: 110 | N132: 110 | O132: 110 | P132: 90.8748591 | Q132: 29.04000563
C133: N.º de docentes que participarán en un taller de 20 días sobre EPI | D133: 622 | E133: =G130*500 -> 1000 | F133: =E133*0.065371 -> 65.371 | G133: Hay que seguir las situaciones hipotéticas de ampliación en cuanto al número anual de administradores que reciben formación. | H133: =H132*$E133 -> 0 | I133: 942005.4911 | J133: 60000 | K133: 110000 | L133: 110000 | M133: 110000 | N133: 110000 | O133: 110000 | P133: 90874.8591 | Q133: 29040.00563 | R133: =SUM(H133:L133) -> 1222005.491
B134: 1.4.5 Curso de orientación sobre las aulas de recepción y la EPI para los funcionarios encargados de la planificación y las normas en los distritos | C134: ê | D134: Año en el que se capacitará al personal de los distritos | G134: 2020
C135: N.º de trabajadores del sector educativo en los distritos que participarán en un curso de orientación sobre EPI (¿dos días?) | D135: 20 | E135: 1000 | F135: =E135*0.065371 -> 65.371 | G135: Gasto puntual en el año 1 o 2. | H135: =IF(H56=$G$134,$E$135*20,0) -> 20000 | I135: 0 | J135: 0 | K135: 0 | L135: 0 | M135: 0 | N135: 0 | O135: 0 | P135: 0 | Q135: 0 | R135: =SUM(H135:L135) -> 20000 | S135: Hay que confirmar con el Ministerio de Educación y Formación el formato (y el costo por unidad) de los cursos de orientación para trabajadores del sector educativo en los distritos. ¿Cinco días? ¿Tres días? ¿En el plano nacional o del distrito? ¿Estimación del costo?
B136: 1.4.6 Dotación de personal para la dirección de enseñanza preescolar (salario anual) | C136: N.º de directores de EPI | D136: 1 | E136: 150000 | F136: =E136*0.065371 -> 9805.65 | G136: Gasto recurrente (salario de los directores de EPI) | H136: =$E$136 -> 150000 | I136: 150000 | J136: 150000 | K136: 150000 | L136: 150000 | M136: 150000 | N136: 150000 | O136: 150000 | P136: 150000 | Q136: 150000 | R136: =SUM(H136:L136) -> 750000
A137: 1.5 Ampliar el programa de alimentación escolar | B137: 1.5.1. Ampliar el programa de alimentación escolar al curso de recepción | C137: ê | D137: Número de niños por curso de recepción | G137: =D13 -> 23
C138: ê | G138: Número de niños que acuden a cursos de recepción | H138: =H103*$G$137 -> 15173.68521 | I138: =I103*$G$137 -> 21666.1263 | J138: 22612.80377 | K138: 24690.54769 | L138: 26036.73674 | M138: 28046.00201 | N138: 30015.08197 | O138: 31944.78033 | P138: 33396.00648 | Q138: 33396.00648
C139: N.º de niños que participan en el programa de alimentación escolar (23 por curso de recepción) cada año | D139: =1243*23.09 -> 28700.87 | E139: 900 | F139: =E139*0.065371 -> 58.8339 | G139: Gasto recurrente a lo largo de cinco años. | H139: =H138*$E$139 -> 13656316.69 | I139: 19499513.67 | J139: 20351523.39 | K139: 22221492.93 | L139: 23433063.07 | M139: 25241401.81 | N139: 27013573.77 | O139: 28750302.29 | P139: 30056405.83 | Q139: 30056405.83 | R139: =SUM(H139:L139) -> 99161909.74 | S139: 5 ZAR por alumno y día (el costo actual del programa de alimentación escolar) y 180 días lectivos al año = 5 × 180 = 900 ZAR por alumno y año. Lo ideal es que aumente hasta los 7 ZAR por alumno y día. | V139: 40 | W139: =T139*U139*V139 -> 0
A140: COSTO TOTAL = | H140: =SUMIF($C61:$C139,"<>ê",H61:H139) -> 111786243.5 | I140: 146483436.5 | J140: 117930736.2 | K140: 125569095.5 | L140: 133889886.6 | M140: 97179120.8 | N140: 108624398.2 | O140: 120222660.7 | P140: 129365794.4 | Q140: 132833899.9 | R140: 635659398.3
F141: en USD | H141: =H140*0.065371 -> 7307578.525 | I141: =I140*0.065371 -> 9575768.729 | J141: =J140*0.065371 -> 7709250.155 | K141: =K140*0.065371 -> 8208577.34 | L141: =L140*0.065371 -> 8752515.774 | R141: =SUM(H141:L141) -> 41553690.52
H142: Año 1 2020-2021 | I142: Año 2 2021-2022 | J142: Año 3 2022-2023 | K142: Año 4 2023-2024 | L142: Año 5 2024-2025 | R142: Costo total (ZAR)
F144: Inversión | G144: Infraestructura | H144: =H62+H68+H74+H79 -> 69820881.66 | I144: 70941972.88 | J144: 45922273.01 | K144: 45754284.32 | L144: 46683208.63 | M144: 0 | N144: 0 | O144: 0 | P144: 0 | Q144: 0 | R144: 279122620.5
G145: Equipo | H145: =H83+H88+H91 -> 3901737.811 | I145: 4021655.381 | J145: 1903621.965 | K145: 1258584.471 | L145: 1310528.752 | M145: 279450.0634 | N145: 279450.0634 | O145: 279450.0634 | P145: 279450.0634 | Q145: 279450.0634 | R145: 12396128.38
G146: Inversión total | H146: =SUM(H144:H145) -> 73722619.47 | I146: =SUM(I144:I145) -> 74963628.26 | J146: 47825894.98 | K146: 47012868.79 | L146: 47993737.38 | M146: 279450.0634 | N146: 279450.0634 | O146: 279450.0634 | P146: 279450.0634 | Q146: 279450.0634 | R146: 291518748.9
F147: Gastos recurrentes | G147: Salarios | H147: =H114+H115+H136+H121 -> 21167739.32 | I147: 47162662.12 | J147: 48621225.05 | K147: 55312491.47 | L147: 61388416.29 | M147: 70832252.91 | N147: 80461678.64 | O147: 90280406.57 | P147: 98094611.9 | Q147: 101593003.8 | R147: 233652534.3
G148: Capacitación | H148: =H135+H133+H129+H122+H116 -> 2594313.609 | I148: 2502886.914 | J148: 1132092.761 | K148: 1022242.286 | L148: 1074669.821 | M148: 826016.0161 | N148: 869695.6958 | O148: 912501.7819 | P148: 935326.6053 | Q148: 905040.1465 | R148: 8326205.39
G149: Programa de alimentación escolar | H149: =H139 -> 13656316.69 | I149: =I139 -> 19499513.67 | J149: 20351523.39 | K149: 22221492.93 | L149: 23433063.07 | M149: 25241401.81 | N149: 27013573.77 | O149: 28750302.29 | P149: 30056405.83 | Q149: 30056405.83 | R149: 99161909.74
G150: Gastos recurrentes totales | H150: =SUM(H147:H149) -> 37418369.62 | I150: 69165062.7 | J150: 70104841.21 | K150: 78556226.68 | L150: 85896149.18 | M150: 96899670.74 | N150: 108344948.1 | O150: 119943210.6 | P150: 129086344.3 | Q150: 132554449.8 | R150: 341140649.4
G151: Total general | H151: =H150+H146 -> 111140989.1 | I151: =I150+I146 -> 144128691 | J151: 117930736.2 | K151: 125569095.5 | L151: 133889886.6 | M151: 97179120.8 | N151: 108624398.2 | O151: 120222660.7 | P151: 129365794.4 | Q151: 132833899.9 | R151: 632659398.3
G153: Total como porcentaje del presupuesto educativo de 2018-2019 | H153: =H151/1000000/3128 -> 0.03553100674 | I153: 0.04607694724 | J153: 0.037701642 | K153: 0.04014357272 | L153: 0.04280367217 | M153: 0.03106749386 | N153: 0.03472647 | O153: 0.03843435445 | P153: 0.04135735115 | Q153: 0.04246608052 | R153: 0.2022568409
G154: Presupuesto actual del desarrollo en la primera infancia como porcentaje del presupuesto educativo | H154: =240*$E$114/3128/1000000 -> 0.001764705882 | I154: 0.001764705882 | J154: 0.001764705882 | K154: 0.001764705882 | L154: 0.001764705882 | M154: 0.001764705882 | N154: 0.001764705882 | O154: 0.001764705882 | P154: 0.001764705882 | Q154: 0.001764705882 | R154: 0.001764705882
G156: 9080
G157: 20192020 | H157: 20202021 | I157: 20212022 | J157: 20222023 | K157: 20232024 | L157: 20242025 | M157: 20252026 | N157: 20262027 | O157: 20272028 | P157: 20282029 | Q157: 20292030
G158: 2019 | H158: 2020 | I158: 2021 | J158: 2022 | K158: 2023 | L158: 2024 | M158: 2025 | N158: 2026 | O158: 2027 | P158: 2028 | Q158: 2029
F159: Población en miles (Fuente: variante media poblacional establecida por las Naciones Unidas y actualizada en 2017) | G159: 56.647 | H159: 57.107 | I159: 57.567 | J159: 57.726 | K159: 57.681 | L159: 57.584 | M159: 57.623 | N159: 57.609 | O159: 57.528 | P159: 57.393 | Q159: 57.213
G160: 20192020 | H160: 20202021 | I160: 20212022 | J160: 20222023 | K160: 20232024 | L160: 20242025 | M160: 20252026 | N160: 20262027 | O160: 20272028 | P160: 20282029 | Q160: 20292030
F161: Matriculación en los cursos de recepción | G161: =23*240 -> 5520 | H161: =H138 -> 15173.68521 | I161: =I138 -> 21666.1263 | J161: 22612.80377 | K161: 24690.54769 | L161: 26036.73674 | M161: 28046.00201 | N161: 30015.08197 | O161: 31944.78033 | P161: 33396.00648 | Q161: 33396.00648
C162: Crecimiento anual de las matriculaciones en el sector privado | D162: 0.05 | F162: Matriculación en el sector privado | G162: =G156 -> 9080 | H162: =G162*(1+$D$162) -> 9534 | I162: =H162*(1+$D$162) -> 10010.7 | J162: 10511.235 | K162: 11036.79675 | L162: 11588.63659 | M162: 12168.06842 | N162: 12776.47184 | O162: 13415.29543 | P162: 14086.0602 | Q162: 14790.36321
F163: Matriculación total | G163: =23*240+G156 -> 14600 | H163: =H138+H162 -> 24707.68521 | I163: =I138+I162 -> 31676.8263 | J163: 33124.03877 | K163: 35727.34444 | L163: 37625.37333 | M163: 40214.07042 | N163: 42791.5538 | O163: 45360.07576 | P163: 47482.06668 | Q163: 48186.36969
F164: Matriculación en cursos de recepción como % de la población de 5 años | G164: =G161/G$159/1000 -> 0.09744558406 | H164: =H161/H$159/1000 -> 0.2657062218 | I164: 0.376363651 | J164: 0.3917264971 | K164: 0.4280533918 | L164: 0.4521522774 | M164: 0.4867154089 | N164: 0.5210137646 | O164: 0.5552909944 | P164: 0.5818829209 | Q164: 0.5837136049
F165: Tasa bruta de matriculación | G165: =G163/G$159/1000 -> 0.2577365086 | H165: =H163/H$159/1000 -> 0.4326559828 | I165: 0.5502601542 | J165: 0.5738148974 | K165: 0.6193953719 | L165: 0.6533997869 | M165: 0.6978822766 | N165: 0.7427928588 | O165: 0.7884869239 | P165: 0.8273145973 | Q165: 0.8422276352
G167: 20192020 | H167: 20202021 | I167: 20212022 | J167: 20222023 | K167: 20232024 | L167: 20242025 | M167: 20252026 | N167: 20262027 | O167: 20272028 | P167: 20282029 | Q167: 20292030
D168: Porcentaje de niños de 5 años que se benefician de: | F168: Cursos de recepción | G168: =G164 -> 0.09744558406 | H168: 0.2657062218 | I168: 0.376363651 | J168: 0.3917264971 | K168: 0.4280533918 | L168: 0.4521522774 | M168: 0.4867154089 | N168: 0.5210137646 | O168: 0.5552909944 | P168: 0.5818829209 | Q168: 0.5837136049
F169: Matriculación en el sector privado | G169: =G162/G159/1000 -> 0.1602909245 | H169: =H162/H159/1000 -> 0.166949761 | I169: 0.1738965032 | J169: 0.1820884004 | K169: 0.19134198 | L169: 0.2012475095 | M169: 0.2111668677 | N169: 0.2217790942 | O169: 0.2331959295 | P169: 0.2454316764 | Q169: 0.2585140302
F170: No están matriculados | G170: =1-G168-G169 -> 0.7422634914 | H170: 0.5673440172 | I170: 0.4497398458 | J170: 0.4261851026 | K170: 0.3806046281 | L170: 0.3466002131 | M170: 0.3021177234 | N170: 0.2572071412 | O170: 0.2115130761 | P170: 0.1726854027 | Q170: 0.1577723648
A171: No se incluye en los costos aquí, pero propongo que se presupuesten algunos de estos elementos como parte de las estrategias del plan del sector educativo:
A172: Formación previa al empleo
B173: Preparación de un nuevo curso de diplomatura
B174: Elaboración de materiales
B175: Desarrollo de la capacidad para contar con nuevos formadores de docentes todos los años
B176: Puesta en marcha de actividades de formación de docentes en todos los distritos
A177: Formación suplementaria en el empleo
B178: Capacitación para los docentes del ámbito del cuidado y desarrollo en la primera infancia (que no trabajen en cursos de recepción); puede coordinarse con la implantación del nuevo plan de estudios
A180: Un nuevo plan de estudios de enseñanza preescolar. Planificación en curso
B181: Costo de la elaboración del plan de estudios
B182: Puesta a prueba
B183: Preparación de la evaluación de los alumnos
B184: Implantación del plan de estudios (sin olvidar la formación para docentes de EPI)
A186: Participación de los progenitores y las comunidades
B187: Capacitación para miembros de asociaciones de progenitores y docentes
B188: Creación de directrices para las asociaciones de progenitores y docentes en el ámbito de la EPI (por determinar)
B189: Se desarrollan y respaldan módulos de crianza para progenitores
A191: Aseguramiento de la calidad y regulación
B192: Análisis de las normas de calidad
B193: Evaluación y apoyo a la inscripción en los centros de cuidado y desarrollo en la primera infancia
B194: Examen del Sistema de Información sobre la Gestión Educacional con respecto a los indicadores en materia de EPI
B195: Formación de los funcionarios que se dedican a la supervisión

Sheet Amp. cursos recepción (7 años)
B3: Características de la situación hipotética | G3: Supuestos
B5: Años que durará la ampliación | D5: 7 | F5: Número de escuelas que disponen de un curso de recepción | I5: =Overview!D35 -> 240
F6: Número de escuelas sin un curso de recepción | I6: =Overview!D38 -> 1242
B7: Años que se tardará en lograr que los cursos de recepción existentes se adecúen a las normas | D7: 3 | F7: Número de escuelas con aulas disponibles para transformarse en clases de recepción | I7: =Overview!D40 -> 489.4508876
B8: Años que se tardará en acondicionar las aulas disponibles para que puedan usarse | D8: 3 | F8: Número de aulas que hay que construir | I8: =I6-I7 -> 752.5491124
B10: Años durante los que se instalarán aulas prefabricadas | D10: 1 | F10: Número de aulas prefabricadas que se pueden instalar cada año | I10: 100
B11: Años que transcurrirán hasta que empiecen las construcciones definitivas | D11: 0 | F11: Número de aulas que se pueden construir durante el primer año | I11: 50
F12: Máximo de aulas que se pueden construir en un año | I12: 150
B13: Número de niños por curso de recepción | D13: 23 | F13: Número de aulas que se pueden reformar en un año | I13: 50
F14: Proporción de aulas disponibles que han de reformarse | I14: 0.33
B15: Sustitución de las aulas prefabricadas iniciales por aulas permanentes | D15: No | F15: Porcentaje de aulas de recepción existentes que necesitan: | H15: una reforma | I15: 0.25
F16: Proportion of existing RCs needing: | H16: WASH facilities | I16: 0
F17: Proportion of existing RCs needing: | H17: furniture | I17: 0
F18: Proportion of existing RCs needing: | H18: TLM | I18: 0
F19: Proportion of existing RCs needing: | H19: outdoor play materials | I19: 0
F20: Porcentaje de aulas disponibles que necesitan instalaciones de WASH | I20: 0.25
F21: Porcentaje de aulas nuevas que necesitan instalaciones de WASH | I21: 0.75
F22: Porcentaje de aulas nuevas que necesitan mobiliario | I22: 0.75
B24: Año en el que los docentes de desarrollo en la primera infancia pueden mejorar su categoría | D24: 2024 | F24: Tasa de abandono de los docentes de desarrollo en la primera infancia | I24: 0.02
F25: Número de docentes extra de desarrollo en la primera infancia con los que puede contarse | I25: 300
F26: Número de docentes de primaria con los que puede contarse y a los que puede impartirse capacitación en EPI | I26: 300
F27: Tamaño de la cohorte de docentes de desarrollo en la primera infancia que poseen una acreditación | I27: 60
F28: Tamaño de la cohorte de docentes de desarrollo en la primera infancia que poseen una diplomatura (a partir de 2023) | I28: 50
F29: Año en el que empezarán a graduarse los docentes de desarrollo en la primera infancia que cursan una diplomatura | I29: 2023
B30: Año en el que se contrata a más inspectores | D30: 2021 | F30: Proporción de docentes de desarrollo en la primera infancia en activo que querrán avanzar de categoría | I30: 0.5
F31: Máximo de docentes al año que pueden mejorar su capacitación y obtener una licenciatura | I31: 30
B32: Porcentaje anual de docentes que recibe formación en el empleo | D32: 0.2 | F32: Aumento anual de los salarios del cuerpo docente | I32: 0.02
B33: Duración en días de la actividad formativa breve en el empleo | D33: 5 | F33: Aumento anual de los salarios de los inspectores | I33: 0.02
B34: Duración en días de la actividad formativa larga en el empleo | D34: 20 | F34: Porcentaje de docentes en activo que necesitan participar en la actividad formativa larga en el empleo | I34: 0.3
A36: ="Resultados - Costo total a lo largo de "&D5&" años: "&TEXT(SUM(H140:OFFSET(G140,0,D5))/1000000,"#,##0") & " millones de ZAR" -> Resultados - Costo total a lo largo de 7 años: 841 millones de ZAR
A37: Costos totales | D37: Aulas, docentes y falta de docentes | H37: Matriculación y tasa de matriculación
D54: ="Year when there are enough teachers for all classrooms opened : "& CEILING(IF(Q104=0,IF(P104=0,IF(O104=0,IF(N104=0,IF(M104=0,IF(L104=0,IF(K104=0,IF(J104=0, IF(I104=0,IF(H104=0,H56,I56),J56),K56),L56),M56),N56),O56),P56),Q56),Q56+Q104/(Q101+Q98)),1) -> Year when there are enough teachers for all classrooms opened : 2028
H55: 1 | I55: 2 | J55: 3 | K55: 4 | L55: 5 | M55: 6 | N55: 7 | O55: 8 | P55: 9 | Q55: 10
A56: Ampliación de los cursos de recepción para lograr que todos los centros de primaria tengan uno (a lo largo de siete años) | H56: 2020 | I56: =H56+1 -> 2021 | J56: =I56+1 -> 2022 | K56: =J56+1 -> 2023 | L56: 2024 | M56: 2025 | N56: 2026 | O56: 2027 | P56: 2028 | Q56: 2029
A57: Objetivo estratégico | B57: Actividades | C57: Unidad de producto | D57: Número de unidades | E57: Costo por unidad (ZAR) | F57: Costo por unidad (USD) | H57: Costo anual (en miles de ZAR) | R57: Costo total de los primeros 5 años (ZAR) | S57: Supuestos
G58: Situaciones hipotéticas de ampliación | H58: ="Año "& H55 & " " & 2019+H55 & " - " & 2020+H55 -> Año 1 2020 - 2021 | I58: Año 2 2021 - 2022 | J58: Año 3 2022 - 2023 | K58: Año 4 2023 - 2024 | L58: Año 5 2024 - 2025 | M58: Año 6 2025 - 2026 | N58: Año 7 2026 - 2027 | O58: Año 8 2027 - 2028 | P58: Año 9 2028 - 2029 | Q58: Año 10 2029 - 2030
A59: 1.1 Garantizar que la infraestructura de las aulas de recepción es segura y está adaptada a los niños | B59: 1.1.1 Construcción de nuevas aulas de recepción | C59: ê | D59: Máximo de aulas prefabricadas que se pueden instalar al año | G59: =I10 -> 100 | R59: =SUM(G59:L59) -> 100
C60: ê | D60: Años durante los que se instalarán aulas prefabricadas | G60: =D10 -> 1 | R60: =SUM(G60:L60) -> 1
C61: ê | G61: Número de aulas prefabricadas que van a instalarse | H61: =IF(H$55<=$G$60,$G$59,0) -> 100 | I61: 0 | J61: 0 | K61: 0 | L61: 0 | M61: 0 | N61: 0 | O61: 0 | P61: 0 | Q61: 0
C62: N.º de aulas de recepción prefabricadas (sin IVA, costos de transporte o emplazamiento) que van a establecerse N.º de aulas de recepción prefabricadas (con IVA, costos de transporte o emplazamiento) que van a establecerse | D62: 758 | E62: 300000 | F62: =E62*0.065371 -> 19611.3 | G62: Podemos presupuestar solo aulas prefabricadas durante los años 1 y 2 y pasar a construir en los años 3-5. Otra opción es presupuestar cinco años con aulas prefabricadas, pero teniendo en cuenta los costos, sinceramente no veo ninguna razón para optar por eso. | H62: =$E62*H61 -> 30000000 | I62: =$E62*I61 -> 0 | J62: =$E62*J61/1000000 -> 0 | K62: 0 | L62: 0 | M62: 0 | N62: 0 | O62: 0 | P62: 0 | Q62: 0 | R62: =SUM(H62:L62) -> 30000000 | S62: Es justo lo que cuesta un aula prefabricada de 7 x 7 metros con espacio para un máximo de 50 alumnos de las que elabora Kwikspace, una empresa sudafricana. El precio incluye una estimación de los impuestos (IVA), el transporte y el posible emplazamiento.
C63: ê | D63: Número de edificaciones en el primer año | G63: =I11 -> 50 | R63: =SUM(G63:L63) -> 50
C64: ê | D64: Máximo de edificaciones al año | G64: =I12 -> 150 | R64: =SUM(G64:L64) -> 150
C65: ê | D65: Tasa de crecimiento del número de edificaciones al año | G65: =IF(incr_rate(G63,($D$5-$D$11),I8-SUM(H61:Q61))<0,0, incr_rate(G63,($D$5-$D$11),I8-SUM(H61:Q61))) -> 0.203365485 | R65: =SUM(G65:L65) -> 0.203365485
C66: ê | G66: Número de edificaciones nuevas | H66: =IF(H$55<=$D$11,0, IF($G$63*(1+$G$65)^(G$55-$D$11)<=$G$64, IF(H$55>$D$5,0,$G$63*(1+$G$65)^(G$55-$D$11)), MIN($G$64,MAX(0,$I$8-SUM($H$61:$Q$61)-SUM($G66:G$66))))) -> 50 | I66: =IF(I$55<=$D$11,0, IF($G$63*(1+$G$65)^(H$55-$D$11)<=$G$64, IF(I$55>$D$5,0,$G$63*(1+$G$65)^(H$55-$D$11)), MIN($G$64,MAX(0,$I$8-SUM($H$61:$Q$61)-SUM($G66:H$66))))) -> 60.16827425 | J66: =IF(J$55<=$D$11,0, IF($G$63*(1+$G$65)^(I$55-$D$11)<=$G$64, IF(J$55>$D$5,0,$G$63*(1+$G$65)^(I$55-$D$11)), MIN($G$64,MAX(0,$I$8-SUM($H$61:$Q$61)-SUM($G66:I$66))))) -> 72.40442452 | K66: =IF(K$55<=$D$11,0, IF($G$63*(1+$G$65)^(J$55-$D$11)<=$G$64, IF(K$55>$D$5,0,$G$63*(1+$G$65)^(J$55-$D$11)), MIN($G$64,MAX(0,$I$8-SUM($H$61:$Q$61)-SUM($G66:J$66))))) -> 87.12898543 | L66: =IF(L$55<=$D$11,0, IF($G$63*(1+$G$65)^(K$55-$D$11)<=$G$64, IF(L$55>$D$5,0,$G$63*(1+$G$65)^(K$55-$D$11)), MIN($G$64,MAX(0,$I$8-SUM($H$61:$Q$61)-SUM($G66:K$66))))) -> 104.8480138 | M66: =IF(M$55<=$D$11,0, IF($G$63*(1+$G$65)^(L$55-$D$11)<=$G$64, IF(M$55>$D$5,0,$G$63*(1+$G$65)^(L$55-$D$11)), MIN($G$64,MAX(0,$I$8-SUM($H$61:$Q$61)-SUM($G66:L$66))))) -> 126.170481 | N66: =IF(N$55<=$D$11,0, IF($G$63*(1+$G$65)^(M$55-$D$11)<=$G$64, IF(N$55>$D$5,0,$G$63*(1+$G$65)^(M$55-$D$11)), MIN($G$64,MAX(0,$I$8-SUM($H$61:$Q$61)-SUM($G66:M$66))))) -> 150 | O66: =IF(O$55<=$D$11,0, IF($G$63*(1+$G$65)^(N$55-$D$11)<=$G$64, IF(O$55>$D$5,0,$G$63*(1+$G$65)^(N$55-$D$11)), MIN($G$64,MAX(0,$I$8-SUM($H$61:$Q$61)-SUM($G66:N$66))))) -> 1.828933448 | P66: =IF(P$55<=$D$11,0, IF($G$63*(1+$G$65)^(O$55-$D$11)<=$G$64, IF(P$55>$D$5,0,$G$63*(1+$G$65)^(O$55-$D$11)), MIN($G$64,MAX(0,$I$8-SUM($H$61:$Q$61)-SUM($G66:O$66))))) -> 0 | Q66: =IF(Q$55<=$D$11,0, IF($G$63*(1+$G$65)^(P$55-$D$11)<=$G$64, IF(Q$55>$D$5,0,$G$63*(1+$G$65)^(P$55-$D$11)), MIN($G$64,MAX(0,$I$8-SUM($H$61:$Q$61)-SUM($G66:P$66))))) -> 0
C67: ê | G67: Número de edificaciones que sustituyen a aulas prefabricadas | H67: =IF($D$15="Yes",IF(H66=0,MIN(MAX($H$66:$Q$66),SUM($H$61:$Q$61)-SUM(G67:$G$67)),0),0) -> 0 | I67: =IF($D$15="Yes",IF(I66=0,MIN(MAX($H$66:$Q$66),SUM($H$61:$Q$61)-SUM($G67:H$67)),0),0) -> 0 | J67: =IF($D$15="Yes",IF(J66=0,MIN(MAX($H$66:$Q$66),SUM($H$61:$Q$61)-SUM($G67:I$67)),0),0) -> 0 | K67: =IF($D$15="Yes",IF(K66=0,MIN(MAX($H$66:$Q$66),SUM($H$61:$Q$61)-SUM($G67:J$67)),0),0) -> 0 | L67: =IF($D$15="Yes",IF(L66=0,MIN(MAX($H$66:$Q$66),SUM($H$61:$Q$61)-SUM($G67:K$67)),0),0) -> 0 | M67: =IF($D$15="Yes",IF(M66=0,MIN(MAX($H$66:$Q$66),SUM($H$61:$Q$61)-SUM($G67:L$67)),0),0) -> 0 | N67: =IF($D$15="Yes",IF(N66=0,MIN(MAX($H$66:$Q$66),SUM($H$61:$Q$61)-SUM($G67:M$67)),0),0) -> 0 | O67: =IF($D$15="Yes",IF(O66=0,MIN(MAX($H$66:$Q$66),SUM($H$61:$Q$61)-SUM($G67:N$67)),0),0) -> 0 | P67: =IF($D$15="Yes",IF(P66=0,MIN(MAX($H$66:$Q$66),SUM($H$61:$Q$61)-SUM($G67:O$67)),0),0) -> 0 | Q67: =IF($D$15="Yes",IF(Q66=0,MIN(MAX($H$66:$Q$66),SUM($H$61:$Q$61)-SUM($G67:P$67)),0),0) -> 0
C68: N.º de aulas de recepción permanentes (sin IVA, costos de transporte o emplazamiento) que van a construirse | D68: 0 | E68: 400000 | F68: =E68*0.065371 -> 26148.4 | G68: Aquí se muestra una opción; en las notas hay otras. | H68: =(H66+H67)*$E$68 -> 20000000 | I68: 24067309.7 | J68: 28961769.81 | K68: 34851594.17 | L68: 41939205.52 | M68: 50468192.39 | N68: 60000000 | O68: 731573.3793 | P68: 0 | Q68: 0 | R68: =SUM(H68:L68) -> 149819879.2 | S68: Es un cálculo basado en la información financiera que la Unidad de Cuidado y Desarrollo de la Primera Infancia ha enviado: edificar un bloque con dos aulas costaba 700.000 ZAR. Por eso, el costo estimado de un aula de recepción asciende a 400.000 ZAR.
B69: 1.1.2 Reforma de las aulas disponibles en primaria para convertirlas en cursos de recepción | C69: ê | D69: Capacidad de remodelación de aulas al año | G69: =I13 -> 50 | R69: =SUM(G69:L69) -> 50
C70: ê | D70: Porcentaje de aulas de recepción existentes que necesitan reformas | G70: =I15 -> 0.25 | R70: =SUM(G70:L70) -> 0.25
C71: ê | G71: Número de aulas de recepción existentes que hay que reformar | H71: =MIN($G$69,MAX($I$5*$G70-SUM(G71:$G$71),0)) -> 50 | I71: =MIN($G$69,MAX($I$5*$G70-SUM($G71:H$71),0)) -> 10 | J71: =MIN($G$69,MAX($I$5*$G70-SUM($G71:I$71),0)) -> 0 | K71: =MIN($G$69,MAX($I$5*$G70-SUM($G71:J$71),0)) -> 0 | L71: =MIN($G$69,MAX($I$5*$G70-SUM($G71:K$71),0)) -> 0 | M71: =MIN($G$69,MAX($I$5*$G70-SUM($G71:L$71),0)) -> 0 | N71: =MIN($G$69,MAX($I$5*$G70-SUM($G71:M$71),0)) -> 0 | O71: =MIN($G$69,MAX($I$5*$G70-SUM($G71:N$71),0)) -> 0 | P71: =MIN($G$69,MAX($I$5*$G70-SUM($G71:O$71),0)) -> 0 | Q71: =MIN($G$69,MAX($I$5*$G70-SUM($G71:P$71),0)) -> 0
C72: ê | D72: Porcentaje de aulas disponibles que han de reformarse | G72: =I14 -> 0.33 | R72: =SUM(G72:L72) -> 0.33
C73: ê | G73: Número de aulas disponibles que han de reformarse | H73: =MIN($I$13-H71,MAX($I$7*$G72-SUM(G$73:$G73),0)) -> 0 | I73: =MIN($I$13-I71,MAX($I$7*$G72-SUM($G$73:H73),0)) -> 40 | J73: =MIN($I$13-J71,MAX($I$7*$G72-SUM($G$73:I73),0)) -> 50 | K73: =MIN($I$13-K71,MAX($I$7*$G72-SUM($G$73:J73),0)) -> 50 | L73: =MIN($I$13-L71,MAX($I$7*$G72-SUM($G$73:K73),0)) -> 21.5187929 | M73: =MIN($I$13-M71,MAX($I$7*$G72-SUM($G$73:L73),0)) -> 0 | N73: =MIN($I$13-N71,MAX($I$7*$G72-SUM($G$73:M73),0)) -> 0 | O73: =MIN($I$13-O71,MAX($I$7*$G72-SUM($G$73:N73),0)) -> 0 | P73: =MIN($I$13-P71,MAX($I$7*$G72-SUM($G$73:O73),0)) -> 0 | Q73: =MIN($I$13-Q71,MAX($I$7*$G72-SUM($G$73:P73),0)) -> 0 | R73: =MIN($I$13-R71,MAX($I$7*$G72-SUM($G$73:Q73),0)) -> 0
C74: N.º de aulas de primaria que han podido transformarse en cursos de recepción | D74: 485 | E74: 10000 | F74: =E74*0.065371 -> 653.71 | G74: Tenemos que dar por sentado que al menos un tercio de lo que pensamos que son aulas listas para su uso resultarán no ser lugares aptos, así que propongo que presupuestemos aulas prefabricadas para esos casos. | H74: =(H71+H73)*$E74 -> 500000 | I74: 500000 | J74: 500000 | K74: 500000 | L74: 215187.929 | M74: 0 | N74: 0 | O74: 0 | P74: 0 | Q74: 0 | R74: =SUM(H74:L74) -> 2215187.929 | S74: El Ministerio de Educación y Formación contempla una tasa de subvención de 5 maloti por alumno para reformar o rehabilitar la infraestructura. Al haber 23 alumnos en un aula = 115 maloti por curso de recepción.
B75: 1.1.3 Suministro de instalaciones de WASH adaptadas a los niños | C75: ê | D75: Porcentaje de aulas disponibles que necesitan instalaciones de WASH | G75: =I20 -> 0.25 | R75: =SUM(G75:L75) -> 0.25
C76: ê | D76: Porcentaje de aulas nuevas que necesitan instalaciones de WASH | G76: =I21 -> 0.75 | R76: =SUM(G76:L76) -> 0.75
C77: ê | D77: Porcentaje de aulas de recepción existentes que necesitan instalaciones de WASH | G77: =I16 -> 0 | R77: =SUM(G77:L77) -> 0
C78: ê | G78: Número de instalaciones de WASH que hay que construir | H78: =$G$76*(H$61+H$66)+IF(H$55<=$D$7,$G77*IFERROR($I$5/$D$7,0),0)+IF(H$55<=$D$8,$G$75*IFERROR($I$7/$D$8,0),0) -> 153.287574 | I78: 85.91377965 | J78: 95.09089235 | K78: 65.34673907 | L78: 78.63601035 | M78: 94.62786073 | N78: 112.5 | O78: 1.371700086 | P78: 0 | Q78: 0
C79: N.º de instalaciones de WASH (retrete + lavabo) que se han construido | D79: 0 | E79: 20000 | F79: =E79*0.065371 -> 1307.42 | G79: Para cada aula nueva o remodelada | H79: =H78*$E79 -> 3065751.479 | I79: 1718275.593 | J79: 1901817.847 | K79: 1306934.781 | L79: 1572720.207 | M79: 1892557.215 | N79: 2250000 | O79: 27434.00172 | P79: 0 | Q79: 0 | R79: =SUM(H79:L79) -> 9565499.908 | S79: Parece que la mayor parte de las escuelas de primaria cuenta con instalaciones de WASH que también son apropiadas para niños de 5 años. Por eso, podríamos obviar esta parte.
C80: ê | D80: Porcentaje de aulas de recepción existentes que necesitan lotes de mobiliario | G80: =I17 -> 0 | R80: =SUM(G80:L80) -> 0
A81: 1.2 Proporcionar a todas las aulas de recepción el mobiliario adecuado | B81: 1.2.1 Paquete de mobiliario mínimo imprescindible para las aulas de recepción | C81: ê | D81: Porcentaje de aulas disponibles que necesitan lotes de mobiliario | G81: =I22 -> 0.75 | R81: =SUM(G81:L81) -> 0.75
C82: ê | G82: Número de lotes de mobiliario que se deben adquirir | H82: =H$61+H$66+IF(H$55<=$D$7,$G80*IFERROR($I$5/$D$7,0),0)+IF(H$55<=$D$8,$G$81*IFERROR($I$7/$D$8,0),0) -> 272.3627219 | I82: 182.5309961 | J82: 194.7671464 | K82: 87.12898543 | L82: 104.8480138 | M82: 126.170481 | N82: 150 | O82: 1.828933448 | P82: 0 | Q82: 0
C83: N.º de aulas de recepción a las que se enviará mobiliario | D83: 1243 | E83: 3500 | F83: =E83*0.065371 -> 228.7985 | H83: =H82*$E83 -> 953269.5266 | I83: 638858.4865 | J83: 681685.0124 | K83: 304951.449 | L83: 366968.0483 | M83: 441596.6834 | N83: 525000 | O83: 6401.267068 | P83: 0 | Q83: 0 | R83: =SUM(H83:L83) -> 2945732.523 | S83: El Ministerio de Educación y Formación está estudiando las estimaciones del costo. Las estimaciones se basan en el precio del mobiliario de primaria.
A84: 1.3 Dotación de materiales de enseñanza y aprendizaje de calidad | B84: 1.3.1 Provisión de paquetes completos de materiales de enseñanza, aprendizaje y juego | C84: ê | D84: Porcentaje de aulas de recepción existentes que necesitan materiales de enseñanza y aprendizaje | G84: =I18 -> 0 | R84: =SUM(G84:L84) -> 0
C85: ê | G85: Número de lotes de materiales nuevos de enseñanza y aprendizaje que se deben adquirir | H85: =H$61+H$66+IF(H$55<=$D$7,$G84*IFERROR($I$5/$D$7,0),0)+IF(H$55<=$D$8,IFERROR($I$7/$D$8,0),0) -> 313.1502959 | I85: 223.3185701 | J85: 235.5547204 | K85: 87.12898543 | L85: 104.8480138 | M85: 126.170481 | N85: 150 | O85: 1.828933448 | P85: 0 | Q85: 0
C86: ê | D86: Tasa anual de sustitución | G86: 0.05 | R86: =SUM(G86:L86) -> 0.05
C87: ê | G87: Número de lotes de materiales de enseñanza y aprendizaje que hay que sustituir | H87: =$G86*SUM(G85:$G85) -> 0 | I87: =$G86*SUM($G85:H85) -> 15.65751479 | J87: =$G86*SUM($G85:I85) -> 26.8234433 | K87: =$G86*SUM($G85:J85) -> 38.60117932 | L87: =$G86*SUM($G85:K85) -> 42.95762859 | M87: =$G86*SUM($G85:L85) -> 48.20002928 | N87: =$G86*SUM($G85:M85) -> 54.50855333 | O87: =$G86*SUM($G85:N85) -> 62.00855333 | P87: =$G86*SUM($G85:O85) -> 62.1 | Q87: =$G86*SUM($G85:P85) -> 62.1
C88: N.º de aulas de recepción a las que se enviarán materiales de enseñanza y aprendizaje | D88: 1243 | E88: 4500 | F88: =E88*0.065371 -> 294.1695 | G88: Luc, en este apartado damos por hecho que todos los años hay que sustituir parte de los materiales. | H88: =(H85+H87)*$E88 -> 1409176.331 | I88: 1075392.382 | J88: 1180701.737 | K88: 565785.7413 | L88: 665125.3908 | M88: 784667.2962 | N88: 920288.49 | O88: 287268.6905 | P88: 279450 | Q88: 279450 | R88: =SUM(H88:L88) -> 4896181.582 | S88: El Ministerio de Educación y Formación ofrecerá información detallada (como su costo) sobre los paquetes completos de materiales de enseñanza y aprendizaje para los cursos de recepción.
B89: 1.3.2 Abastecimiento de equipamientos para jugar al aire libre | C89: ê | D89: Porcentaje de aulas de recepción existentes que necesitan equipamientos para jugar al aire libre | G89: =I19 -> 0 | R89: =SUM(G89:L89) -> 0
C90: ê | G90: Número de equipamientos para jugar al aire libre que se deben adquirir | H90: =H$61+H$66+IF(H$55<=$D$7,$G89*IFERROR($I$5/$D$7,0),0)+IF(H$55<=$D$8,IFERROR($I$7/$D$8,0),0) -> 313.1502959 | I90: 223.3185701 | J90: 235.5547204 | K90: 87.12898543 | L90: 104.8480138 | M90: 126.170481 | N90: 150 | O90: 1.828933448 | P90: 0 | Q90: 0
C91: N.º de equipamientos para jugar al aire libre | D91: 1243 | E91: 1500 | F91: =E91*0.065371 -> 98.0565 | H91: =H90*$E91 -> 469725.4438 | I91: 334977.8552 | J91: 353332.0806 | K91: 130693.4781 | L91: 157272.0207 | M91: 189255.7215 | N91: 225000 | O91: 2743.400172 | P91: 0 | Q91: 0 | R91: =SUM(H91:L91) -> 1446000.878 | S91: El Ministerio de Educación y Formación ofrecerá información detallada (como su costo) sobre los paquetes completos de materiales de enseñanza y aprendizaje para los cursos de recepción.
A92: 1.4 Reforzar la capacidad de la fuerza de trabajo del campo de la EPI | B92: 1.4.2 Salario anual de un docente (auxiliar) que se dedique al cuidado y desarrollo en la primera infancia por cada curso de recepción (basado en el salario actual de los docentes de desarrollo en la primera infancia) | C92: ê | G92: Número de nuevas aulas de recepción funcionales | H92: =H$61+H$66+IF(H$55<=$D$8,IFERROR($I$7/$D$8,0),0) -> 313.1502959 | I92: 223.3185701 | J92: 235.5547204 | K92: 87.12898543 | L92: 104.8480138 | M92: 126.170481 | N92: 150 | O92: 1.828933448 | P92: 0 | Q92: 0
C93: ê | G93: Total de aulas de recepción funcionales | H93: =H92+$I$5 -> 553.1502959 | I93: =I92+H93 -> 776.468866 | J93: =J92+I93 -> 1012.023586 | K93: =K92+J93 -> 1099.152572 | L93: =L92+K93 -> 1204.000586 | M93: 1330.171067 | N93: 1480.171067 | O93: 1482 | P93: 1482 | Q93: 1482
C94: ê | D94: Tasa de abandono de los docentes de desarrollo en la primera infancia | G94: =I24 -> 0.02
C95: ê | G95: Número de docentes nuevos que se requieren | H95: =H92+$G$94*H96 -> 317.9502959 | I95: =I92+$G$94*H103 -> 234.381576 | J95: 251.0840977 | K95: 106.9011378 | L95: 126.4247231 | M95: 148.9156561 | N95: 174.4902716 | O95: 28.02939962 | P95: 27.87645685 | Q95: 29.04
C96: ê | G96: Docentes de desarrollo en la primera infancia en activo | H96: =$I$5 -> 240 | I96: 240 | J96: 240 | K96: 240 | L96: 240 | M96: 240 | N96: 240 | O96: 240 | P96: 240 | Q96: 240
C97: ê | D97: Contrataciones | E97: Cantidad | F97: =I25 -> 300 | G97: Docentes de desarrollo en la primera infancia con los que se puede contar | H97: =MAX(0,MIN(H95-H98,MAX(0,$F97-SUM($G97:G97)))) -> 257.9502959 | I97: =MAX(0,MIN(I95-I98,MAX(0,$F97-SUM($G97:H97)))) -> 42.04970414 | J97: =MAX(0,MIN(J95-J98,MAX(0,$F97-SUM($G97:I97)))) -> 0 | K97: =MAX(0,MIN(K95-K98,MAX(0,$F97-SUM($G97:J97)))) -> 0 | L97: =MAX(0,MIN(L95-L98,MAX(0,$F97-SUM($G97:K97)))) -> 0 | M97: =MAX(0,MIN(M95-M98,MAX(0,$F97-SUM($G97:L97)))) -> 0 | N97: =MAX(0,MIN(N95-N98,MAX(0,$F97-SUM($G97:M97)))) -> 0 | O97: =MAX(0,MIN(O95-O98,MAX(0,$F97-SUM($G97:N97)))) -> 0 | P97: =MAX(0,MIN(P95-P98,MAX(0,$F97-SUM($G97:O97)))) -> 0 | Q97: =MAX(0,MIN(Q95-Q98,MAX(0,$F97-SUM($G97:P97)))) -> 0
C98: ê | E98: Tamaño de la cohorte | F98: =I27 -> 60 | G98: Docentes acreditados que acaban de graduarse | H98: =MIN($F$98,H95) -> 60 | I98: =MIN($F$98,I95+H104) -> 60 | J98: 60 | K98: 60 | L98: 60 | M98: 60 | N98: 60 | O98: 60 | P98: 60 | Q98: 29.04
C99: ê | E99: Cantidad | F99: =I26 -> 300 | G99: Docentes de primaria con los que se puede contar | H99: =MAX(0,MIN(H95-H98-H97,MAX(0,$F99-SUM($G99:G99)))) -> 0 | I99: =MAX(0,MIN(I95-I98-I97,MAX(0,$F99-SUM($G99:H99)))) -> 132.3318719 | J99: =MAX(0,MIN(J95-J98-J97,MAX(0,$F99-SUM($G99:I99)))) -> 167.6681281 | K99: =MAX(0,MIN(K95-K98-K97,MAX(0,$F99-SUM($G99:J99)))) -> 0 | L99: =MAX(0,MIN(L95-L98-L97,MAX(0,$F99-SUM($G99:K99)))) -> 0 | M99: =MAX(0,MIN(M95-M98-M97,MAX(0,$F99-SUM($G99:L99)))) -> 0 | N99: =MAX(0,MIN(N95-N98-N97,MAX(0,$F99-SUM($G99:M99)))) -> 0 | O99: =MAX(0,MIN(O95-O98-O97,MAX(0,$F99-SUM($G99:N99)))) -> 0 | P99: =MAX(0,MIN(P95-P98-P97,MAX(0,$F99-SUM($G99:O99)))) -> 0 | Q99: =MAX(0,MIN(Q95-Q98-Q97,MAX(0,$F99-SUM($G99:P99)))) -> 0
C100: ê | E100: Año en el que empezarán a graduarse los docentes que cursan un grado universitario | G100: =I29 -> 2023
C101: ê | E101: Tamaño de la cohorte | F101: =I28 -> 50 | G101: Docentes con diplomatura que acaban de graduarse | H101: =IF(H$56>=$G$100,MIN($F101,MAX(H95+G104-H98,0)),0) -> 0 | I101: 0 | J101: 0 | K101: 50 | L101: 50 | M101: 50 | N101: 50 | O101: 50 | P101: 26.05361458 | Q101: 0
C102: ê | G102: Total de docentes contratados | H102: =SUM(H97:H101) -> 317.9502959 | I102: =SUM(I97:I101) -> 234.381576 | J102: 227.6681281 | K102: 110 | L102: 110 | M102: 110 | N102: 110 | O102: 110 | P102: 86.05361458 | Q102: 29.04
C103: ê | G103: Número total de docentes | H103: =H102+H96*(1-$G$94)-H110 -> 553.1502959 | I103: =H103*(1-$G$94)+I102-I110+H110 -> 776.468866 | J103: 988.6076168 | K103: 1078.835464 | L103: 1137.258755 | M103: 1224.51358 | N103: 1310.023308 | O103: 1393.822842 | P103: 1452 | Q103: 1452
C104: ê | G104: Falta de docentes | H104: =H95-H102 -> 0 | I104: =MAX(I95-I102+H104,0) -> 0 | J104: 23.41596958 | K104: 20.31710734 | L104: 36.74183043 | M104: 75.65748651 | N104: 140.1477581 | O104: 58.17715773 | P104: 0 | Q104: 0
C105: ê | G105: Número total de docentes que reciben el salario correspondiente al trabajo en desarrollo en la primera infancia | H105: =H96*(1-$G$94)+H97+H98 -> 553.1502959 | I105: =I97+I98+H105*(1-$G$94)-I110 -> 644.1369941 | J105: 691.2542542 | K105: 737.4291691 | L105: 752.6805857 | M105: 767.626974 | N105: 782.2744345 | O105: 796.6289458 | P105: 810.6963669 | Q105: 793.5224396
C106: ê | G106: Número total de docentes que reciben el salario correspondiente al trabajo en educación primaria | H106: =H101+H99 -> 0 | I106: =I101+I99+H106*(1-$G$94)+H110 -> 132.3318719 | J106: 297.3533626 | K106: 341.4062953 | L106: 384.5781694 | M106: 456.886606 | N106: 527.7488739 | O106: 597.1938964 | P106: 641.3036331 | Q106: 658.4775604
C107: ê | D107: Año en el que los docentes de desarrollo en la primera infancia pueden mejorar su categoría | G107: =D24 -> 2024
C108: ê | D108: Proporción de docentes que querrán avanzar de categoría | G108: 0.75
C109: ê | D109: Máximo de docentes al año que pueden mejorar su capacitación y obtener un grado universitario | G109: 30
C110: ê | G110: Número de docentes que participan en capacitación para mejorar su categoría | H110: =IF(H56<$G$107,0,MIN($G$109,MAX(0,$G$108*($H$96+$F$97)-SUM(G110:$G$110)))) -> 0 | I110: =IF(I56<$G$107,0,MIN($G$109,MAX(0,$G$108*($H$96+$F$97)-SUM($G110:H$110)))) -> 0 | J110: =IF(J56<$G$107,0,MIN($G$109,MAX(0,$G$108*($H$96+$F$97)-SUM($G110:I$110)))) -> 0 | K110: =IF(K56<$G$107,0,MIN($G$109,MAX(0,$G$108*($H$96+$F$97)-SUM($G110:J$110)))) -> 0 | L110: =IF(L56<$G$107,0,MIN($G$109,MAX(0,$G$108*($H$96+$F$97)-SUM($G110:K$110)))) -> 30 | M110: =IF(M56<$G$107,0,MIN($G$109,MAX(0,$G$108*($H$96+$F$97)-SUM($G110:L$110)))) -> 30 | N110: =IF(N56<$G$107,0,MIN($G$109,MAX(0,$G$108*($H$96+$F$97)-SUM($G110:M$110)))) -> 30 | O110: =IF(O56<$G$107,0,MIN($G$109,MAX(0,$G$108*($H$96+$F$97)-SUM($G110:N$110)))) -> 30 | P110: =IF(P56<$G$107,0,MIN($G$109,MAX(0,$G$108*($H$96+$F$97)-SUM($G110:O$110)))) -> 30 | Q110: =IF(Q56<$G$107,0,MIN($G$109,MAX(0,$G$108*($H$96+$F$97)-SUM($G110:P$110)))) -> 30
C111: ê | D111: Aumento anual de los salarios del cuerpo docente | G111: =I32 -> 0.02
C112: ê | E112: Punto de partida | F112: =E114 -> 23000 | G112: Salario de los docentes de desarrollo en la primera infancia con los que se puede contar | H112: =E114 -> 23000 | I112: =H112*(1+$G$111) -> 23460 | J112: 23929.2 | K112: 24407.784 | L112: 24895.93968 | M112: 25393.85847 | N112: 25901.73564 | O112: 26419.77036 | P112: 26948.16576 | Q112: 27487.12908
C113: ê | E113: Punto de partida | F113: =E115 -> 98072 | G113: Salario de los docentes de primaria con los que se puede contar | H113: =E115 -> 98072 | I113: 100033.44 | J113: 102034.1088 | K113: 104074.791 | L113: 106156.2868 | M113: 108279.4125 | N113: 110445.0008 | O113: 112653.9008 | P113: 114906.9788 | Q113: 117205.1184
C114: N.º de docentes del ámbito del cuidado y desarrollo de la primera infancia que percibirán un salario anual | D114: 622 (en este momento, contamos con al menos 240 docentes del ámbito del cuidado y desarrollo en la primera infancia que trabajan en cursos de recepción) | E114: 23000 | F114: =E114*0.065371 -> 1503.533 | G114: Véase la nota cuando llegue el momento de trabajar en estas opciones. La estimación de costos se guiará por las opciones en materia de construcción que se han expuesto anteriormente en relación con el verdadero número de docentes que forman parte del sistema. | H114: =H112*H105 -> 12722456.8 | I114: =I112*I105 -> 15111453.88 | J114: 16541161.3 | K114: 17999011.88 | L114: 18738690.46 | M114: 19493010.74 | N114: 20262265.6 | O114: 21046753.81 | P114: 21846780.08 | Q114: 21811653.72 | R114: =SUM(H114:L114) -> 81112774.32 | S114: Es el sueldo ACTUAL de los docentes del ámbito del cuidado y desarrollo de la primera infancia. El personal de la Unidad de Cuidado y Desarrollo de la Primera Infancia del Ministerio de Educación y Formación ha discutido y propuesto un salario anual de 23.000 ZAR (también se percibe un extra equivalente a un decimotercer mes de sueldo, etc.). También es conveniente pensar en qué otros complementos o dietas podrían ofrecerse a los docentes que trabajan en zonas rurales en las que las condiciones son difíciles. De momento, la mitad de los salarios de los docentes del ámbito del cuidado y desarrollo de la primera infancia = el salario actual.
B115: 1.4.2 Salario anual de un docente (auxiliar) que se dedique al cuidado y desarrollo en la primera infancia por cada curso de recepción (basado en el salario de los docentes de primaria) | C115: N.º de docentes del ámbito del cuidado y desarrollo de la primera infancia que percibirán un salario anual | D115: =1243/2 -> 621.5 | E115: 98072 | F115: =E115*0.065371 -> 6411.064712 | H115: =H113*H106 -> 0 | I115: 13237612.37 | J115: 30340185.35 | K115: 35531788.82 | L115: 40825390.45 | M115: 49471413.29 | N115: 58287224.79 | O115: 67276221.96 | P115: 73690262.98 | Q115: 77176940.42 | R115: =SUM(H115:L115) -> 119934977 | S115: Según el análisis del sector educativo, el sueldo promedio de los docentes de primaria ascendía a 98.072 ZAR en 2018. De momento, la mitad de los salarios de los docentes del ámbito del cuidado y desarrollo de la primera infancia = el salario mejorado.
B116: 1.4.2 Curso de orientación sobre las aulas de recepción para la dirección de las escuelas | C116: N.º de directores de escuela que participarán en un curso de orientación de cinco días (en el momento de presentar o inaugurar el curso de recepción) | D116: 1243 | E116: 2500 | F116: =E116*0.065371 -> 163.4275 | G116: Hay que seguir las situaciones hipotéticas de ampliación en cuanto al número anual de administradores que reciben formación. | H116: =$E116*(H92+H97) -> 1427751.479 | I116: =$E116*I92 -> 558296.4253 | J116: 588886.8009 | K116: 217822.4636 | L116: 262120.0345 | M116: 315426.2024 | N116: 375000 | O116: 4572.33362 | P116: 0 | Q116: 0 | R116: =SUM(H116:L116) -> 3054877.204 | S116: Hay que confirmar con el Ministerio de Educación y Formación el formato (y el costo por unidad) de los cursos de orientación para las directivas de las escuelas. ¿Cinco días? ¿Tres días? ¿En el plano nacional o del distrito? ¿Estimación del costo?
B117: 1.4.3 Contratación de otro inspector más de cuidado y desarrollo de la primera infancia por distrito | C117: ê | D117: Año en el que se contrata a más inspectores | G117: =D30 -> 2021
C118: ê | G118: Número de inspectores extra | H118: =IF(H$56>=$G117,$D$121,0) -> 0 | I118: 10 | J118: 10 | K118: 10 | L118: 10 | M118: 10 | N118: 10 | O118: 10 | P118: 10 | Q118: 10
C119: ê | D119: Aumento anual de los salarios de los inspectores | G119: 0.02
C120: ê | G120: Salario anual de los inspectores | H120: =E121 -> 100000 | I120: =H120*(1+$G$119) -> 102000 | J120: 104040 | K120: 106120.8 | L120: 108243.216 | M120: 110408.0803 | N120: 112616.2419 | O120: 114868.5668 | P120: 117165.9381 | Q120: 119509.2569
C121: N.º de inspectores que es necesario contratar y que recibirán un sueldo anual | D121: 10 | E121: 100000 | F121: =E121*0.065371 -> 6537.1 | G121: Gasto recurrente a lo largo de cinco años. Lo ideal es que los contratemos durante el año 1. | H121: =(H118+10)*H120 -> 1000000 | I121: =(I118+10)*I120 -> 2040000 | J121: 2080800 | K121: 2122416 | L121: 2164864.32 | M121: 2208161.606 | N121: 2252324.839 | O121: 2297371.335 | P121: 2343318.762 | Q121: 2390185.137 | R121: =SUM(G121:L121) -> 9408080.32 | S121: ¿Basta con contratar a dos inspectores más por distrito para que se encarguen de los cursos de recepción? ¿Cuál es su salario anual? Hay que comprobarlo.
B122: 1.4.3 Capacitación de los inspectores de cuidado y desarrollo de la primera infancia (empleados con antigüedad e incorporaciones recientes) | C122: N.º de inspectores que hay que capacitar | D122: 20 | E122: 2500 | F122: =E122*0.065371 -> 163.4275 | G122: ¿Se trata de un gasto puntual? | H122: =(IF(H55=1,10,0)+(H118-SUM(G118)))*$E$122 -> 25000 | I122: 25000 | J122: 0 | K122: 0 | L122: 0 | M122: 0 | N122: 0 | O122: 0 | P122: 0 | Q122: 0 | R122: =SUM(G122:L122) -> 50000
B123: 1.4.4 Formación en el empleo para desarrollar la capacidad de todos los docentes que empiezan a trabajan en cursos de recepción | C123: ê | D123: Duración en días de la actividad formativa LARGA en el empleo | G123: =D34 -> 20
C124: ê | G124: Número de docentes que participan en la actividad formativa LARGA en el empleo | H124: =H99 -> 0 | I124: =I99 -> 132.3318719 | J124: 167.6681281 | K124: 0 | L124: 0 | M124: 0 | N124: 0 | O124: 0 | P124: 0 | Q124: 0
C125: N.º de docentes que participarán en un taller de 20 días sobre EPI | D125: 622 | E125: =G123*500 -> 10000 | F125: =E125*0.065371 -> 653.71 | G125: Hay que seguir las situaciones hipotéticas de ampliación en cuanto al número anual de administradores que reciben formación. | H125: =H124*$E125 -> 0 | I125: 1323318.719 | J125: 1676681.281 | K125: 0 | L125: 0 | M125: 0 | N125: 0 | O125: 0 | P125: 0 | Q125: 0 | R125: =SUM(H125:L125) -> 3000000
B126: 1.4.4 Formación en el empleo para desarrollar la capacidad de todos los docentes de cursos de recepción que ya formaban parte del sistema o se acaban de incorporar | C126: ê | D126: Porcentaje anual de docentes que recibe formación en el empleo | G126: =D32 -> 0.2
C127: ê | D127: Duración en días de la actividad formativa habitual en el empleo | G127: =D33 -> 5
C128: ê | G128: Número de docentes que participan en la actividad formativa breve en el empleo | H128: =H97 -> 257.9502959 | I128: =H98+$G$126*H103 -> 170.6300592 | J128: =I98+$G$126*I103 -> 215.2937732 | K128: 257.7215234 | L128: 275.7670929 | M128: 287.451751 | N128: 304.902716 | O128: 322.0046617 | P128: 338.7645685 | Q128: 350.4
C129: N.º de docentes que participarán en un taller de cinco días sobre EPI | D129: 621.5 | E129: =G127*500 -> 2500 | F129: =E129*0.065371 -> 163.4275 | G129: Hay que seguir las situaciones hipotéticas de ampliación en cuanto al número anual de administradores que reciben formación. | H129: =H128*$E129 -> 644875.7396 | I129: 426575.1479 | J129: 538234.433 | K129: 644303.8084 | L129: 689417.7322 | M129: 718629.3776 | N129: 762256.79 | O129: 805011.6542 | P129: 846911.4211 | Q129: 876000 | R129: =SUM(H129:L129) -> 2943406.861 | S129: Supuesto: el 50% de los docentes reorienta su práctica y necesita una actividad formativa en el empleo de un mes de duración. Supuesto: el 50% de los docentes necesita un curso de actualización de una semana de duración.
B130: 1.4.4 Formación en el empleo para desarrollar la capacidad de todos los docentes que empiezan a trabajan en cursos de recepción | C130: ê | D130: Duración en días de la actividad formativa breve en el empleo | G130: 2
C131: ê | D131: Año en el que entrará en vigor el nuevo plan de estudios | G131: 2021
C132: ê | G132: Número de docentes que participan en la actividad formativa breve en el empleo | H132: =IF(H56<$G$131,0,IF(H56=$G$131,H103,H102)) -> 0 | I132: 776.468866 | J132: 227.6681281 | K132: 110 | L132: 110 | M132: 110 | N132: 110 | O132: 110 | P132: 86.05361458 | Q132: 29.04
C133: N.º de docentes que participarán en un taller de 20 días sobre EPI | D133: 622 | E133: =G130*500 -> 1000 | F133: =E133*0.065371 -> 65.371 | G133: Hay que seguir las situaciones hipotéticas de ampliación en cuanto al número anual de administradores que reciben formación. | H133: =H132*$E133 -> 0 | I133: 776468.866 | J133: 227668.1281 | K133: 110000 | L133: 110000 | M133: 110000 | N133: 110000 | O133: 110000 | P133: 86053.61458 | Q133: 29040 | R133: =SUM(H133:L133) -> 1224136.994
B134: 1.4.5 Curso de orientación sobre las aulas de recepción y la EPI para los funcionarios encargados de la planificación y las normas en los distritos | C134: ê | D134: Año en el que se capacitará al personal de los distritos | G134: 2020
C135: N.º de trabajadores del sector educativo en los distritos que participarán en un curso de orientación sobre EPI (¿dos días?) | D135: 20 | E135: 1000 | F135: =E135*0.065371 -> 65.371 | G135: Gasto puntual en el año 1 o 2. | H135: =IF(H56=$G$134,$E$135*20,0) -> 20000 | I135: 0 | J135: 0 | K135: 0 | L135: 0 | M135: 0 | N135: 0 | O135: 0 | P135: 0 | Q135: 0 | R135: =SUM(H135:L135) -> 20000 | S135: Hay que confirmar con el Ministerio de Educación y Formación el formato (y el costo por unidad) de los cursos de orientación para trabajadores del sector educativo en los distritos. ¿Cinco días? ¿Tres días? ¿En el plano nacional o del distrito? ¿Estimación del costo?
B136: 1.4.6 Dotación de personal para la dirección de enseñanza preescolar (salario anual) | C136: N.º de directores de EPI | D136: 1 | E136: 150000 | F136: =E136*0.065371 -> 9805.65 | G136: Gasto recurrente (salario de los directores de EPI) | H136: =$E$136 -> 150000 | I136: 150000 | J136: 150000 | K136: 150000 | L136: 150000 | M136: 150000 | N136: 150000 | O136: 150000 | P136: 150000 | Q136: 150000 | R136: =SUM(H136:L136) -> 750000
A137: 1.5 Ampliar el programa de alimentación escolar | B137: 1.5.1. Ampliar el programa de alimentación escolar al curso de recepción | C137: ê | D137: Número de niños por curso de recepción | G137: =D13 -> 23
C138: ê | G138: Número de niños que acuden a cursos de recepción | H138: =H103*$G$137 -> 12722.4568 | I138: =I103*$G$137 -> 17858.78392 | J138: 22737.97519 | K138: 24813.21568 | L138: 26156.95137 | M138: 28163.81234 | N138: 30130.53609 | O138: 32057.92537 | P138: 33396 | Q138: 33396
C139: N.º de niños que participan en el programa de alimentación escolar (23 por curso de recepción) cada año | D139: =1243*23.09 -> 28700.87 | E139: 900 | F139: =E139*0.065371 -> 58.8339 | G139: Gasto recurrente a lo largo de cinco años. | H139: =H138*$E$139 -> 11450211.12 | I139: 16072905.53 | J139: 20464177.67 | K139: 22331894.11 | L139: 23541256.23 | M139: 25347431.11 | N139: 27117482.48 | O139: 28852132.83 | P139: 30056400 | Q139: 30056400 | R139: =SUM(H139:L139) -> 93860444.66 | S139: 5 ZAR por alumno y día (el costo actual del programa de alimentación escolar) y 180 días lectivos al año = 5 × 180 = 900 ZAR por alumno y año. Lo ideal es que aumente hasta los 7 ZAR por alumno y día. | V139: 40 | W139: =T139*U139*V139 -> 0
A140: COSTO TOTAL = | H140: =SUMIF($C61:$C139,"<>ê",H61:H139) -> 83838217.93 | I140: 78056444.95 | J140: 106187101.4 | K140: 116767196.7 | L140: 131398218.3 | M140: 151590341.6 | N140: 173236843 | O140: 121597484.7 | P140: 129299176.9 | Q140: 132769669.3 | R140: 516247179.4
F141: en USD | H141: =H140*0.065371 -> 5480588.144 | I141: =I140*0.065371 -> 5102627.863 | J141: =J140*0.065371 -> 6941557.008 | K141: =K140*0.065371 -> 7633188.416 | L141: =L140*0.065371 -> 8589632.931 | R141: =SUM(H141:L141) -> 33747594.36
H142: Año 1 2020-2021 | I142: Año 2 2021-2022 | J142: Año 3 2022-2023 | K142: Año 4 2023-2024 | L142: Año 5 2024-2025 | R142: Costo total (ZAR)
F144: Inversión | G144: Infraestructura | H144: =H62+H68+H74+H79 -> 53565751.48 | I144: 26285585.29 | J144: 31363587.66 | K144: 36658528.95 | L144: 43727113.66 | M144: 52360749.61 | N144: 62250000 | O144: 759007.381 | P144: 0 | Q144: 0 | R144: 191600567
G145: Equipo | H145: =H83+H88+H91 -> 2832171.302 | I145: 2049228.724 | J145: 2215718.83 | K145: 1001430.668 | L145: 1189365.46 | M145: 1415519.701 | N145: 1670288.49 | O145: 296413.3577 | P145: 279450 | Q145: 279450 | R145: 9287914.983
G146: Inversión total | H146: =SUM(H144:H145) -> 56397922.78 | I146: =SUM(I144:I145) -> 28334814.02 | J146: 33579306.48 | K146: 37659959.62 | L146: 44916479.12 | M146: 53776269.31 | N146: 63920288.49 | O146: 1055420.739 | P146: 279450 | Q146: 279450 | R146: 200888482
F147: Gastos recurrentes | G147: Salarios | H147: =H114+H115+H136+H121 -> 13872456.8 | I147: 30539066.25 | J147: 49112146.65 | K147: 55803216.7 | L147: 61878945.23 | M147: 71322585.64 | N147: 80951815.23 | O147: 90770347.11 | P147: 98030361.82 | Q147: 101528779.3 | R147: 211205831.6
G148: Capacitación | H148: =H135+H133+H129+H122+H116 -> 2117627.219 | I148: 1786340.439 | J148: 1354789.362 | K148: 972126.2719 | L148: 1061537.767 | M148: 1144055.58 | N148: 1247256.79 | O148: 919583.9878 | P148: 932965.0357 | Q148: 905040 | R148: 7292421.059
G149: Programa de alimentación escolar | H149: =H139 -> 11450211.12 | I149: =I139 -> 16072905.53 | J149: 20464177.67 | K149: 22331894.11 | L149: 23541256.23 | M149: 25347431.11 | N149: 27117482.48 | O149: 28852132.83 | P149: 30056400 | Q149: 30056400 | R149: 93860444.66
G150: Gastos recurrentes totales | H150: =SUM(H147:H149) -> 27440295.15 | I150: 48398312.21 | J150: 70931113.68 | K150: 79107237.08 | L150: 86481739.23 | M150: 97814072.32 | N150: 109316554.5 | O150: 120542063.9 | P150: 129019726.9 | Q150: 132490219.3 | R150: 312358697.3
G151: Total general | H151: =H150+H146 -> 83838217.93 | I151: =I150+I146 -> 76733126.23 | J151: 104510420.2 | K151: 116767196.7 | L151: 131398218.3 | M151: 151590341.6 | N151: 173236843 | O151: 121597484.7 | P151: 129299176.9 | Q151: 132769669.3 | R151: 513247179.4
G153: Total como porcentaje del presupuesto educativo de 2018-2019 | H153: =H151/1000000/3128 -> 0.02680249934 | I153: 0.02453105058 | J153: 0.03341125964 | K153: 0.03732966647 | L153: 0.04200710305 | M153: 0.04846238543 | N153: 0.05538262244 | O153: 0.03887387617 | P153: 0.04133605398 | Q153: 0.04244554645 | R153: 0.1640815791
G154: Presupuesto actual del desarrollo en la primera infancia como porcentaje del presupuesto educativo | H154: =240*$E$114/3128/1000000 -> 0.001764705882 | I154: 0.001764705882 | J154: 0.001764705882 | K154: 0.001764705882 | L154: 0.001764705882 | M154: 0.001764705882 | N154: 0.001764705882 | O154: 0.001764705882 | P154: 0.001764705882 | Q154: 0.001764705882 | R154: 0.001764705882
G156: 9080
G157: 20192020 | H157: 20202021 | I157: 20212022 | J157: 20222023 | K157: 20232024 | L157: 20242025 | M157: 20252026 | N157: 20262027 | O157: 20272028 | P157: 20282029 | Q157: 20292030
G158: 2019 | H158: 2020 | I158: 2021 | J158: 2022 | K158: 2023 | L158: 2024 | M158: 2025 | N158: 2026 | O158: 2027 | P158: 2028 | Q158: 2029
F159: Población en miles (Fuente: variante media poblacional establecida por las Naciones Unidas y actualizada en 2017) | G159: 56.647 | H159: 57.107 | I159: 57.567 | J159: 57.726 | K159: 57.681 | L159: 57.584 | M159: 57.623 | N159: 57.609 | O159: 57.528 | P159: 57.393 | Q159: 57.213
G160: 20192020 | H160: 20202021 | I160: 20212022 | J160: 20222023 | K160: 20232024 | L160: 20242025 | M160: 20252026 | N160: 20262027 | O160: 20272028 | P160: 20282029 | Q160: 20292030
F161: Matriculación en los cursos de recepción | G161: =23*240 -> 5520 | H161: =H138 -> 12722.4568 | I161: =I138 -> 17858.78392 | J161: 22737.97519 | K161: 24813.21568 | L161: 26156.95137 | M161: 28163.81234 | N161: 30130.53609 | O161: 32057.92537 | P161: 33396 | Q161: 33396
C162: Crecimiento anual de las matriculaciones en el sector privado | D162: 0.05 | F162: Matriculación en el sector privado | G162: =G156 -> 9080 | H162: =G162*(1+$D$162) -> 9534 | I162: =H162*(1+$D$162) -> 10010.7 | J162: 10511.235 | K162: 11036.79675 | L162: 11588.63659 | M162: 12168.06842 | N162: 12776.47184 | O162: 13415.29543 | P162: 14086.0602 | Q162: 14790.36321
F163: Matriculación total | G163: =23*240+G156 -> 14600 | H163: =H138+H162 -> 22256.4568 | I163: =I138+I162 -> 27869.48392 | J163: 33249.21019 | K163: 35850.01243 | L163: 37745.58796 | M163: 40331.88076 | N163: 42907.00793 | O163: =O138+O162 -> 45473.2208 | P163: =P138+P162 -> 47482.0602 | Q163: =Q138+Q162 -> 48186.36321
F164: Matriculación en cursos de recepción como % de la población de 5 años | G164: =G161/G$159/1000 -> 0.09744558406 | H164: =H161/H$159/1000 -> 0.2227827903 | I164: 0.3102260656 | J164: 0.3938948686 | K164: 0.4301800538 | L164: 0.4542399168 | M164: 0.4887599108 | N164: 0.5230178634 | O164: 0.5572577766 | P164: 0.581882808 | Q164: 0.5837134917
F165: Tasa bruta de matriculación | G165: =G163/G$159/1000 -> 0.2577365086 | H165: =H163/H$159/1000 -> 0.3897325513 | I165: 0.4841225688 | J165: 0.575983269 | K165: 0.6215220338 | L165: 0.6554874263 | M165: 0.6999267785 | N165: 0.7447969576 | O165: 0.7904537061 | P165: 0.8273144844 | Q165: 0.8422275219
G167: 20192020 | H167: 20202021 | I167: 20212022 | J167: 20222023 | K167: 20232024 | L167: 20242025 | M167: 20252026 | N167: 20262027 | O167: 20272028 | P167: 20282029 | Q167: 20292030
D168: Porcentaje de niños de 5 años que se benefician de: | F168: Cursos de recepción | G168: =G164 -> 0.09744558406 | H168: 0.2227827903 | I168: 0.3102260656 | J168: 0.3938948686 | K168: 0.4301800538 | L168: 0.4542399168 | M168: 0.4887599108 | N168: 0.5230178634 | O168: 0.5572577766 | P168: 0.581882808 | Q168: 0.5837134917
F169: Matriculación en el sector privado | G169: =G162/G159/1000 -> 0.1602909245 | H169: =H162/H159/1000 -> 0.166949761 | I169: 0.1738965032 | J169: 0.1820884004 | K169: 0.19134198 | L169: 0.2012475095 | M169: 0.2111668677 | N169: 0.2217790942 | O169: 0.2331959295 | P169: 0.2454316764 | Q169: 0.2585140302
F170: No están matriculados | G170: =1-G168-G169 -> 0.7422634914 | H170: 0.6102674487 | I170: 0.5158774312 | J170: 0.424016731 | K170: 0.3784779662 | L170: 0.3445125737 | M170: 0.3000732215 | N170: 0.2552030424 | O170: 0.2095462939 | P170: 0.1726855156 | Q170: 0.1577724781
A171: No se incluye en los costos aquí, pero propongo que se presupuesten algunos de estos elementos como parte de las estrategias del plan del sector educativo:
A172: Formación previa al empleo
B173: Preparación de un nuevo curso de diplomatura
B174: Elaboración de materiales
B175: Desarrollo de la capacidad para contar con nuevos formadores de docentes todos los años
B176: Puesta en marcha de actividades de formación de docentes en todos los distritos
A177: Formación suplementaria en el empleo
B178: Capacitación para los docentes del ámbito del cuidado y desarrollo en la primera infancia (que no trabajen en cursos de recepción); puede coordinarse con la implantación del nuevo plan de estudios
A180: Un nuevo plan de estudios de enseñanza preescolar. Planificación en curso
B181: Costo de la elaboración del plan de estudios
B182: Puesta a prueba
B183: Preparación de la evaluación de los alumnos
B184: Implantación del plan de estudios (sin olvidar la formación para docentes de EPI)
A186: Participación de los progenitores y las comunidades
B187: Capacitación para miembros de asociaciones de progenitores y docentes
B188: Creación de directrices para las asociaciones de progenitores y docentes en el ámbito de la EPI (por determinar)
B189: Se desarrollan y respaldan módulos de crianza para progenitores
A191: Aseguramiento de la calidad y regulación
B192: Análisis de las normas de calidad
B193: Evaluación y apoyo a la inscripción en los centros de cuidado y desarrollo en la primera infancia
B194: Examen del Sistema de Información sobre la Gestión Educacional con respecto a los indicadores en materia de EPI
B195: Formación de los funcionarios que se dedican a la supervisión

Sheet Comparativa escenarios
E2: 20202021 | F2: 20212022 | G2: 20222023 | H2: 20232024 | I2: 20242025 | J2: 20252026 | K2: 20262027 | L2: 20272028 | M2: 20282029 | N2: 20292030
C3: Gasto total | D3: Situación hipotética 1 | E3: ='Amp. cursos recepción (3 años)'!H151 -> 144798889.1 | F3: ='Amp. cursos recepción (3 años)'!I151 -> 185708414.4 | G3: ='Amp. cursos recepción (3 años)'!J151 -> 133768817.4 | H3: ='Amp. cursos recepción (3 años)'!K151 -> 102960733.8 | I3: ='Amp. cursos recepción (3 años)'!L151 -> 84958864.9 | J3: ='Amp. cursos recepción (3 años)'!M151 -> 96006292.36 | K3: ='Amp. cursos recepción (3 años)'!N151 -> 107432343.1 | L3: ='Amp. cursos recepción (3 años)'!O151 -> 119010969.8 | M3: ='Amp. cursos recepción (3 años)'!P151 -> 128311900.2 | N3: ='Amp. cursos recepción (3 años)'!Q151 -> 131758278
D4: Situación hipotética 2 | E4: ='Amp. cursos recepción (5 años)'!H151 -> 111140989.1 | F4: ='Amp. cursos recepción (5 años)'!I151 -> 144128691 | G4: ='Amp. cursos recepción (5 años)'!J151 -> 117930736.2 | H4: ='Amp. cursos recepción (5 años)'!K151 -> 125569095.5 | I4: ='Amp. cursos recepción (5 años)'!L151 -> 133889886.6 | J4: ='Amp. cursos recepción (5 años)'!M151 -> 97179120.8 | K4: ='Amp. cursos recepción (5 años)'!N151 -> 108624398.2 | L4: ='Amp. cursos recepción (5 años)'!O151 -> 120222660.7 | M4: ='Amp. cursos recepción (5 años)'!P151 -> 129365794.4 | N4: ='Amp. cursos recepción (5 años)'!Q151 -> 132833899.9
D5: Situación hipotética 3 | E5: ='Amp. cursos recepción (7 años)'!H151 -> 83838217.93 | F5: ='Amp. cursos recepción (7 años)'!I151 -> 76733126.23 | G5: ='Amp. cursos recepción (7 años)'!J151 -> 104510420.2 | H5: ='Amp. cursos recepción (7 años)'!K151 -> 116767196.7 | I5: ='Amp. cursos recepción (7 años)'!L151 -> 131398218.3 | J5: ='Amp. cursos recepción (7 años)'!M151 -> 151590341.6 | K5: ='Amp. cursos recepción (7 años)'!N151 -> 173236843 | L5: ='Amp. cursos recepción (7 años)'!O151 -> 121597484.7 | M5: ='Amp. cursos recepción (7 años)'!P151 -> 129299176.9 | N5: ='Amp. cursos recepción (7 años)'!Q151 -> 132769669.3
D7: 20192020 | E7: 20202021 | F7: 20212022 | G7: 20222023 | H7: 20232024 | I7: 20242025 | J7: 20252026 | K7: 20262027 | L7: 20272028 | M7: 20282029 | N7: 20292030
B8: Gasto total como porcentaje del presupuesto educativo en 2018 | C8: Situación hipotética 1 | D8: 0.002 | E8: ='Amp. cursos recepción (3 años)'!H153 -> 0.04629120495 | F8: ='Amp. cursos recepción (3 años)'!I153 -> 0.0593696977 | G8: ='Amp. cursos recepción (3 años)'!J153 -> 0.04276496721 | H8: ='Amp. cursos recepción (3 años)'!K153 -> 0.03291583561 | I8: ='Amp. cursos recepción (3 años)'!L153 -> 0.02716076244 | J8: ='Amp. cursos recepción (3 años)'!M153 -> 0.03069254871 | K8: ='Amp. cursos recepción (3 años)'!N153 -> 0.03434537823 | L8: ='Amp. cursos recepción (3 años)'!O153 -> 0.03804698523 | M8: ='Amp. cursos recepción (3 años)'!P153 -> 0.04102042846 | N8: ='Amp. cursos recepción (3 años)'!Q153 -> 0.04212221164
C9: Situación hipotética 2 | D9: 0.002 | E9: ='Amp. cursos recepción (5 años)'!H153 -> 0.03553100674 | F9: ='Amp. cursos recepción (5 años)'!I153 -> 0.04607694724 | G9: ='Amp. cursos recepción (5 años)'!J153 -> 0.037701642 | H9: ='Amp. cursos recepción (5 años)'!K153 -> 0.04014357272 | I9: ='Amp. cursos recepción (5 años)'!L153 -> 0.04280367217 | J9: ='Amp. cursos recepción (5 años)'!M153 -> 0.03106749386 | K9: ='Amp. cursos recepción (5 años)'!N153 -> 0.03472647 | L9: ='Amp. cursos recepción (5 años)'!O153 -> 0.03843435445 | M9: ='Amp. cursos recepción (5 años)'!P153 -> 0.04135735115 | N9: ='Amp. cursos recepción (5 años)'!Q153 -> 0.04246608052
C10: Situación hipotética 3 | D10: 0.002 | E10: ='Amp. cursos recepción (7 años)'!H153 -> 0.02680249934 | F10: ='Amp. cursos recepción (7 años)'!I153 -> 0.02453105058 | G10: ='Amp. cursos recepción (7 años)'!J153 -> 0.03341125964 | H10: ='Amp. cursos recepción (7 años)'!K153 -> 0.03732966647 | I10: ='Amp. cursos recepción (7 años)'!L153 -> 0.04200710305 | J10: ='Amp. cursos recepción (7 años)'!M153 -> 0.04846238543 | K10: ='Amp. cursos recepción (7 años)'!N153 -> 0.05538262244 | L10: ='Amp. cursos recepción (7 años)'!O153 -> 0.03887387617 | M10: ='Amp. cursos recepción (7 años)'!P153 -> 0.04133605398 | N10: ='Amp. cursos recepción (7 años)'!Q153 -> 0.04244554645
D12: 20192020 | E12: 20202021 | F12: 20212022 | G12: 20222023 | H12: 20232024 | I12: 20242025 | J12: 20252026 | K12: 20262027 | L12: 20272028 | M12: 20282029 | N12: 20292030
B13: Total de matrículas en los cursos de recepción | C13: Situación hipotética 1 | D13: ='Amp. cursos recepción (3 años)'!G161 -> 5520 | E13: ='Amp. cursos recepción (3 años)'!H161 -> 16898.68521 | F13: ='Amp. cursos recepción (3 años)'!I161 -> 21631.6263 | G13: ='Amp. cursos recepción (3 años)'!J161 -> 22578.99377 | H13: ='Amp. cursos recepción (3 años)'!K161 -> 24657.41389 | I13: ='Amp. cursos recepción (3 años)'!L161 -> 26004.26562 | J13: ='Amp. cursos recepción (3 años)'!M161 -> 28014.1803 | K13: ='Amp. cursos recepción (3 años)'!N161 -> 29983.8967 | L13: ='Amp. cursos recepción (3 años)'!O161 -> 31914.21876 | M13: ='Amp. cursos recepción (3 años)'!P161 -> 33396 | N13: ='Amp. cursos recepción (3 años)'!Q161 -> 33396
C14: Situación hipotética 2 | D14: ='Amp. cursos recepción (5 años)'!G161 -> 5520 | E14: ='Amp. cursos recepción (5 años)'!H161 -> 15173.68521 | F14: ='Amp. cursos recepción (5 años)'!I161 -> 21666.1263 | G14: ='Amp. cursos recepción (5 años)'!J161 -> 22612.80377 | H14: ='Amp. cursos recepción (5 años)'!K161 -> 24690.54769 | I14: ='Amp. cursos recepción (5 años)'!L161 -> 26036.73674 | J14: ='Amp. cursos recepción (5 años)'!M161 -> 28046.00201 | K14: ='Amp. cursos recepción (5 años)'!N161 -> 30015.08197 | L14: ='Amp. cursos recepción (5 años)'!O161 -> 31944.78033 | M14: ='Amp. cursos recepción (5 años)'!P161 -> 33396.00648 | N14: ='Amp. cursos recepción (5 años)'!Q161 -> 33396.00648
C15: Situación hipotética 3 | D15: ='Amp. cursos recepción (7 años)'!G161 -> 5520 | E15: ='Amp. cursos recepción (7 años)'!H161 -> 12722.4568 | F15: ='Amp. cursos recepción (7 años)'!I161 -> 17858.78392 | G15: ='Amp. cursos recepción (7 años)'!J161 -> 22737.97519 | H15: ='Amp. cursos recepción (7 años)'!K161 -> 24813.21568 | I15: ='Amp. cursos recepción (7 años)'!L161 -> 26156.95137 | J15: ='Amp. cursos recepción (7 años)'!M161 -> 28163.81234 | K15: ='Amp. cursos recepción (7 años)'!N161 -> 30130.53609 | L15: ='Amp. cursos recepción (7 años)'!O161 -> 32057.92537 | M15: ='Amp. cursos recepción (7 años)'!P161 -> 33396 | N15: ='Amp. cursos recepción (7 años)'!Q161 -> 33396
D17: 20192020 | E17: 20202021 | F17: 20212022 | G17: 20222023 | H17: 20232024 | I17: 20242025 | J17: 20252026 | K17: 20262027 | L17: 20272028 | M17: 20282029 | N17: 20292030
B18: Tasa bruta de matriculación | C18: Situación hipotética 1 | D18: ='Amp. cursos recepción (3 años)'!G165 -> 0.2577365086 | E18: ='Amp. cursos recepción (3 años)'!H165 -> 0.4628624373 | F18: ='Amp. cursos recepción (3 años)'!I165 -> 0.5496608525 | G18: ='Amp. cursos recepción (3 años)'!J165 -> 0.5732291995 | H18: ='Amp. cursos recepción (3 años)'!K165 -> 0.6188209401 | I18: ='Amp. cursos recepción (3 años)'!L165 -> 0.6528358955 | J18: ='Amp. cursos recepción (3 años)'!M165 -> 0.697330037 | K18: ='Amp. cursos recepción (3 años)'!N165 -> 0.7422515325 | L18: ='Amp. cursos recepción (3 años)'!O165 -> 0.7879556771 | M18: ='Amp. cursos recepción (3 años)'!P165 -> 0.8273144844 | N18: ='Amp. cursos recepción (3 años)'!Q165 -> 0.8422275219
C19: Situación hipotética 2 | D19: ='Amp. cursos recepción (5 años)'!G165 -> 0.2577365086 | E19: ='Amp. cursos recepción (5 años)'!H165 -> 0.4326559828 | F19: ='Amp. cursos recepción (5 años)'!I165 -> 0.5502601542 | G19: ='Amp. cursos recepción (5 años)'!J165 -> 0.5738148974 | H19: ='Amp. cursos recepción (5 años)'!K165 -> 0.6193953719 | I19: ='Amp. cursos recepción (5 años)'!L165 -> 0.6533997869 | J19: ='Amp. cursos recepción (5 años)'!M165 -> 0.6978822766 | K19: ='Amp. cursos recepción (5 años)'!N165 -> 0.7427928588 | L19: ='Amp. cursos recepción (5 años)'!O165 -> 0.7884869239 | M19: ='Amp. cursos recepción (5 años)'!P165 -> 0.8273145973 | N19: ='Amp. cursos recepción (5 años)'!Q165 -> 0.8422276352
C20: Situación hipotética 3 | D20: ='Amp. cursos recepción (7 años)'!G165 -> 0.2577365086 | E20: ='Amp. cursos recepción (7 años)'!H165 -> 0.3897325513 | F20: ='Amp. cursos recepción (7 años)'!I165 -> 0.4841225688 | G20: ='Amp. cursos recepción (7 años)'!J165 -> 0.575983269 | H20: ='Amp. cursos recepción (7 años)'!K165 -> 0.6215220338 | I20: ='Amp. cursos recepción (7 años)'!L165 -> 0.6554874263 | J20: ='Amp. cursos recepción (7 años)'!M165 -> 0.6999267785 | K20: ='Amp. cursos recepción (7 años)'!N165 -> 0.7447969576 | L20: ='Amp. cursos recepción (7 años)'!O165 -> 0.7904537061 | M20: ='Amp. cursos recepción (7 años)'!P165 -> 0.8273144844 | N20: ='Amp. cursos recepción (7 años)'!Q165 -> 0.8422275219
A53: Para utilizar el gráfico con cualquier fila de los cuadros de las situaciones hipotéticas, escriba aquí el número que corresponde a la fila: | F53: 102
E55: 20202021 | F55: 20212022 | G55: 20222023 | H55: 20232024 | I55: 20242025 | J55: 20252026 | K55: 20262027 | L55: 20272028 | M55: 20282029 | N55: 20292030
C56: =OFFSET('Amp. cursos recepción (3 años)'!G3,$F$53-1,0) -> Falta de docentes | D56: Situación hipotética 1 | E56: =OFFSET('Amp. cursos recepción (3 años)'!H3,$F$53-1,0) -> 0 | F56: =OFFSET('Amp. cursos recepción (3 años)'!I3,$F$53-1,0) -> 333.2517319 | G56: =OFFSET('Amp. cursos recepción (3 años)'!J3,$F$53-1,0) -> 442.0618418 | H56: =OFFSET('Amp. cursos recepción (3 años)'!K3,$F$53-1,0) -> 409.9385263 | I56: =OFFSET('Amp. cursos recepción (3 años)'!L3,$F$53-1,0) -> 321.3797558 | J56: =OFFSET('Amp. cursos recepción (3 años)'!M3,$F$53-1,0) -> 233.9921607 | K56: =OFFSET('Amp. cursos recepción (3 años)'!N3,$F$53-1,0) -> 148.3523175 | L56: =OFFSET('Amp. cursos recepción (3 años)'!O3,$F$53-1,0) -> 64.42527112 | M56: =OFFSET('Amp. cursos recepción (3 años)'!P3,$F$53-1,0) -> 0 | N56: =OFFSET('Amp. cursos recepción (3 años)'!Q3,$F$53-1,0) -> 0
D57: Situación hipotética 2 | E57: =OFFSET('Amp. cursos recepción (5 años)'!H3,$F$53-1,0) -> 0 | F57: =OFFSET('Amp. cursos recepción (5 años)'!I3,$F$53-1,0) -> 140.1274329 | G57: =OFFSET('Amp. cursos recepción (5 años)'!J3,$F$53-1,0) -> 279.4035487 | H57: =OFFSET('Amp. cursos recepción (5 años)'!K3,$F$53-1,0) -> 297.3306944 | I57: =OFFSET('Amp. cursos recepción (5 años)'!L3,$F$53-1,0) -> 319.9682495 | J57: =OFFSET('Amp. cursos recepción (5 años)'!M3,$F$53-1,0) -> 232.6088901 | K57: =OFFSET('Amp. cursos recepción (5 años)'!N3,$F$53-1,0) -> 146.996718 | L57: =OFFSET('Amp. cursos recepción (5 años)'!O3,$F$53-1,0) -> 63.09678925 | M57: =OFFSET('Amp. cursos recepción (5 años)'!P3,$F$53-1,0) -> 0 | N57: =OFFSET('Amp. cursos recepción (5 años)'!Q3,$F$53-1,0) -> 0
D58: Situación hipotética 3 | E58: =OFFSET('Amp. cursos recepción (7 años)'!H3,$F$53-1,0) -> 0 | F58: =OFFSET('Amp. cursos recepción (7 años)'!I3,$F$53-1,0) -> 0 | G58: =OFFSET('Amp. cursos recepción (7 años)'!J3,$F$53-1,0) -> 23.41596958 | H58: =OFFSET('Amp. cursos recepción (7 años)'!K3,$F$53-1,0) -> 20.31710734 | I58: =OFFSET('Amp. cursos recepción (7 años)'!L3,$F$53-1,0) -> 36.74183043 | J58: =OFFSET('Amp. cursos recepción (7 años)'!M3,$F$53-1,0) -> 75.65748651 | K58: =OFFSET('Amp. cursos recepción (7 años)'!N3,$F$53-1,0) -> 140.1477581 | L58: =OFFSET('Amp. cursos recepción (7 años)'!O3,$F$53-1,0) -> 58.17715773 | M58: =OFFSET('Amp. cursos recepción (7 años)'!P3,$F$53-1,0) -> 0 | N58: =OFFSET('Amp. cursos recepción (7 años)'!Q3,$F$53-1,0) -> 0
